Workbook

Sheet Summary
B2: Sheet Name | C2: No of Printed Pages

Sheet Bristol
A1: Order ID | B1: Order Date | C1: Customer Name | D1: Country | E1: Product Name | F1: Product Category | G1: Unit Price | H1: Units Sold | I1: Discount | J1: Total Sales Value | K1: Sales Rep
A2: 10248 | B2: 2015-12-11 | C2: Vins et alcools Chevalier | D2: France | E2: Mozzarella di Giovanni | F2: Dairy Products | G2: 34.8 | H2: 5 | I2: 0 | J2: =ROUND((G2*H2)*(1-I2),2) -> 174 | K2: Steven Buchanan
A3: 10248 | B3: 2015-12-11 | C3: Vins et alcools Chevalier | D3: France | E3: Singaporean Hokkien Fried Mee | F3: Grains/Cereals | G3: 14 | H3: 10 | I3: 0 | J3: =ROUND((G3*H3)*(1-I3),2) -> 140 | K3: Steven Buchanan
A4: 10248 | B4: 2015-12-11 | C4: Vins et alcools Chevalier | D4: France | E4: Queso Cabrales | F4: Dairy Products | G4: 21 | H4: 12 | I4: 0 | J4: 252 | K4: Steven Buchanan
A5: 10249 | B5: 2015-12-12 | C5: Toms Spezialitäten | D5: Germany | E5: Manjimup Dried Apples | F5: Produce | G5: 53 | H5: 40 | I5: 0 | J5: 2120 | K5: Michael Suyama
A6: 10249 | B6: 2015-12-12 | C6: Toms Spezialitäten | D6: Germany | E6: Tofu | F6: Produce | G6: 23.25 | H6: 9 | I6: 0 | J6: 209.25 | K6: Michael Suyama
A7: 10250 | B7: 2015-12-15 | C7: Hanari Carnes | D7: Brazil | E7: Manjimup Dried Apples | F7: Produce | G7: 53 | H7: 35 | I7: 0.15 | J7: 1576.75 | K7: Margaret Peacock
A8: 10250 | B8: 2015-12-15 | C8: Hanari Carnes | D8: Brazil | E8: Jack's New England Clam Chowder | F8: Seafood | G8: 9.65 | H8: 10 | I8: 0 | J8: 96.5 | K8: Margaret Peacock
A9: 10250 | B9: 2015-12-15 | C9: Hanari Carnes | D9: Brazil | E9: Louisiana Fiery Hot Pepper Sauce | F9: Condiments | G9: 21.05 | H9: 15 | I9: 0.15 | J9: 268.39 | K9: Margaret Peacock
A10: 10251 | B10: 2015-12-15 | C10: Victuailles en stock | D10: France | E10: Gustaf's Knäckebröd | F10: Grains/Cereals | G10: 21 | H10: 6 | I10: 0.05 | J10: 119.7 | K10: Janet Leverling
A11: 10251 | B11: 2015-12-15 | C11: Victuailles en stock | D11: France | E11: Louisiana Fiery Hot Pepper Sauce | F11: Condiments | G11: 21.05 | H11: 20 | I11: 0 | J11: 421 | K11: Janet Leverling
A12: 10251 | B12: 2015-12-15 | C12: Victuailles en stock | D12: France | E12: Ravioli Angelo | F12: Grains/Cereals | G12: 19.5 | H12: 15 | I12: 0.05 | J12: 277.88 | K12: Janet Leverling
A13: 10252 | B13: 2015-12-16 | C13: Suprêmes délices | D13: Belgium | E13: Geitost | F13: Dairy Products | G13: 2.5 | H13: 25 | I13: 0.05 | J13: 59.38 | K13: Margaret Peacock
A14: 10252 | B14: 2015-12-16 | C14: Suprêmes délices | D14: Belgium | E14: Camembert Pierrot | F14: Dairy Products | G14: 34 | H14: 40 | I14: 0 | J14: 1360 | K14: Margaret Peacock
A15: 10252 | B15: 2015-12-16 | C15: Suprêmes délices | D15: Belgium | E15: Sir Rodney's Marmalade | F15: Confections | G15: 81 | H15: 40 | I15: 0.05 | J15: 3078 | K15: Margaret Peacock
A16: 10253 | B16: 2015-12-17 | C16: Hanari Carnes | D16: Brazil | E16: Chartreuse verte | F16: Beverages | G16: 18 | H16: 42 | I16: 0 | J16: 756 | K16: Janet Leverling
A17: 10253 | B17: 2015-12-17 | C17: Hanari Carnes | D17: Brazil | E17: Gorgonzola Telino | F17: Dairy Products | G17: 12.5 | H17: 20 | I17: 0 | J17: 250 | K17: Janet Leverling
A18: 10253 | B18: 2015-12-17 | C18: Hanari Carnes | D18: Brazil | E18: Maxilaku | F18: Confections | G18: 20 | H18: 40 | I18: 0 | J18: 800 | K18: Janet Leverling
A19: 10254 | B19: 2015-12-18 | C19: Chop-suey Chinese | D19: Switzerland | E19: Longlife Tofu | F19: Produce | G19: 10 | H19: 21 | I19: 0 | J19: 210 | K19: Steven Buchanan
A20: 10254 | B20: 2015-12-18 | C20: Chop-suey Chinese | D20: Switzerland | E20: Pâté chinois | F20: Meat/Poultry | G20: 24 | H20: 21 | I20: 0.15 | J20: 428.4 | K20: Steven Buchanan
A21: 10254 | B21: 2015-12-18 | C21: Chop-suey Chinese | D21: Switzerland | E21: Guaraná Fantástica | F21: Beverages | G21: 4.5 | H21: 15 | I21: 0.15 | J21: 57.38 | K21: Steven Buchanan
A22: 10255 | B22: 2015-12-19 | C22: Richter Supermarkt | D22: Switzerland | E22: Chang | F22: Beverages | G22: 19 | H22: 20 | I22: 0 | J22: 380 | K22: Anne Dodsworth
A23: 10255 | B23: 2015-12-19 | C23: Richter Supermarkt | D23: Switzerland | E23: Raclette Courdavault | F23: Dairy Products | G23: 55 | H23: 30 | I23: 0 | J23: 1650 | K23: Anne Dodsworth
A24: 10255 | B24: 2015-12-19 | C24: Richter Supermarkt | D24: Switzerland | E24: Pavlova | F24: Confections | G24: 17.45 | H24: 35 | I24: 0 | J24: 610.75 | K24: Anne Dodsworth
A25: 10255 | B25: 2015-12-19 | C25: Richter Supermarkt | D25: Switzerland | E25: Inlagd Sill | F25: Seafood | G25: 19 | H25: 25 | I25: 0 | J25: 475 | K25: Anne Dodsworth
A26: 10256 | B26: 2015-12-22 | C26: Wellington Importadora | D26: Brazil | E26: Perth Pasties | F26: Meat/Poultry | G26: 32.8 | H26: 15 | I26: 0 | J26: 492 | K26: Janet Leverling
A27: 10256 | B27: 2015-12-22 | C27: Wellington Importadora | D27: Brazil | E27: Original Frankfurter grüne Soße | F27: Condiments | G27: 13 | H27: 12 | I27: 0 | J27: 156 | K27: Janet Leverling
A28: 10257 | B28: 2015-12-23 | C28: HILARIÓN-Abastos | D28: Venezuela | E28: Schoggi Schokolade | F28: Confections | G28: 43.9 | H28: 25 | I28: 0 | J28: 1097.5 | K28: Margaret Peacock
A29: 10257 | B29: 2015-12-23 | C29: HILARIÓN-Abastos | D29: Venezuela | E29: Chartreuse verte | F29: Beverages | G29: 18 | H29: 6 | I29: 0 | J29: 108 | K29: Margaret Peacock
A30: 10257 | B30: 2015-12-23 | C30: HILARIÓN-Abastos | D30: Venezuela | E30: Original Frankfurter grüne Soße | F30: Condiments | G30: 13 | H30: 15 | I30: 0 | J30: 195 | K30: Margaret Peacock
A31: 10258 | B31: 2015-12-24 | C31: Ernst Handel | D31: Austria | E31: Chef Anton's Gumbo Mix | F31: Condiments | G31: 21.35 | H31: 65 | I31: 0.2 | J31: 1110.2 | K31: Nancy Davolio
A32: 10258 | B32: 2015-12-24 | C32: Ernst Handel | D32: Austria | E32: Chang | F32: Beverages | G32: 19 | H32: 50 | I32: 0.2 | J32: 760 | K32: Nancy Davolio
A33: 10258 | B33: 2015-12-24 | C33: Ernst Handel | D33: Austria | E33: Mascarpone Fabioli | F33: Dairy Products | G33: 32 | H33: 6 | I33: 0.2 | J33: 153.6 | K33: Nancy Davolio
A34: 10259 | B34: 2015-12-25 | C34: Centro comercial Moctezuma | D34: Mexico | E34: Sir Rodney's Scones | F34: Confections | G34: 10 | H34: 10 | I34: 0 | J34: 100 | K34: Margaret Peacock
A35: 10259 | B35: 2015-12-25 | C35: Centro comercial Moctezuma | D35: Mexico | E35: Gravad lax | F35: Seafood | G35: 26 | H35: 1 | I35: 0 | J35: 26 | K35: Margaret Peacock
A36: 10260 | B36: 2015-12-26 | C36: Ottilies Käseladen | D36: Germany | E36: Outback Lager | F36: Beverages | G36: 15 | H36: 21 | I36: 0.25 | J36: 236.25 | K36: Margaret Peacock
A37: 10260 | B37: 2015-12-26 | C37: Ottilies Käseladen | D37: Germany | E37: Ravioli Angelo | F37: Grains/Cereals | G37: 19.5 | H37: 50 | I37: 0 | J37: 975 | K37: Margaret Peacock
A38: 10260 | B38: 2015-12-26 | C38: Ottilies Käseladen | D38: Germany | E38: Tarte au sucre | F38: Confections | G38: 49.3 | H38: 15 | I38: 0.25 | J38: 554.63 | K38: Margaret Peacock
A39: 10260 | B39: 2015-12-26 | C39: Ottilies Käseladen | D39: Germany | E39: Jack's New England Clam Chowder | F39: Seafood | G39: 9.65 | H39: 16 | I39: 0.25 | J39: 115.8 | K39: Margaret Peacock
A40: 10261 | B40: 2015-12-26 | C40: Que Delícia | D40: Brazil | E40: Steeleye Stout | F40: Beverages | G40: 18 | H40: 20 | I40: 0 | J40: 360 | K40: Margaret Peacock
A41: 10261 | B41: 2015-12-26 | C41: Que Delícia | D41: Brazil | E41: Sir Rodney's Scones | F41: Confections | G41: 10 | H41: 20 | I41: 0 | J41: 200 | K41: Margaret Peacock
A42: 10262 | B42: 2015-12-29 | C42: Rattlesnake Canyon Grocery | D42: USA | E42: Chef Anton's Gumbo Mix | F42: Condiments | G42: 21.35 | H42: 12 | I42: 0.2 | J42: 204.96 | K42: Laura Callahan
A43: 10262 | B43: 2015-12-29 | C43: Rattlesnake Canyon Grocery | D43: USA | E43: Uncle Bob's Organic Dried Pears | F43: Produce | G43: 30 | H43: 15 | I43: 0 | J43: 450 | K43: Laura Callahan
A44: 10262 | B44: 2015-12-29 | C44: Rattlesnake Canyon Grocery | D44: USA | E44: Gnocchi di nonna Alice | F44: Grains/Cereals | G44: 38 | H44: 2 | I44: 0 | J44: 76 | K44: Laura Callahan
A45: 10263 | B45: 2015-12-30 | C45: Ernst Handel | D45: Austria | E45: Pavlova | F45: Confections | G45: 17.45 | H45: 60 | I45: 0.25 | J45: 785.25 | K45: Anne Dodsworth
A46: 10263 | B46: 2015-12-30 | C46: Ernst Handel | D46: Austria | E46: Nord-Ost Matjeshering | F46: Seafood | G46: 25.89 | H46: 60 | I46: 0.25 | J46: 1165.05 | K46: Anne Dodsworth
A47: 10263 | B47: 2015-12-30 | C47: Ernst Handel | D47: Austria | E47: Guaraná Fantástica | F47: Beverages | G47: 4.5 | H47: 28 | I47: 0 | J47: 126 | K47: Anne Dodsworth
A48: 10263 | B48: 2015-12-30 | C48: Ernst Handel | D48: Austria | E48: Longlife Tofu | F48: Produce | G48: 10 | H48: 36 | I48: 0.25 | J48: 270 | K48: Anne Dodsworth
A49: 10264 | B49: 2015-12-31 | C49: Folk och fä HB | D49: Sweden | E49: Chang | F49: Beverages | G49: 19 | H49: 35 | I49: 0 | J49: 665 | K49: Michael Suyama
A50: 10264 | B50: 2015-12-31 | C50: Folk och fä HB | D50: Sweden | E50: Jack's New England Clam Chowder | F50: Seafood | G50: 9.65 | H50: 25 | I50: 0.15 | J50: 205.06 | K50: Michael Suyama
A51: 10265 | B51: 2016-01-01 | C51: Blondel père et fils | D51: France | E51: Alice Mutton | F51: Meat/Poultry | G51: 39 | H51: 30 | I51: 0 | J51: 1170 | K51: Andrew Fuller
A52: 10265 | B52: 2016-01-01 | C52: Blondel père et fils | D52: France | E52: Outback Lager | F52: Beverages | G52: 15 | H52: 20 | I52: 0 | J52: 300 | K52: Andrew Fuller
A53: 10266 | B53: 2016-01-02 | C53: Wartian Herkku | D53: Finland | E53: Queso Manchego La Pastora | F53: Dairy Products | G53: 38 | H53: 12 | I53: 0.05 | J53: 433.2 | K53: Janet Leverling
A54: 10267 | B54: 2016-01-05 | C54: Frankenversand | D54: Germany | E54: Lakkalikööri | F54: Beverages | G54: 18 | H54: 15 | I54: 0.15 | J54: 229.5 | K54: Margaret Peacock
A55: 10267 | B55: 2016-01-05 | C55: Frankenversand | D55: Germany | E55: Boston Crab Meat | F55: Seafood | G55: 18.4 | H55: 50 | I55: 0 | J55: 920 | K55: Margaret Peacock
A56: 10267 | B56: 2016-01-05 | C56: Frankenversand | D56: Germany | E56: Raclette Courdavault | F56: Dairy Products | G56: 55 | H56: 70 | I56: 0.15 | J56: 3272.5 | K56: Margaret Peacock
A57: 10268 | B57: 2016-01-06 | C57: GROSELLA-Restaurante | D57: Venezuela | E57: Mozzarella di Giovanni | F57: Dairy Products | G57: 34.8 | H57: 4 | I57: 0 | J57: 139.2 | K57: Laura Callahan
A58: 10268 | B58: 2016-01-06 | C58: GROSELLA-Restaurante | D58: Venezuela | E58: Thüringer Rostbratwurst | F58: Meat/Poultry | G58: 123.79 | H58: 10 | I58: 0 | J58: 1237.9 | K58: Laura Callahan
A59: 10269 | B59: 2016-01-07 | C59: White Clover Markets | D59: USA | E59: Mozzarella di Giovanni | F59: Dairy Products | G59: 34.8 | H59: 20 | I59: 0.05 | J59: 661.2 | K59: Steven Buchanan
A60: 10269 | B60: 2016-01-07 | C60: White Clover Markets | D60: USA | E60: Geitost | F60: Dairy Products | G60: 2.5 | H60: 60 | I60: 0.05 | J60: 142.5 | K60: Steven Buchanan
A61: 10270 | B61: 2016-01-08 | C61: Wartian Herkku | D61: Finland | E61: Inlagd Sill | F61: Seafood | G61: 19 | H61: 30 | I61: 0 | J61: 570 | K61: Nancy Davolio
A62: 10270 | B62: 2016-01-08 | C62: Wartian Herkku | D62: Finland | E62: Ipoh Coffee | F62: Beverages | G62: 46 | H62: 25 | I62: 0 | J62: 1150 | K62: Nancy Davolio
A63: 10271 | B63: 2016-01-08 | C63: Split Rail Beer & Ale | D63: USA | E63: Geitost | F63: Dairy Products | G63: 2.5 | H63: 24 | I63: 0 | J63: 60 | K63: Michael Suyama
A64: 10272 | B64: 2016-01-09 | C64: Rattlesnake Canyon Grocery | D64: USA | E64: Gorgonzola Telino | F64: Dairy Products | G64: 12.5 | H64: 40 | I64: 0 | J64: 500 | K64: Michael Suyama
A65: 10272 | B65: 2016-01-09 | C65: Rattlesnake Canyon Grocery | D65: USA | E65: Sir Rodney's Marmalade | F65: Confections | G65: 81 | H65: 6 | I65: 0 | J65: 486 | K65: Michael Suyama
A66: 10272 | B66: 2016-01-09 | C66: Rattlesnake Canyon Grocery | D66: USA | E66: Mozzarella di Giovanni | F66: Dairy Products | G66: 34.8 | H66: 24 | I66: 0 | J66: 835.2 | K66: Michael Suyama
A67: 10273 | B67: 2016-01-12 | C67: QUICK-Stop | D67: Germany | E67: Boston Crab Meat | F67: Seafood | G67: 18.4 | H67: 60 | I67: 0.05 | J67: =ROUND((G67*H67)*(1-I67),2) -> 1048.8 | K67: Janet Leverling
A68: 10273 | B68: 2016-01-12 | C68: QUICK-Stop | D68: Germany | E68: Geitost | F68: Dairy Products | G68: 2.5 | H68: 20 | I68: 0 | J68: 50 | K68: Janet Leverling
A69: 10273 | B69: 2016-01-12 | C69: QUICK-Stop | D69: Germany | E69: Gorgonzola Telino | F69: Dairy Products | G69: 12.5 | H69: 15 | I69: 0.05 | J69: 178.13 | K69: Janet Leverling
A70: 10273 | B70: 2016-01-12 | C70: QUICK-Stop | D70: Germany | E70: Ikura | F70: Seafood | G70: 31 | H70: 24 | I70: 0.05 | J70: 706.8 | K70: Janet Leverling
A71: 10273 | B71: 2016-01-12 | C71: QUICK-Stop | D71: Germany | E71: Lakkalikööri | F71: Beverages | G71: 18 | H71: 33 | I71: 0.05 | J71: 564.3 | K71: Janet Leverling
A72: 10274 | B72: 2016-01-13 | C72: Vins et alcools Chevalier | D72: France | E72: Fløtemysost | F72: Dairy Products | G72: 21.5 | H72: 20 | I72: 0 | J72: 430 | K72: Michael Suyama
A73: 10274 | B73: 2016-01-13 | C73: Vins et alcools Chevalier | D73: France | E73: Mozzarella di Giovanni | F73: Dairy Products | G73: 34.8 | H73: 7 | I73: 0 | J73: 243.6 | K73: Michael Suyama
A74: 10275 | B74: 2016-01-14 | C74: Magazzini Alimentari Riuniti | D74: Italy | E74: Guaraná Fantástica | F74: Beverages | G74: 4.5 | H74: 12 | I74: 0.05 | J74: 51.3 | K74: Nancy Davolio
A75: 10275 | B75: 2016-01-14 | C75: Magazzini Alimentari Riuniti | D75: Italy | E75: Raclette Courdavault | F75: Dairy Products | G75: 55 | H75: 6 | I75: 0.05 | J75: 313.5 | K75: Nancy Davolio
A76: 10276 | B76: 2016-01-15 | C76: Tortuga Restaurante | D76: Mexico | E76: Ikura | F76: Seafood | G76: 31 | H76: 15 | I76: 0 | J76: 465 | K76: Laura Callahan
A77: 10276 | B77: 2016-01-15 | C77: Tortuga Restaurante | D77: Mexico | E77: Konbu | F77: Seafood | G77: 6 | H77: 10 | I77: 0 | J77: 60 | K77: Laura Callahan
A78: 10277 | B78: 2016-01-16 | C78: Morgenstern Gesundkost | D78: Germany | E78: Rössle Sauerkraut | F78: Produce | G78: 45.6 | H78: 20 | I78: 0 | J78: 912 | K78: Andrew Fuller
A79: 10277 | B79: 2016-01-16 | C79: Morgenstern Gesundkost | D79: Germany | E79: Tarte au sucre | F79: Confections | G79: 49.3 | H79: 12 | I79: 0 | J79: 591.6 | K79: Andrew Fuller
A80: 10278 | B80: 2016-01-19 | C80: Berglunds snabbköp | D80: Sweden | E80: Raclette Courdavault | F80: Dairy Products | G80: 55 | H80: 15 | I80: 0 | J80: 825 | K80: Laura Callahan
A81: 10278 | B81: 2016-01-19 | C81: Berglunds snabbköp | D81: Sweden | E81: Röd Kaviar | F81: Seafood | G81: 15 | H81: 25 | I81: 0 | J81: 375 | K81: Laura Callahan
A82: 10278 | B82: 2016-01-19 | C82: Berglunds snabbköp | D82: Sweden | E82: Gula Malacca | F82: Condiments | G82: 19.45 | H82: 16 | I82: 0 | J82: 311.2 | K82: Laura Callahan
A83: 10278 | B83: 2016-01-19 | C83: Berglunds snabbköp | D83: Sweden | E83: Vegie-spread | F83: Condiments | G83: 43.9 | H83: 8 | I83: 0 | J83: 351.2 | K83: Laura Callahan
A84: 10279 | B84: 2016-01-20 | C84: Lehmanns Marktstand | D84: Germany | E84: Alice Mutton | F84: Meat/Poultry | G84: 39 | H84: 15 | I84: 0.25 | J84: 438.75 | K84: Laura Callahan
A85: 10280 | B85: 2016-01-21 | C85: Berglunds snabbköp | D85: Sweden | E85: Pâté chinois | F85: Meat/Poultry | G85: 24 | H85: 20 | I85: 0 | J85: 480 | K85: Andrew Fuller
A86: 10280 | B86: 2016-01-21 | C86: Berglunds snabbköp | D86: Sweden | E86: Rhönbräu Klosterbier | F86: Beverages | G86: 7.75 | H86: 30 | I86: 0 | J86: 232.5 | K86: Andrew Fuller
A87: 10280 | B87: 2016-01-21 | C87: Berglunds snabbköp | D87: Sweden | E87: Guaraná Fantástica | F87: Beverages | G87: 4.5 | H87: 12 | I87: 0 | J87: 54 | K87: Andrew Fuller
A88: 10281 | B88: 2016-01-21 | C88: Romero y tomillo | D88: Spain | E88: Guaraná Fantástica | F88: Beverages | G88: 4.5 | H88: 6 | I88: 0 | J88: 27 | K88: Margaret Peacock
A89: 10281 | B89: 2016-01-21 | C89: Romero y tomillo | D89: Spain | E89: Steeleye Stout | F89: Beverages | G89: 18 | H89: 4 | I89: 0 | J89: 72 | K89: Margaret Peacock
A90: 10281 | B90: 2016-01-21 | C90: Romero y tomillo | D90: Spain | E90: Teatime Chocolate Biscuits | F90: Confections | G90: 9.2 | H90: 1 | I90: 0 | J90: 9.2 | K90: Margaret Peacock
A91: 10282 | B91: 2016-01-22 | C91: Romero y tomillo | D91: Spain | E91: Ravioli Angelo | F91: Grains/Cereals | G91: 19.5 | H91: 2 | I91: 0 | J91: 39 | K91: Margaret Peacock
A92: 10282 | B92: 2016-01-22 | C92: Romero y tomillo | D92: Spain | E92: Nord-Ost Matjeshering | F92: Seafood | G92: 25.89 | H92: 6 | I92: 0 | J92: 155.34 | K92: Margaret Peacock
A93: 10283 | B93: 2016-01-23 | C93: LILA-Supermercado | D93: Venezuela | E93: Teatime Chocolate Biscuits | F93: Confections | G93: 9.2 | H93: 18 | I93: 0 | J93: 165.6 | K93: Janet Leverling
A94: 10283 | B94: 2016-01-23 | C94: LILA-Supermercado | D94: Venezuela | E94: Camembert Pierrot | F94: Dairy Products | G94: 34 | H94: 35 | I94: 0 | J94: 1190 | K94: Janet Leverling
A95: 10283 | B95: 2016-01-23 | C95: LILA-Supermercado | D95: Venezuela | E95: Genen Shouyu | F95: Condiments | G95: 15.5 | H95: 20 | I95: 0 | J95: 310 | K95: Janet Leverling
A96: 10283 | B96: 2016-01-23 | C96: LILA-Supermercado | D96: Venezuela | E96: Mozzarella di Giovanni | F96: Dairy Products | G96: 34.8 | H96: 3 | I96: 0 | J96: 104.4 | K96: Janet Leverling
A97: 10284 | B97: 2016-01-26 | C97: Lehmanns Marktstand | D97: Germany | E97: Laughing Lumberjack Lager | F97: Beverages | G97: 14 | H97: 5 | I97: 0.25 | J97: 52.5 | K97: Margaret Peacock
A98: 10284 | B98: 2016-01-26 | C98: Lehmanns Marktstand | D98: Germany | E98: Gula Malacca | F98: Condiments | G98: 19.45 | H98: 21 | I98: 0 | J98: 408.45 | K98: Margaret Peacock
A99: 10284 | B99: 2016-01-26 | C99: Lehmanns Marktstand | D99: Germany | E99: Camembert Pierrot | F99: Dairy Products | G99: 34 | H99: 20 | I99: 0.25 | J99: 510 | K99: Margaret Peacock
A100: 10284 | B100: 2016-01-26 | C100: Lehmanns Marktstand | D100: Germany | E100: Schoggi Schokolade | F100: Confections | G100: 43.9 | H100: 15 | I100: 0.25 | J100: 493.88 | K100: Margaret Peacock
A101: 10285 | B101: 2016-01-27 | C101: QUICK-Stop | D101: Germany | E101: Chai | F101: Beverages | G101: 18 | H101: 45 | I101: 0.2 | J101: 648 | K101: Nancy Davolio
A102: 10285 | B102: 2016-01-27 | C102: QUICK-Stop | D102: Germany | E102: Boston Crab Meat | F102: Seafood | G102: 18.4 | H102: 40 | I102: 0.2 | J102: 588.8 | K102: Nancy Davolio
A103: 10285 | B103: 2016-01-27 | C103: QUICK-Stop | D103: Germany | E103: Perth Pasties | F103: Meat/Poultry | G103: 32.8 | H103: 36 | I103: 0.2 | J103: 944.64 | K103: Nancy Davolio
A104: 10286 | B104: 2016-01-28 | C104: QUICK-Stop | D104: Germany | E104: Tarte au sucre | F104: Confections | G104: 49.3 | H104: 40 | I104: 0 | J104: 1972 | K104: Laura Callahan
A105: 10286 | B105: 2016-01-28 | C105: QUICK-Stop | D105: Germany | E105: Steeleye Stout | F105: Beverages | G105: 18 | H105: 100 | I105: 0 | J105: 1800 | K105: Laura Callahan
A106: 10287 | B106: 2016-01-29 | C106: Ricardo Adocicados | D106: Brazil | E106: Spegesild | F106: Seafood | G106: 12 | H106: 15 | I106: 0.15 | J106: 153 | K106: Laura Callahan
A107: 10287 | B107: 2016-01-29 | C107: Ricardo Adocicados | D107: Brazil | E107: Pavlova | F107: Confections | G107: 17.45 | H107: 40 | I107: 0.15 | J107: 593.3 | K107: Laura Callahan
A108: 10287 | B108: 2016-01-29 | C108: Ricardo Adocicados | D108: Brazil | E108: Sasquatch Ale | F108: Beverages | G108: 14 | H108: 20 | I108: 0 | J108: 280 | K108: Laura Callahan
A109: 10288 | B109: 2016-01-30 | C109: Reggiani Caseifici | D109: Italy | E109: Scottish Longbreads | F109: Confections | G109: 12.5 | H109: 3 | I109: 0.1 | J109: 33.75 | K109: Margaret Peacock
A110: 10288 | B110: 2016-01-30 | C110: Reggiani Caseifici | D110: Italy | E110: Tourtière | F110: Meat/Poultry | G110: 7.45 | H110: 10 | I110: 0.1 | J110: 67.05 | K110: Margaret Peacock
A111: 10289 | B111: 2016-02-02 | C111: B's Beverages | D111: UK | E111: Aniseed Syrup | F111: Condiments | G111: 10 | H111: 30 | I111: 0 | J111: 300 | K111: Robert King
A112: 10289 | B112: 2016-02-02 | C112: B's Beverages | D112: UK | E112: Wimmers gute Semmelknödel | F112: Grains/Cereals | G112: 33.25 | H112: 9 | I112: 0 | J112: 299.25 | K112: Robert King
A113: 10290 | B113: 2016-02-03 | C113: Comércio Mineiro | D113: Brazil | E113: Original Frankfurter grüne Soße | F113: Condiments | G113: 13 | H113: 10 | I113: 0 | J113: 130 | K113: Laura Callahan
A114: 10290 | B114: 2016-02-03 | C114: Comércio Mineiro | D114: Brazil | E114: Thüringer Rostbratwurst | F114: Meat/Poultry | G114: 123.79 | H114: 15 | I114: 0 | J114: 1856.85 | K114: Laura Callahan
A115: 10290 | B115: 2016-02-03 | C115: Comércio Mineiro | D115: Brazil | E115: Maxilaku | F115: Confections | G115: 20 | H115: 15 | I115: 0 | J115: 300 | K115: Laura Callahan
A116: 10290 | B116: 2016-02-03 | C116: Comércio Mineiro | D116: Brazil | E116: Chef Anton's Gumbo Mix | F116: Condiments | G116: 21.35 | H116: 20 | I116: 0 | J116: 427 | K116: Laura Callahan
A117: 10291 | B117: 2016-02-03 | C117: Que Delícia | D117: Brazil | E117: Gula Malacca | F117: Condiments | G117: 19.45 | H117: 24 | I117: 0.1 | J117: 420.12 | K117: Michael Suyama
A118: 10291 | B118: 2016-02-03 | C118: Que Delícia | D118: Brazil | E118: Konbu | F118: Seafood | G118: 6 | H118: 20 | I118: 0.1 | J118: 108 | K118: Michael Suyama
A119: 10291 | B119: 2016-02-03 | C119: Que Delícia | D119: Brazil | E119: Manjimup Dried Apples | F119: Produce | G119: 53 | H119: 2 | I119: 0.1 | J119: 95.4 | K119: Michael Suyama
A120: 10292 | B120: 2016-02-04 | C120: Tradição Hipermercados | D120: Brazil | E120: Sir Rodney's Marmalade | F120: Confections | G120: 81 | H120: 20 | I120: 0 | J120: 1620 | K120: Nancy Davolio
A121: 10293 | B121: 2016-02-05 | C121: Tortuga Restaurante | D121: Mexico | E121: Carnarvon Tigers | F121: Seafood | G121: 62.5 | H121: 12 | I121: 0 | J121: 750 | K121: Nancy Davolio
A122: 10293 | B122: 2016-02-05 | C122: Tortuga Restaurante | D122: Mexico | E122: Rhönbräu Klosterbier | F122: Beverages | G122: 7.75 | H122: 6 | I122: 0 | J122: 46.5 | K122: Nancy Davolio
A123: 10293 | B123: 2016-02-05 | C123: Tortuga Restaurante | D123: Mexico | E123: Guaraná Fantástica | F123: Beverages | G123: 4.5 | H123: 10 | I123: 0 | J123: 45 | K123: Nancy Davolio
A124: 10293 | B124: 2016-02-05 | C124: Tortuga Restaurante | D124: Mexico | E124: Vegie-spread | F124: Condiments | G124: 43.9 | H124: 5 | I124: 0 | J124: 219.5 | K124: Nancy Davolio
A125: 10294 | B125: 2016-02-06 | C125: Rattlesnake Canyon Grocery | D125: USA | E125: Camembert Pierrot | F125: Dairy Products | G125: 34 | H125: 21 | I125: 0 | J125: 714 | K125: Margaret Peacock
A126: 10294 | B126: 2016-02-06 | C126: Rattlesnake Canyon Grocery | D126: USA | E126: Rhönbräu Klosterbier | F126: Beverages | G126: 7.75 | H126: 6 | I126: 0 | J126: 46.5 | K126: Margaret Peacock
A127: 10294 | B127: 2016-02-06 | C127: Rattlesnake Canyon Grocery | D127: USA | E127: Chai | F127: Beverages | G127: 18 | H127: 18 | I127: 0 | J127: 324 | K127: Margaret Peacock
A128: 10294 | B128: 2016-02-06 | C128: Rattlesnake Canyon Grocery | D128: USA | E128: Ipoh Coffee | F128: Beverages | G128: 46 | H128: 15 | I128: 0 | J128: 690 | K128: Margaret Peacock
A129: 10294 | B129: 2016-02-06 | C129: Rattlesnake Canyon Grocery | D129: USA | E129: Alice Mutton | F129: Meat/Poultry | G129: 39 | H129: 15 | I129: 0 | J129: 585 | K129: Margaret Peacock
A130: 10295 | B130: 2016-02-09 | C130: Vins et alcools Chevalier | D130: France | E130: Gnocchi di nonna Alice | F130: Grains/Cereals | G130: 38 | H130: 4 | I130: 0 | J130: 152 | K130: Andrew Fuller
A131: 10296 | B131: 2016-02-10 | C131: LILA-Supermercado | D131: Venezuela | E131: Gudbrandsdalsost | F131: Dairy Products | G131: 36 | H131: 15 | I131: 0 | J131: =ROUND((G131*H131)*(1-I131),2) -> 540 | K131: Michael Suyama
A132: 10296 | B132: 2016-02-10 | C132: LILA-Supermercado | D132: Venezuela | E132: Queso Cabrales | F132: Dairy Products | G132: 21 | H132: 12 | I132: 0 | J132: 252 | K132: Michael Suyama
A133: 10296 | B133: 2016-02-10 | C133: LILA-Supermercado | D133: Venezuela | E133: Pavlova | F133: Confections | G133: 17.45 | H133: 30 | I133: 0 | J133: 523.5 | K133: Michael Suyama
A134: 10297 | B134: 2016-02-11 | C134: Blondel père et fils | D134: France | E134: Mozzarella di Giovanni | F134: Dairy Products | G134: 34.8 | H134: 20 | I134: 0 | J134: 696 | K134: Steven Buchanan
A135: 10297 | B135: 2016-02-11 | C135: Blondel père et fils | D135: France | E135: Chartreuse verte | F135: Beverages | G135: 18 | H135: 60 | I135: 0 | J135: 1080 | K135: Steven Buchanan
A136: 10298 | B136: 2016-02-12 | C136: Hungry Owl All-Night Grocers | D136: Ireland | E136: Chang | F136: Beverages | G136: 19 | H136: 40 | I136: 0 | J136: 760 | K136: Michael Suyama
A137: 10298 | B137: 2016-02-12 | C137: Hungry Owl All-Night Grocers | D137: Ireland | E137: Inlagd Sill | F137: Seafood | G137: 19 | H137: 40 | I137: 0.25 | J137: 570 | K137: Michael Suyama
A138: 10298 | B138: 2016-02-12 | C138: Hungry Owl All-Night Grocers | D138: Ireland | E138: Tarte au sucre | F138: Confections | G138: 49.3 | H138: 15 | I138: 0 | J138: 739.5 | K138: Michael Suyama
A139: 10298 | B139: 2016-02-12 | C139: Hungry Owl All-Night Grocers | D139: Ireland | E139: Raclette Courdavault | F139: Dairy Products | G139: 55 | H139: 30 | I139: 0.25 | J139: 1237.5 | K139: Michael Suyama
A140: 10299 | B140: 2016-02-13 | C140: Ricardo Adocicados | D140: Brazil | E140: Outback Lager | F140: Beverages | G140: 15 | H140: 20 | I140: 0 | J140: 300 | K140: Margaret Peacock
A141: 10299 | B141: 2016-02-13 | C141: Ricardo Adocicados | D141: Brazil | E141: Teatime Chocolate Biscuits | F141: Confections | G141: 9.2 | H141: 15 | I141: 0 | J141: 138 | K141: Margaret Peacock
A142: 10300 | B142: 2016-02-16 | C142: Magazzini Alimentari Riuniti | D142: Italy | E142: Scottish Longbreads | F142: Confections | G142: 12.5 | H142: 20 | I142: 0 | J142: 250 | K142: Andrew Fuller
A143: 10300 | B143: 2016-02-16 | C143: Magazzini Alimentari Riuniti | D143: Italy | E143: Louisiana Hot Spiced Okra | F143: Condiments | G143: 17 | H143: 30 | I143: 0 | J143: 510 | K143: Andrew Fuller
A144: 10301 | B144: 2016-02-16 | C144: Die Wandernde Kuh | D144: Germany | E144: Gnocchi di nonna Alice | F144: Grains/Cereals | G144: 38 | H144: 20 | I144: 0 | J144: 760 | K144: Laura Callahan
A145: 10301 | B145: 2016-02-16 | C145: Die Wandernde Kuh | D145: Germany | E145: Boston Crab Meat | F145: Seafood | G145: 18.4 | H145: 10 | I145: 0 | J145: 184 | K145: Laura Callahan
A146: 10302 | B146: 2016-02-17 | C146: Suprêmes délices | D146: Belgium | E146: Ipoh Coffee | F146: Beverages | G146: 46 | H146: 12 | I146: 0 | J146: 552 | K146: Margaret Peacock
A147: 10302 | B147: 2016-02-17 | C147: Suprêmes délices | D147: Belgium | E147: Rössle Sauerkraut | F147: Produce | G147: 45.6 | H147: 28 | I147: 0 | J147: 1276.8 | K147: Margaret Peacock
A148: 10302 | B148: 2016-02-17 | C148: Suprêmes délices | D148: Belgium | E148: Alice Mutton | F148: Meat/Poultry | G148: 39 | H148: 40 | I148: 0 | J148: 1560 | K148: Margaret Peacock
A149: 10303 | B149: 2016-02-18 | C149: Godos Cocina Típica | D149: Spain | E149: Louisiana Fiery Hot Pepper Sauce | F149: Condiments | G149: 21.05 | H149: 30 | I149: 0.1 | J149: 568.35 | K149: Robert King
A150: 10303 | B150: 2016-02-18 | C150: Godos Cocina Típica | D150: Spain | E150: Boston Crab Meat | F150: Seafood | G150: 18.4 | H150: 40 | I150: 0.1 | J150: 662.4 | K150: Robert King
A151: 10303 | B151: 2016-02-18 | C151: Godos Cocina Típica | D151: Spain | E151: Scottish Longbreads | F151: Confections | G151: 12.5 | H151: 15 | I151: 0.1 | J151: 168.75 | K151: Robert King
A152: 10304 | B152: 2016-02-19 | C152: Tortuga Restaurante | D152: Mexico | E152: Maxilaku | F152: Confections | G152: 20 | H152: 30 | I152: 0 | J152: 600 | K152: Nancy Davolio
A153: 10304 | B153: 2016-02-19 | C153: Tortuga Restaurante | D153: Mexico | E153: Raclette Courdavault | F153: Dairy Products | G153: 55 | H153: 10 | I153: 0 | J153: 550 | K153: Nancy Davolio
A154: 10304 | B154: 2016-02-19 | C154: Tortuga Restaurante | D154: Mexico | E154: Fløtemysost | F154: Dairy Products | G154: 21.5 | H154: 2 | I154: 0 | J154: 43 | K154: Nancy Davolio
A155: 10305 | B155: 2016-02-20 | C155: Old World Delicatessen | D155: USA | E155: Chartreuse verte | F155: Beverages | G155: 18 | H155: 30 | I155: 0.1 | J155: 486 | K155: Laura Callahan
A156: 10305 | B156: 2016-02-20 | C156: Old World Delicatessen | D156: USA | E156: Thüringer Rostbratwurst | F156: Meat/Poultry | G156: 123.79 | H156: 25 | I156: 0.1 | J156: 2785.28 | K156: Laura Callahan
A157: 10305 | B157: 2016-02-20 | C157: Old World Delicatessen | D157: USA | E157: Carnarvon Tigers | F157: Seafood | G157: 62.5 | H157: 25 | I157: 0.1 | J157: 1406.25 | K157: Laura Callahan
A158: 10306 | B158: 2016-02-23 | C158: Romero y tomillo | D158: Spain | E158: Nord-Ost Matjeshering | F158: Seafood | G158: 25.89 | H158: 10 | I158: 0 | J158: 258.9 | K158: Nancy Davolio
A159: 10306 | B159: 2016-02-23 | C159: Romero y tomillo | D159: Spain | E159: Perth Pasties | F159: Meat/Poultry | G159: 32.8 | H159: 10 | I159: 0 | J159: 328 | K159: Nancy Davolio
A160: 10306 | B160: 2016-02-23 | C160: Romero y tomillo | D160: Spain | E160: Tourtière | F160: Meat/Poultry | G160: 7.45 | H160: 5 | I160: 0 | J160: 37.25 | K160: Nancy Davolio
A161: 10307 | B161: 2016-02-24 | C161: Lonesome Pine Restaurant | D161: USA | E161: Tarte au sucre | F161: Confections | G161: 49.3 | H161: 10 | I161: 0 | J161: 493 | K161: Andrew Fuller
A162: 10307 | B162: 2016-02-24 | C162: Lonesome Pine Restaurant | D162: USA | E162: Scottish Longbreads | F162: Confections | G162: 12.5 | H162: 3 | I162: 0 | J162: 37.5 | K162: Andrew Fuller
A163: 10308 | B163: 2016-02-25 | C163: Ana Trujillo Emparedados y helados | D163: Mexico | E163: Outback Lager | F163: Beverages | G163: 15 | H163: 5 | I163: 0 | J163: 75 | K163: Robert King
A164: 10308 | B164: 2016-02-25 | C164: Ana Trujillo Emparedados y helados | D164: Mexico | E164: Gudbrandsdalsost | F164: Dairy Products | G164: 36 | H164: 1 | I164: 0 | J164: 36 | K164: Robert King
A165: 10309 | B165: 2016-02-26 | C165: Hungry Owl All-Night Grocers | D165: Ireland | E165: Singaporean Hokkien Fried Mee | F165: Grains/Cereals | G165: 14 | H165: 2 | I165: 0 | J165: 28 | K165: Janet Leverling
A166: 10309 | B166: 2016-02-26 | C166: Hungry Owl All-Night Grocers | D166: Ireland | E166: Ipoh Coffee | F166: Beverages | G166: 46 | H166: 20 | I166: 0 | J166: 920 | K166: Janet Leverling
A167: 10309 | B167: 2016-02-26 | C167: Hungry Owl All-Night Grocers | D167: Ireland | E167: Grandma's Boysenberry Spread | F167: Condiments | G167: 25 | H167: 30 | I167: 0 | J167: 750 | K167: Janet Leverling
A168: 10309 | B168: 2016-02-26 | C168: Hungry Owl All-Night Grocers | D168: Ireland | E168: Chef Anton's Cajun Seasoning | F168: Condiments | G168: 22 | H168: 20 | I168: 0 | J168: 440 | K168: Janet Leverling
A169: 10309 | B169: 2016-02-26 | C169: Hungry Owl All-Night Grocers | D169: Ireland | E169: Fløtemysost | F169: Dairy Products | G169: 21.5 | H169: 3 | I169: 0 | J169: 64.5 | K169: Janet Leverling
A170: 10310 | B170: 2016-02-27 | C170: The Big Cheese | D170: USA | E170: Pavlova | F170: Confections | G170: 17.45 | H170: 10 | I170: 0 | J170: 174.5 | K170: Laura Callahan
A171: 10310 | B171: 2016-02-27 | C171: The Big Cheese | D171: USA | E171: Tarte au sucre | F171: Confections | G171: 49.3 | H171: 5 | I171: 0 | J171: 246.5 | K171: Laura Callahan
A172: 10311 | B172: 2016-02-27 | C172: Du monde entier | D172: France | E172: Gudbrandsdalsost | F172: Dairy Products | G172: 36 | H172: 7 | I172: 0 | J172: 252 | K172: Nancy Davolio
A173: 10311 | B173: 2016-02-27 | C173: Du monde entier | D173: France | E173: Singaporean Hokkien Fried Mee | F173: Grains/Cereals | G173: 14 | H173: 6 | I173: 0 | J173: 84 | K173: Nancy Davolio
A174: 10312 | B174: 2016-03-01 | C174: Die Wandernde Kuh | D174: Germany | E174: Rhönbräu Klosterbier | F174: Beverages | G174: 7.75 | H174: 10 | I174: 0 | J174: 77.5 | K174: Andrew Fuller
A175: 10312 | B175: 2016-03-01 | C175: Die Wandernde Kuh | D175: Germany | E175: Rössle Sauerkraut | F175: Produce | G175: 45.6 | H175: 4 | I175: 0 | J175: 182.4 | K175: Andrew Fuller
A176: 10312 | B176: 2016-03-01 | C176: Die Wandernde Kuh | D176: Germany | E176: Ipoh Coffee | F176: Beverages | G176: 46 | H176: 24 | I176: 0 | J176: 1104 | K176: Andrew Fuller
A177: 10312 | B177: 2016-03-01 | C177: Die Wandernde Kuh | D177: Germany | E177: Perth Pasties | F177: Meat/Poultry | G177: 32.8 | H177: 20 | I177: 0 | J177: 656 | K177: Andrew Fuller
A178: 10313 | B178: 2016-03-02 | C178: QUICK-Stop | D178: Germany | E178: Inlagd Sill | F178: Seafood | G178: 19 | H178: 12 | I178: 0 | J178: 228 | K178: Andrew Fuller
A179: 10314 | B179: 2016-03-03 | C179: Rattlesnake Canyon Grocery | D179: USA | E179: Tarte au sucre | F179: Confections | G179: 49.3 | H179: 25 | I179: 0.1 | J179: 1109.25 | K179: Nancy Davolio
A180: 10314 | B180: 2016-03-03 | C180: Rattlesnake Canyon Grocery | D180: USA | E180: Escargots de Bourgogne | F180: Seafood | G180: 13.25 | H180: 30 | I180: 0.1 | J180: 357.75 | K180: Nancy Davolio
A181: 10314 | B181: 2016-03-03 | C181: Rattlesnake Canyon Grocery | D181: USA | E181: Mascarpone Fabioli | F181: Dairy Products | G181: 32 | H181: 40 | I181: 0.1 | J181: 1152 | K181: Nancy Davolio
A182: 10315 | B182: 2016-03-04 | C182: Island Trading | D182: UK | E182: Outback Lager | F182: Beverages | G182: 15 | H182: 30 | I182: 0 | J182: 450 | K182: Margaret Peacock
A183: 10315 | B183: 2016-03-04 | C183: Island Trading | D183: UK | E183: Sasquatch Ale | F183: Beverages | G183: 14 | H183: 14 | I183: 0 | J183: 196 | K183: Margaret Peacock
A184: 10316 | B184: 2016-03-05 | C184: Rattlesnake Canyon Grocery | D184: USA | E184: Tarte au sucre | F184: Confections | G184: 49.3 | H184: 70 | I184: 0 | J184: 3451 | K184: Nancy Davolio
A185: 10316 | B185: 2016-03-05 | C185: Rattlesnake Canyon Grocery | D185: USA | E185: Jack's New England Clam Chowder | F185: Seafood | G185: 9.65 | H185: 10 | I185: 0 | J185: 96.5 | K185: Nancy Davolio
A186: 10317 | B186: 2016-03-08 | C186: Lonesome Pine Restaurant | D186: USA | E186: Chai | F186: Beverages | G186: 18 | H186: 20 | I186: 0 | J186: 360 | K186: Michael Suyama
A187: 10318 | B187: 2016-03-09 | C187: Island Trading | D187: UK | E187: Jack's New England Clam Chowder | F187: Seafood | G187: 9.65 | H187: 20 | I187: 0 | J187: 193 | K187: Laura Callahan
A188: 10318 | B188: 2016-03-09 | C188: Island Trading | D188: UK | E188: Lakkalikööri | F188: Beverages | G188: 18 | H188: 6 | I188: 0 | J188: 108 | K188: Laura Callahan
A189: 10319 | B189: 2016-03-10 | C189: Tortuga Restaurante | D189: Mexico | E189: Alice Mutton | F189: Meat/Poultry | G189: 39 | H189: 8 | I189: 0 | J189: 312 | K189: Robert King
A190: 10319 | B190: 2016-03-10 | C190: Tortuga Restaurante | D190: Mexico | E190: Rössle Sauerkraut | F190: Produce | G190: 45.6 | H190: 14 | I190: 0 | J190: 638.4 | K190: Robert King
A191: 10319 | B191: 2016-03-10 | C191: Tortuga Restaurante | D191: Mexico | E191: Lakkalikööri | F191: Beverages | G191: 18 | H191: 30 | I191: 0 | J191: 540 | K191: Robert King
A192: 10320 | B192: 2016-03-11 | C192: Wartian Herkku | D192: Finland | E192: Fløtemysost | F192: Dairy Products | G192: 21.5 | H192: 30 | I192: 0 | J192: 645 | K192: Steven Buchanan
A193: 10321 | B193: 2016-03-11 | C193: Island Trading | D193: UK | E193: Steeleye Stout | F193: Beverages | G193: 18 | H193: 10 | I193: 0 | J193: 180 | K193: Janet Leverling
A194: 10322 | B194: 2016-03-12 | C194: Pericles Comidas clásicas | D194: Mexico | E194: Filo Mix | F194: Grains/Cereals | G194: 7 | H194: 20 | I194: 0 | J194: 140 | K194: Robert King
A195: 10323 | B195: 2016-03-15 | C195: Königlich Essen | D195: Germany | E195: NuNuCa Nuß-Nougat-Creme | F195: Confections | G195: 14 | H195: 4 | I195: 0 | J195: =ROUND((G195*H195)*(1-I195),2) -> 56 | K195: Margaret Peacock
A196: 10323 | B196: 2016-03-15 | C196: Königlich Essen | D196: Germany | E196: Genen Shouyu | F196: Condiments | G196: 15.5 | H196: 5 | I196: 0 | J196: 77.5 | K196: Margaret Peacock
A197: 10323 | B197: 2016-03-15 | C197: Königlich Essen | D197: Germany | E197: Chartreuse verte | F197: Beverages | G197: 18 | H197: 4 | I197: 0 | J197: 72 | K197: Margaret Peacock
A198: 10324 | B198: 2016-03-16 | C198: Save-a-lot Markets | D198: USA | E198: Spegesild | F198: Seafood | G198: 12 | H198: 30 | I198: 0 | J198: 360 | K198: Anne Dodsworth
A199: 10324 | B199: 2016-03-16 | C199: Save-a-lot Markets | D199: USA | E199: Vegie-spread | F199: Condiments | G199: 43.9 | H199: 80 | I199: 0.15 | J199: 2985.2 | K199: Anne Dodsworth
A200: 10324 | B200: 2016-03-16 | C200: Save-a-lot Markets | D200: USA | E200: Raclette Courdavault | F200: Dairy Products | G200: 55 | H200: 40 | I200: 0.15 | J200: 1870 | K200: Anne Dodsworth
... 121 more rows

Sheet Cambridge
A1: Order ID | B1: Order Date | C1: Customer Name | D1: Country | E1: Product Name | F1: Product Category | G1: Unit Price | H1: Units Sold | I1: Discount | J1: Total Sales Value | K1: Sales Rep
A2: 10248 | B2: 2015-12-11 | C2: Vins et alcools Chevalier | D2: France | E2: Mozzarella di Giovanni | F2: Dairy Products | G2: 34.8 | H2: 5 | I2: 0 | J2: =ROUND((G2*H2)*(1-I2),2) -> 174 | K2: Steven Buchanan
A3: 10248 | B3: 2015-12-11 | C3: Vins et alcools Chevalier | D3: France | E3: Singaporean Hokkien Fried Mee | F3: Grains/Cereals | G3: 14 | H3: 10 | I3: 0 | J3: =ROUND((G3*H3)*(1-I3),2) -> 140 | K3: Steven Buchanan
A4: 10248 | B4: 2015-12-11 | C4: Vins et alcools Chevalier | D4: France | E4: Queso Cabrales | F4: Dairy Products | G4: 21 | H4: 12 | I4: 0 | J4: 252 | K4: Steven Buchanan
A5: 10249 | B5: 2015-12-12 | C5: Toms Spezialitäten | D5: Germany | E5: Manjimup Dried Apples | F5: Produce | G5: 53 | H5: 40 | I5: 0 | J5: 2120 | K5: Michael Suyama
A6: 10249 | B6: 2015-12-12 | C6: Toms Spezialitäten | D6: Germany | E6: Tofu | F6: Produce | G6: 23.25 | H6: 9 | I6: 0 | J6: 209.25 | K6: Michael Suyama
A7: 10250 | B7: 2015-12-15 | C7: Hanari Carnes | D7: Brazil | E7: Manjimup Dried Apples | F7: Produce | G7: 53 | H7: 35 | I7: 0.15 | J7: 1576.75 | K7: Margaret Peacock
A8: 10250 | B8: 2015-12-15 | C8: Hanari Carnes | D8: Brazil | E8: Jack's New England Clam Chowder | F8: Seafood | G8: 9.65 | H8: 10 | I8: 0 | J8: 96.5 | K8: Margaret Peacock
A9: 10250 | B9: 2015-12-15 | C9: Hanari Carnes | D9: Brazil | E9: Louisiana Fiery Hot Pepper Sauce | F9: Condiments | G9: 21.05 | H9: 15 | I9: 0.15 | J9: 268.39 | K9: Margaret Peacock
A10: 10251 | B10: 2015-12-15 | C10: Victuailles en stock | D10: France | E10: Gustaf's Knäckebröd | F10: Grains/Cereals | G10: 21 | H10: 6 | I10: 0.05 | J10: 119.7 | K10: Janet Leverling
A11: 10251 | B11: 2015-12-15 | C11: Victuailles en stock | D11: France | E11: Louisiana Fiery Hot Pepper Sauce | F11: Condiments | G11: 21.05 | H11: 20 | I11: 0 | J11: 421 | K11: Janet Leverling
A12: 10251 | B12: 2015-12-15 | C12: Victuailles en stock | D12: France | E12: Ravioli Angelo | F12: Grains/Cereals | G12: 19.5 | H12: 15 | I12: 0.05 | J12: 277.88 | K12: Janet Leverling
A13: 10252 | B13: 2015-12-16 | C13: Suprêmes délices | D13: Belgium | E13: Geitost | F13: Dairy Products | G13: 2.5 | H13: 25 | I13: 0.05 | J13: 59.38 | K13: Margaret Peacock
A14: 10252 | B14: 2015-12-16 | C14: Suprêmes délices | D14: Belgium | E14: Camembert Pierrot | F14: Dairy Products | G14: 34 | H14: 40 | I14: 0 | J14: 1360 | K14: Margaret Peacock
A15: 10252 | B15: 2015-12-16 | C15: Suprêmes délices | D15: Belgium | E15: Sir Rodney's Marmalade | F15: Confections | G15: 81 | H15: 40 | I15: 0.05 | J15: 3078 | K15: Margaret Peacock
A16: 10253 | B16: 2015-12-17 | C16: Hanari Carnes | D16: Brazil | E16: Chartreuse verte | F16: Beverages | G16: 18 | H16: 42 | I16: 0 | J16: 756 | K16: Janet Leverling
A17: 10253 | B17: 2015-12-17 | C17: Hanari Carnes | D17: Brazil | E17: Gorgonzola Telino | F17: Dairy Products | G17: 12.5 | H17: 20 | I17: 0 | J17: 250 | K17: Janet Leverling
A18: 10253 | B18: 2015-12-17 | C18: Hanari Carnes | D18: Brazil | E18: Maxilaku | F18: Confections | G18: 20 | H18: 40 | I18: 0 | J18: 800 | K18: Janet Leverling
A19: 10254 | B19: 2015-12-18 | C19: Chop-suey Chinese | D19: Switzerland | E19: Longlife Tofu | F19: Produce | G19: 10 | H19: 21 | I19: 0 | J19: 210 | K19: Steven Buchanan
A20: 10254 | B20: 2015-12-18 | C20: Chop-suey Chinese | D20: Switzerland | E20: Pâté chinois | F20: Meat/Poultry | G20: 24 | H20: 21 | I20: 0.15 | J20: 428.4 | K20: Steven Buchanan
A21: 10254 | B21: 2015-12-18 | C21: Chop-suey Chinese | D21: Switzerland | E21: Guaraná Fantástica | F21: Beverages | G21: 4.5 | H21: 15 | I21: 0.15 | J21: 57.38 | K21: Steven Buchanan
A22: 10255 | B22: 2015-12-19 | C22: Richter Supermarkt | D22: Switzerland | E22: Chang | F22: Beverages | G22: 19 | H22: 20 | I22: 0 | J22: 380 | K22: Anne Dodsworth
A23: 10255 | B23: 2015-12-19 | C23: Richter Supermarkt | D23: Switzerland | E23: Raclette Courdavault | F23: Dairy Products | G23: 55 | H23: 30 | I23: 0 | J23: 1650 | K23: Anne Dodsworth
A24: 10255 | B24: 2015-12-19 | C24: Richter Supermarkt | D24: Switzerland | E24: Pavlova | F24: Confections | G24: 17.45 | H24: 35 | I24: 0 | J24: 610.75 | K24: Anne Dodsworth
A25: 10255 | B25: 2015-12-19 | C25: Richter Supermarkt | D25: Switzerland | E25: Inlagd Sill | F25: Seafood | G25: 19 | H25: 25 | I25: 0 | J25: 475 | K25: Anne Dodsworth
A26: 10256 | B26: 2015-12-22 | C26: Wellington Importadora | D26: Brazil | E26: Perth Pasties | F26: Meat/Poultry | G26: 32.8 | H26: 15 | I26: 0 | J26: 492 | K26: Janet Leverling
A27: 10256 | B27: 2015-12-22 | C27: Wellington Importadora | D27: Brazil | E27: Original Frankfurter grüne Soße | F27: Condiments | G27: 13 | H27: 12 | I27: 0 | J27: 156 | K27: Janet Leverling
A28: 10257 | B28: 2015-12-23 | C28: HILARIÓN-Abastos | D28: Venezuela | E28: Schoggi Schokolade | F28: Confections | G28: 43.9 | H28: 25 | I28: 0 | J28: 1097.5 | K28: Margaret Peacock
A29: 10257 | B29: 2015-12-23 | C29: HILARIÓN-Abastos | D29: Venezuela | E29: Chartreuse verte | F29: Beverages | G29: 18 | H29: 6 | I29: 0 | J29: 108 | K29: Margaret Peacock
A30: 10257 | B30: 2015-12-23 | C30: HILARIÓN-Abastos | D30: Venezuela | E30: Original Frankfurter grüne Soße | F30: Condiments | G30: 13 | H30: 15 | I30: 0 | J30: 195 | K30: Margaret Peacock
A31: 10258 | B31: 2015-12-24 | C31: Ernst Handel | D31: Austria | E31: Chef Anton's Gumbo Mix | F31: Condiments | G31: 21.35 | H31: 65 | I31: 0.2 | J31: 1110.2 | K31: Nancy Davolio
A32: 10258 | B32: 2015-12-24 | C32: Ernst Handel | D32: Austria | E32: Chang | F32: Beverages | G32: 19 | H32: 50 | I32: 0.2 | J32: 760 | K32: Nancy Davolio
A33: 10258 | B33: 2015-12-24 | C33: Ernst Handel | D33: Austria | E33: Mascarpone Fabioli | F33: Dairy Products | G33: 32 | H33: 6 | I33: 0.2 | J33: 153.6 | K33: Nancy Davolio
A34: 10259 | B34: 2015-12-25 | C34: Centro comercial Moctezuma | D34: Mexico | E34: Sir Rodney's Scones | F34: Confections | G34: 10 | H34: 10 | I34: 0 | J34: 100 | K34: Margaret Peacock
A35: 10259 | B35: 2015-12-25 | C35: Centro comercial Moctezuma | D35: Mexico | E35: Gravad lax | F35: Seafood | G35: 26 | H35: 1 | I35: 0 | J35: 26 | K35: Margaret Peacock
A36: 10260 | B36: 2015-12-26 | C36: Ottilies Käseladen | D36: Germany | E36: Outback Lager | F36: Beverages | G36: 15 | H36: 21 | I36: 0.25 | J36: 236.25 | K36: Margaret Peacock
A37: 10260 | B37: 2015-12-26 | C37: Ottilies Käseladen | D37: Germany | E37: Ravioli Angelo | F37: Grains/Cereals | G37: 19.5 | H37: 50 | I37: 0 | J37: 975 | K37: Margaret Peacock
A38: 10260 | B38: 2015-12-26 | C38: Ottilies Käseladen | D38: Germany | E38: Tarte au sucre | F38: Confections | G38: 49.3 | H38: 15 | I38: 0.25 | J38: 554.63 | K38: Margaret Peacock
A39: 10260 | B39: 2015-12-26 | C39: Ottilies Käseladen | D39: Germany | E39: Jack's New England Clam Chowder | F39: Seafood | G39: 9.65 | H39: 16 | I39: 0.25 | J39: 115.8 | K39: Margaret Peacock
A40: 10261 | B40: 2015-12-26 | C40: Que Delícia | D40: Brazil | E40: Steeleye Stout | F40: Beverages | G40: 18 | H40: 20 | I40: 0 | J40: 360 | K40: Margaret Peacock
A41: 10261 | B41: 2015-12-26 | C41: Que Delícia | D41: Brazil | E41: Sir Rodney's Scones | F41: Confections | G41: 10 | H41: 20 | I41: 0 | J41: 200 | K41: Margaret Peacock
A42: 10262 | B42: 2015-12-29 | C42: Rattlesnake Canyon Grocery | D42: USA | E42: Chef Anton's Gumbo Mix | F42: Condiments | G42: 21.35 | H42: 12 | I42: 0.2 | J42: 204.96 | K42: Laura Callahan
A43: 10262 | B43: 2015-12-29 | C43: Rattlesnake Canyon Grocery | D43: USA | E43: Uncle Bob's Organic Dried Pears | F43: Produce | G43: 30 | H43: 15 | I43: 0 | J43: 450 | K43: Laura Callahan
A44: 10262 | B44: 2015-12-29 | C44: Rattlesnake Canyon Grocery | D44: USA | E44: Gnocchi di nonna Alice | F44: Grains/Cereals | G44: 38 | H44: 2 | I44: 0 | J44: 76 | K44: Laura Callahan
A45: 10263 | B45: 2015-12-30 | C45: Ernst Handel | D45: Austria | E45: Pavlova | F45: Confections | G45: 17.45 | H45: 60 | I45: 0.25 | J45: 785.25 | K45: Anne Dodsworth
A46: 10263 | B46: 2015-12-30 | C46: Ernst Handel | D46: Austria | E46: Nord-Ost Matjeshering | F46: Seafood | G46: 25.89 | H46: 60 | I46: 0.25 | J46: 1165.05 | K46: Anne Dodsworth
A47: 10263 | B47: 2015-12-30 | C47: Ernst Handel | D47: Austria | E47: Guaraná Fantástica | F47: Beverages | G47: 4.5 | H47: 28 | I47: 0 | J47: 126 | K47: Anne Dodsworth
A48: 10263 | B48: 2015-12-30 | C48: Ernst Handel | D48: Austria | E48: Longlife Tofu | F48: Produce | G48: 10 | H48: 36 | I48: 0.25 | J48: 270 | K48: Anne Dodsworth
A49: 10264 | B49: 2015-12-31 | C49: Folk och fä HB | D49: Sweden | E49: Chang | F49: Beverages | G49: 19 | H49: 35 | I49: 0 | J49: 665 | K49: Michael Suyama
A50: 10264 | B50: 2015-12-31 | C50: Folk och fä HB | D50: Sweden | E50: Jack's New England Clam Chowder | F50: Seafood | G50: 9.65 | H50: 25 | I50: 0.15 | J50: 205.06 | K50: Michael Suyama
A51: 10265 | B51: 2016-01-01 | C51: Blondel père et fils | D51: France | E51: Alice Mutton | F51: Meat/Poultry | G51: 39 | H51: 30 | I51: 0 | J51: 1170 | K51: Andrew Fuller
A52: 10265 | B52: 2016-01-01 | C52: Blondel père et fils | D52: France | E52: Outback Lager | F52: Beverages | G52: 15 | H52: 20 | I52: 0 | J52: 300 | K52: Andrew Fuller
A53: 10266 | B53: 2016-01-02 | C53: Wartian Herkku | D53: Finland | E53: Queso Manchego La Pastora | F53: Dairy Products | G53: 38 | H53: 12 | I53: 0.05 | J53: 433.2 | K53: Janet Leverling
A54: 10267 | B54: 2016-01-05 | C54: Frankenversand | D54: Germany | E54: Lakkalikööri | F54: Beverages | G54: 18 | H54: 15 | I54: 0.15 | J54: 229.5 | K54: Margaret Peacock
A55: 10267 | B55: 2016-01-05 | C55: Frankenversand | D55: Germany | E55: Boston Crab Meat | F55: Seafood | G55: 18.4 | H55: 50 | I55: 0 | J55: 920 | K55: Margaret Peacock
A56: 10267 | B56: 2016-01-05 | C56: Frankenversand | D56: Germany | E56: Raclette Courdavault | F56: Dairy Products | G56: 55 | H56: 70 | I56: 0.15 | J56: 3272.5 | K56: Margaret Peacock
A57: 10268 | B57: 2016-01-06 | C57: GROSELLA-Restaurante | D57: Venezuela | E57: Mozzarella di Giovanni | F57: Dairy Products | G57: 34.8 | H57: 4 | I57: 0 | J57: 139.2 | K57: Laura Callahan
A58: 10268 | B58: 2016-01-06 | C58: GROSELLA-Restaurante | D58: Venezuela | E58: Thüringer Rostbratwurst | F58: Meat/Poultry | G58: 123.79 | H58: 10 | I58: 0 | J58: 1237.9 | K58: Laura Callahan
A59: 10269 | B59: 2016-01-07 | C59: White Clover Markets | D59: USA | E59: Mozzarella di Giovanni | F59: Dairy Products | G59: 34.8 | H59: 20 | I59: 0.05 | J59: 661.2 | K59: Steven Buchanan
A60: 10269 | B60: 2016-01-07 | C60: White Clover Markets | D60: USA | E60: Geitost | F60: Dairy Products | G60: 2.5 | H60: 60 | I60: 0.05 | J60: 142.5 | K60: Steven Buchanan
A61: 10270 | B61: 2016-01-08 | C61: Wartian Herkku | D61: Finland | E61: Inlagd Sill | F61: Seafood | G61: 19 | H61: 30 | I61: 0 | J61: 570 | K61: Nancy Davolio
A62: 10270 | B62: 2016-01-08 | C62: Wartian Herkku | D62: Finland | E62: Ipoh Coffee | F62: Beverages | G62: 46 | H62: 25 | I62: 0 | J62: 1150 | K62: Nancy Davolio
A63: 10271 | B63: 2016-01-08 | C63: Split Rail Beer & Ale | D63: USA | E63: Geitost | F63: Dairy Products | G63: 2.5 | H63: 24 | I63: 0 | J63: 60 | K63: Michael Suyama
A64: 10272 | B64: 2016-01-09 | C64: Rattlesnake Canyon Grocery | D64: USA | E64: Gorgonzola Telino | F64: Dairy Products | G64: 12.5 | H64: 40 | I64: 0 | J64: 500 | K64: Michael Suyama
A65: 10272 | B65: 2016-01-09 | C65: Rattlesnake Canyon Grocery | D65: USA | E65: Sir Rodney's Marmalade | F65: Confections | G65: 81 | H65: 6 | I65: 0 | J65: 486 | K65: Michael Suyama
A66: 10272 | B66: 2016-01-09 | C66: Rattlesnake Canyon Grocery | D66: USA | E66: Mozzarella di Giovanni | F66: Dairy Products | G66: 34.8 | H66: 24 | I66: 0 | J66: 835.2 | K66: Michael Suyama
A67: 10273 | B67: 2016-01-12 | C67: QUICK-Stop | D67: Germany | E67: Boston Crab Meat | F67: Seafood | G67: 18.4 | H67: 60 | I67: 0.05 | J67: =ROUND((G67*H67)*(1-I67),2) -> 1048.8 | K67: Janet Leverling
A68: 10273 | B68: 2016-01-12 | C68: QUICK-Stop | D68: Germany | E68: Geitost | F68: Dairy Products | G68: 2.5 | H68: 20 | I68: 0 | J68: 50 | K68: Janet Leverling
A69: 10273 | B69: 2016-01-12 | C69: QUICK-Stop | D69: Germany | E69: Gorgonzola Telino | F69: Dairy Products | G69: 12.5 | H69: 15 | I69: 0.05 | J69: 178.13 | K69: Janet Leverling
A70: 10273 | B70: 2016-01-12 | C70: QUICK-Stop | D70: Germany | E70: Ikura | F70: Seafood | G70: 31 | H70: 24 | I70: 0.05 | J70: 706.8 | K70: Janet Leverling
A71: 10273 | B71: 2016-01-12 | C71: QUICK-Stop | D71: Germany | E71: Lakkalikööri | F71: Beverages | G71: 18 | H71: 33 | I71: 0.05 | J71: 564.3 | K71: Janet Leverling
A72: 10274 | B72: 2016-01-13 | C72: Vins et alcools Chevalier | D72: France | E72: Fløtemysost | F72: Dairy Products | G72: 21.5 | H72: 20 | I72: 0 | J72: 430 | K72: Michael Suyama
A73: 10274 | B73: 2016-01-13 | C73: Vins et alcools Chevalier | D73: France | E73: Mozzarella di Giovanni | F73: Dairy Products | G73: 34.8 | H73: 7 | I73: 0 | J73: 243.6 | K73: Michael Suyama
A74: 10275 | B74: 2016-01-14 | C74: Magazzini Alimentari Riuniti | D74: Italy | E74: Guaraná Fantástica | F74: Beverages | G74: 4.5 | H74: 12 | I74: 0.05 | J74: 51.3 | K74: Nancy Davolio
A75: 10275 | B75: 2016-01-14 | C75: Magazzini Alimentari Riuniti | D75: Italy | E75: Raclette Courdavault | F75: Dairy Products | G75: 55 | H75: 6 | I75: 0.05 | J75: 313.5 | K75: Nancy Davolio
A76: 10276 | B76: 2016-01-15 | C76: Tortuga Restaurante | D76: Mexico | E76: Ikura | F76: Seafood | G76: 31 | H76: 15 | I76: 0 | J76: 465 | K76: Laura Callahan
A77: 10276 | B77: 2016-01-15 | C77: Tortuga Restaurante | D77: Mexico | E77: Konbu | F77: Seafood | G77: 6 | H77: 10 | I77: 0 | J77: 60 | K77: Laura Callahan
A78: 10277 | B78: 2016-01-16 | C78: Morgenstern Gesundkost | D78: Germany | E78: Rössle Sauerkraut | F78: Produce | G78: 45.6 | H78: 20 | I78: 0 | J78: 912 | K78: Andrew Fuller
A79: 10277 | B79: 2016-01-16 | C79: Morgenstern Gesundkost | D79: Germany | E79: Tarte au sucre | F79: Confections | G79: 49.3 | H79: 12 | I79: 0 | J79: 591.6 | K79: Andrew Fuller
A80: 10278 | B80: 2016-01-19 | C80: Berglunds snabbköp | D80: Sweden | E80: Raclette Courdavault | F80: Dairy Products | G80: 55 | H80: 15 | I80: 0 | J80: 825 | K80: Laura Callahan
A81: 10278 | B81: 2016-01-19 | C81: Berglunds snabbköp | D81: Sweden | E81: Röd Kaviar | F81: Seafood | G81: 15 | H81: 25 | I81: 0 | J81: 375 | K81: Laura Callahan
A82: 10278 | B82: 2016-01-19 | C82: Berglunds snabbköp | D82: Sweden | E82: Gula Malacca | F82: Condiments | G82: 19.45 | H82: 16 | I82: 0 | J82: 311.2 | K82: Laura Callahan
A83: 10278 | B83: 2016-01-19 | C83: Berglunds snabbköp | D83: Sweden | E83: Vegie-spread | F83: Condiments | G83: 43.9 | H83: 8 | I83: 0 | J83: 351.2 | K83: Laura Callahan
A84: 10279 | B84: 2016-01-20 | C84: Lehmanns Marktstand | D84: Germany | E84: Alice Mutton | F84: Meat/Poultry | G84: 39 | H84: 15 | I84: 0.25 | J84: 438.75 | K84: Laura Callahan
A85: 10280 | B85: 2016-01-21 | C85: Berglunds snabbköp | D85: Sweden | E85: Pâté chinois | F85: Meat/Poultry | G85: 24 | H85: 20 | I85: 0 | J85: 480 | K85: Andrew Fuller
A86: 10280 | B86: 2016-01-21 | C86: Berglunds snabbköp | D86: Sweden | E86: Rhönbräu Klosterbier | F86: Beverages | G86: 7.75 | H86: 30 | I86: 0 | J86: 232.5 | K86: Andrew Fuller
A87: 10280 | B87: 2016-01-21 | C87: Berglunds snabbköp | D87: Sweden | E87: Guaraná Fantástica | F87: Beverages | G87: 4.5 | H87: 12 | I87: 0 | J87: 54 | K87: Andrew Fuller
A88: 10281 | B88: 2016-01-21 | C88: Romero y tomillo | D88: Spain | E88: Guaraná Fantástica | F88: Beverages | G88: 4.5 | H88: 6 | I88: 0 | J88: 27 | K88: Margaret Peacock
A89: 10281 | B89: 2016-01-21 | C89: Romero y tomillo | D89: Spain | E89: Steeleye Stout | F89: Beverages | G89: 18 | H89: 4 | I89: 0 | J89: 72 | K89: Margaret Peacock
A90: 10281 | B90: 2016-01-21 | C90: Romero y tomillo | D90: Spain | E90: Teatime Chocolate Biscuits | F90: Confections | G90: 9.2 | H90: 1 | I90: 0 | J90: 9.2 | K90: Margaret Peacock
A91: 10282 | B91: 2016-01-22 | C91: Romero y tomillo | D91: Spain | E91: Ravioli Angelo | F91: Grains/Cereals | G91: 19.5 | H91: 2 | I91: 0 | J91: 39 | K91: Margaret Peacock
A92: 10282 | B92: 2016-01-22 | C92: Romero y tomillo | D92: Spain | E92: Nord-Ost Matjeshering | F92: Seafood | G92: 25.89 | H92: 6 | I92: 0 | J92: 155.34 | K92: Margaret Peacock
A93: 10283 | B93: 2016-01-23 | C93: LILA-Supermercado | D93: Venezuela | E93: Teatime Chocolate Biscuits | F93: Confections | G93: 9.2 | H93: 18 | I93: 0 | J93: 165.6 | K93: Janet Leverling
A94: 10283 | B94: 2016-01-23 | C94: LILA-Supermercado | D94: Venezuela | E94: Camembert Pierrot | F94: Dairy Products | G94: 34 | H94: 35 | I94: 0 | J94: 1190 | K94: Janet Leverling
A95: 10283 | B95: 2016-01-23 | C95: LILA-Supermercado | D95: Venezuela | E95: Genen Shouyu | F95: Condiments | G95: 15.5 | H95: 20 | I95: 0 | J95: 310 | K95: Janet Leverling
A96: 10283 | B96: 2016-01-23 | C96: LILA-Supermercado | D96: Venezuela | E96: Mozzarella di Giovanni | F96: Dairy Products | G96: 34.8 | H96: 3 | I96: 0 | J96: 104.4 | K96: Janet Leverling
A97: 10284 | B97: 2016-01-26 | C97: Lehmanns Marktstand | D97: Germany | E97: Laughing Lumberjack Lager | F97: Beverages | G97: 14 | H97: 5 | I97: 0.25 | J97: 52.5 | K97: Margaret Peacock
A98: 10284 | B98: 2016-01-26 | C98: Lehmanns Marktstand | D98: Germany | E98: Gula Malacca | F98: Condiments | G98: 19.45 | H98: 21 | I98: 0 | J98: 408.45 | K98: Margaret Peacock
A99: 10284 | B99: 2016-01-26 | C99: Lehmanns Marktstand | D99: Germany | E99: Camembert Pierrot | F99: Dairy Products | G99: 34 | H99: 20 | I99: 0.25 | J99: 510 | K99: Margaret Peacock
A100: 10284 | B100: 2016-01-26 | C100: Lehmanns Marktstand | D100: Germany | E100: Schoggi Schokolade | F100: Confections | G100: 43.9 | H100: 15 | I100: 0.25 | J100: 493.88 | K100: Margaret Peacock
A101: 10285 | B101: 2016-01-27 | C101: QUICK-Stop | D101: Germany | E101: Chai | F101: Beverages | G101: 18 | H101: 45 | I101: 0.2 | J101: 648 | K101: Nancy Davolio
A102: 10285 | B102: 2016-01-27 | C102: QUICK-Stop | D102: Germany | E102: Boston Crab Meat | F102: Seafood | G102: 18.4 | H102: 40 | I102: 0.2 | J102: 588.8 | K102: Nancy Davolio
A103: 10285 | B103: 2016-01-27 | C103: QUICK-Stop | D103: Germany | E103: Perth Pasties | F103: Meat/Poultry | G103: 32.8 | H103: 36 | I103: 0.2 | J103: 944.64 | K103: Nancy Davolio
A104: 10286 | B104: 2016-01-28 | C104: QUICK-Stop | D104: Germany | E104: Tarte au sucre | F104: Confections | G104: 49.3 | H104: 40 | I104: 0 | J104: 1972 | K104: Laura Callahan
A105: 10286 | B105: 2016-01-28 | C105: QUICK-Stop | D105: Germany | E105: Steeleye Stout | F105: Beverages | G105: 18 | H105: 100 | I105: 0 | J105: 1800 | K105: Laura Callahan
A106: 10287 | B106: 2016-01-29 | C106: Ricardo Adocicados | D106: Brazil | E106: Spegesild | F106: Seafood | G106: 12 | H106: 15 | I106: 0.15 | J106: 153 | K106: Laura Callahan
A107: 10287 | B107: 2016-01-29 | C107: Ricardo Adocicados | D107: Brazil | E107: Pavlova | F107: Confections | G107: 17.45 | H107: 40 | I107: 0.15 | J107: 593.3 | K107: Laura Callahan
A108: 10287 | B108: 2016-01-29 | C108: Ricardo Adocicados | D108: Brazil | E108: Sasquatch Ale | F108: Beverages | G108: 14 | H108: 20 | I108: 0 | J108: 280 | K108: Laura Callahan
A109: 10288 | B109: 2016-01-30 | C109: Reggiani Caseifici | D109: Italy | E109: Scottish Longbreads | F109: Confections | G109: 12.5 | H109: 3 | I109: 0.1 | J109: 33.75 | K109: Margaret Peacock
A110: 10288 | B110: 2016-01-30 | C110: Reggiani Caseifici | D110: Italy | E110: Tourtière | F110: Meat/Poultry | G110: 7.45 | H110: 10 | I110: 0.1 | J110: 67.05 | K110: Margaret Peacock
A111: 10289 | B111: 2016-02-02 | C111: B's Beverages | D111: UK | E111: Aniseed Syrup | F111: Condiments | G111: 10 | H111: 30 | I111: 0 | J111: 300 | K111: Robert King
A112: 10289 | B112: 2016-02-02 | C112: B's Beverages | D112: UK | E112: Wimmers gute Semmelknödel | F112: Grains/Cereals | G112: 33.25 | H112: 9 | I112: 0 | J112: 299.25 | K112: Robert King
A113: 10290 | B113: 2016-02-03 | C113: Comércio Mineiro | D113: Brazil | E113: Original Frankfurter grüne Soße | F113: Condiments | G113: 13 | H113: 10 | I113: 0 | J113: 130 | K113: Laura Callahan
A114: 10290 | B114: 2016-02-03 | C114: Comércio Mineiro | D114: Brazil | E114: Thüringer Rostbratwurst | F114: Meat/Poultry | G114: 123.79 | H114: 15 | I114: 0 | J114: 1856.85 | K114: Laura Callahan
A115: 10290 | B115: 2016-02-03 | C115: Comércio Mineiro | D115: Brazil | E115: Maxilaku | F115: Confections | G115: 20 | H115: 15 | I115: 0 | J115: 300 | K115: Laura Callahan
A116: 10290 | B116: 2016-02-03 | C116: Comércio Mineiro | D116: Brazil | E116: Chef Anton's Gumbo Mix | F116: Condiments | G116: 21.35 | H116: 20 | I116: 0 | J116: 427 | K116: Laura Callahan
A117: 10291 | B117: 2016-02-03 | C117: Que Delícia | D117: Brazil | E117: Gula Malacca | F117: Condiments | G117: 19.45 | H117: 24 | I117: 0.1 | J117: 420.12 | K117: Michael Suyama
A118: 10291 | B118: 2016-02-03 | C118: Que Delícia | D118: Brazil | E118: Konbu | F118: Seafood | G118: 6 | H118: 20 | I118: 0.1 | J118: 108 | K118: Michael Suyama
A119: 10291 | B119: 2016-02-03 | C119: Que Delícia | D119: Brazil | E119: Manjimup Dried Apples | F119: Produce | G119: 53 | H119: 2 | I119: 0.1 | J119: 95.4 | K119: Michael Suyama
A120: 10292 | B120: 2016-02-04 | C120: Tradição Hipermercados | D120: Brazil | E120: Sir Rodney's Marmalade | F120: Confections | G120: 81 | H120: 20 | I120: 0 | J120: 1620 | K120: Nancy Davolio
A121: 10293 | B121: 2016-02-05 | C121: Tortuga Restaurante | D121: Mexico | E121: Carnarvon Tigers | F121: Seafood | G121: 62.5 | H121: 12 | I121: 0 | J121: 750 | K121: Nancy Davolio
A122: 10293 | B122: 2016-02-05 | C122: Tortuga Restaurante | D122: Mexico | E122: Rhönbräu Klosterbier | F122: Beverages | G122: 7.75 | H122: 6 | I122: 0 | J122: 46.5 | K122: Nancy Davolio
A123: 10293 | B123: 2016-02-05 | C123: Tortuga Restaurante | D123: Mexico | E123: Guaraná Fantástica | F123: Beverages | G123: 4.5 | H123: 10 | I123: 0 | J123: 45 | K123: Nancy Davolio
A124: 10293 | B124: 2016-02-05 | C124: Tortuga Restaurante | D124: Mexico | E124: Vegie-spread | F124: Condiments | G124: 43.9 | H124: 5 | I124: 0 | J124: 219.5 | K124: Nancy Davolio
A125: 10294 | B125: 2016-02-06 | C125: Rattlesnake Canyon Grocery | D125: USA | E125: Camembert Pierrot | F125: Dairy Products | G125: 34 | H125: 21 | I125: 0 | J125: 714 | K125: Margaret Peacock
A126: 10294 | B126: 2016-02-06 | C126: Rattlesnake Canyon Grocery | D126: USA | E126: Rhönbräu Klosterbier | F126: Beverages | G126: 7.75 | H126: 6 | I126: 0 | J126: 46.5 | K126: Margaret Peacock
A127: 10294 | B127: 2016-02-06 | C127: Rattlesnake Canyon Grocery | D127: USA | E127: Chai | F127: Beverages | G127: 18 | H127: 18 | I127: 0 | J127: 324 | K127: Margaret Peacock
A128: 10294 | B128: 2016-02-06 | C128: Rattlesnake Canyon Grocery | D128: USA | E128: Ipoh Coffee | F128: Beverages | G128: 46 | H128: 15 | I128: 0 | J128: 690 | K128: Margaret Peacock
A129: 10294 | B129: 2016-02-06 | C129: Rattlesnake Canyon Grocery | D129: USA | E129: Alice Mutton | F129: Meat/Poultry | G129: 39 | H129: 15 | I129: 0 | J129: 585 | K129: Margaret Peacock
A130: 10295 | B130: 2016-02-09 | C130: Vins et alcools Chevalier | D130: France | E130: Gnocchi di nonna Alice | F130: Grains/Cereals | G130: 38 | H130: 4 | I130: 0 | J130: 152 | K130: Andrew Fuller
A131: 10296 | B131: 2016-02-10 | C131: LILA-Supermercado | D131: Venezuela | E131: Gudbrandsdalsost | F131: Dairy Products | G131: 36 | H131: 15 | I131: 0 | J131: =ROUND((G131*H131)*(1-I131),2) -> 540 | K131: Michael Suyama
A132: 10296 | B132: 2016-02-10 | C132: LILA-Supermercado | D132: Venezuela | E132: Queso Cabrales | F132: Dairy Products | G132: 21 | H132: 12 | I132: 0 | J132: 252 | K132: Michael Suyama
A133: 10296 | B133: 2016-02-10 | C133: LILA-Supermercado | D133: Venezuela | E133: Pavlova | F133: Confections | G133: 17.45 | H133: 30 | I133: 0 | J133: 523.5 | K133: Michael Suyama
A134: 10297 | B134: 2016-02-11 | C134: Blondel père et fils | D134: France | E134: Mozzarella di Giovanni | F134: Dairy Products | G134: 34.8 | H134: 20 | I134: 0 | J134: 696 | K134: Steven Buchanan
A135: 10297 | B135: 2016-02-11 | C135: Blondel père et fils | D135: France | E135: Chartreuse verte | F135: Beverages | G135: 18 | H135: 60 | I135: 0 | J135: 1080 | K135: Steven Buchanan
A136: 10298 | B136: 2016-02-12 | C136: Hungry Owl All-Night Grocers | D136: Ireland | E136: Chang | F136: Beverages | G136: 19 | H136: 40 | I136: 0 | J136: 760 | K136: Michael Suyama
A137: 10298 | B137: 2016-02-12 | C137: Hungry Owl All-Night Grocers | D137: Ireland | E137: Inlagd Sill | F137: Seafood | G137: 19 | H137: 40 | I137: 0.25 | J137: 570 | K137: Michael Suyama
A138: 10298 | B138: 2016-02-12 | C138: Hungry Owl All-Night Grocers | D138: Ireland | E138: Tarte au sucre | F138: Confections | G138: 49.3 | H138: 15 | I138: 0 | J138: 739.5 | K138: Michael Suyama
A139: 10298 | B139: 2016-02-12 | C139: Hungry Owl All-Night Grocers | D139: Ireland | E139: Raclette Courdavault | F139: Dairy Products | G139: 55 | H139: 30 | I139: 0.25 | J139: 1237.5 | K139: Michael Suyama
A140: 10299 | B140: 2016-02-13 | C140: Ricardo Adocicados | D140: Brazil | E140: Outback Lager | F140: Beverages | G140: 15 | H140: 20 | I140: 0 | J140: 300 | K140: Margaret Peacock
A141: 10299 | B141: 2016-02-13 | C141: Ricardo Adocicados | D141: Brazil | E141: Teatime Chocolate Biscuits | F141: Confections | G141: 9.2 | H141: 15 | I141: 0 | J141: 138 | K141: Margaret Peacock
A142: 10300 | B142: 2016-02-16 | C142: Magazzini Alimentari Riuniti | D142: Italy | E142: Scottish Longbreads | F142: Confections | G142: 12.5 | H142: 20 | I142: 0 | J142: 250 | K142: Andrew Fuller
A143: 10300 | B143: 2016-02-16 | C143: Magazzini Alimentari Riuniti | D143: Italy | E143: Louisiana Hot Spiced Okra | F143: Condiments | G143: 17 | H143: 30 | I143: 0 | J143: 510 | K143: Andrew Fuller
A144: 10301 | B144: 2016-02-16 | C144: Die Wandernde Kuh | D144: Germany | E144: Gnocchi di nonna Alice | F144: Grains/Cereals | G144: 38 | H144: 20 | I144: 0 | J144: 760 | K144: Laura Callahan
A145: 10301 | B145: 2016-02-16 | C145: Die Wandernde Kuh | D145: Germany | E145: Boston Crab Meat | F145: Seafood | G145: 18.4 | H145: 10 | I145: 0 | J145: 184 | K145: Laura Callahan
A146: 10302 | B146: 2016-02-17 | C146: Suprêmes délices | D146: Belgium | E146: Ipoh Coffee | F146: Beverages | G146: 46 | H146: 12 | I146: 0 | J146: 552 | K146: Margaret Peacock
A147: 10302 | B147: 2016-02-17 | C147: Suprêmes délices | D147: Belgium | E147: Rössle Sauerkraut | F147: Produce | G147: 45.6 | H147: 28 | I147: 0 | J147: 1276.8 | K147: Margaret Peacock
A148: 10302 | B148: 2016-02-17 | C148: Suprêmes délices | D148: Belgium | E148: Alice Mutton | F148: Meat/Poultry | G148: 39 | H148: 40 | I148: 0 | J148: 1560 | K148: Margaret Peacock
A149: 10303 | B149: 2016-02-18 | C149: Godos Cocina Típica | D149: Spain | E149: Louisiana Fiery Hot Pepper Sauce | F149: Condiments | G149: 21.05 | H149: 30 | I149: 0.1 | J149: 568.35 | K149: Robert King
A150: 10303 | B150: 2016-02-18 | C150: Godos Cocina Típica | D150: Spain | E150: Boston Crab Meat | F150: Seafood | G150: 18.4 | H150: 40 | I150: 0.1 | J150: 662.4 | K150: Robert King
A151: 10303 | B151: 2016-02-18 | C151: Godos Cocina Típica | D151: Spain | E151: Scottish Longbreads | F151: Confections | G151: 12.5 | H151: 15 | I151: 0.1 | J151: 168.75 | K151: Robert King
A152: 10304 | B152: 2016-02-19 | C152: Tortuga Restaurante | D152: Mexico | E152: Maxilaku | F152: Confections | G152: 20 | H152: 30 | I152: 0 | J152: 600 | K152: Nancy Davolio
A153: 10304 | B153: 2016-02-19 | C153: Tortuga Restaurante | D153: Mexico | E153: Raclette Courdavault | F153: Dairy Products | G153: 55 | H153: 10 | I153: 0 | J153: 550 | K153: Nancy Davolio
A154: 10304 | B154: 2016-02-19 | C154: Tortuga Restaurante | D154: Mexico | E154: Fløtemysost | F154: Dairy Products | G154: 21.5 | H154: 2 | I154: 0 | J154: 43 | K154: Nancy Davolio
A155: 10305 | B155: 2016-02-20 | C155: Old World Delicatessen | D155: USA | E155: Chartreuse verte | F155: Beverages | G155: 18 | H155: 30 | I155: 0.1 | J155: 486 | K155: Laura Callahan
A156: 10305 | B156: 2016-02-20 | C156: Old World Delicatessen | D156: USA | E156: Thüringer Rostbratwurst | F156: Meat/Poultry | G156: 123.79 | H156: 25 | I156: 0.1 | J156: 2785.28 | K156: Laura Callahan
A157: 10305 | B157: 2016-02-20 | C157: Old World Delicatessen | D157: USA | E157: Carnarvon Tigers | F157: Seafood | G157: 62.5 | H157: 25 | I157: 0.1 | J157: 1406.25 | K157: Laura Callahan
A158: 10306 | B158: 2016-02-23 | C158: Romero y tomillo | D158: Spain | E158: Nord-Ost Matjeshering | F158: Seafood | G158: 25.89 | H158: 10 | I158: 0 | J158: 258.9 | K158: Nancy Davolio
A159: 10306 | B159: 2016-02-23 | C159: Romero y tomillo | D159: Spain | E159: Perth Pasties | F159: Meat/Poultry | G159: 32.8 | H159: 10 | I159: 0 | J159: 328 | K159: Nancy Davolio
A160: 10306 | B160: 2016-02-23 | C160: Romero y tomillo | D160: Spain | E160: Tourtière | F160: Meat/Poultry | G160: 7.45 | H160: 5 | I160: 0 | J160: 37.25 | K160: Nancy Davolio
A161: 10307 | B161: 2016-02-24 | C161: Lonesome Pine Restaurant | D161: USA | E161: Tarte au sucre | F161: Confections | G161: 49.3 | H161: 10 | I161: 0 | J161: 493 | K161: Andrew Fuller
A162: 10307 | B162: 2016-02-24 | C162: Lonesome Pine Restaurant | D162: USA | E162: Scottish Longbreads | F162: Confections | G162: 12.5 | H162: 3 | I162: 0 | J162: 37.5 | K162: Andrew Fuller
A163: 10308 | B163: 2016-02-25 | C163: Ana Trujillo Emparedados y helados | D163: Mexico | E163: Outback Lager | F163: Beverages | G163: 15 | H163: 5 | I163: 0 | J163: 75 | K163: Robert King
A164: 10308 | B164: 2016-02-25 | C164: Ana Trujillo Emparedados y helados | D164: Mexico | E164: Gudbrandsdalsost | F164: Dairy Products | G164: 36 | H164: 1 | I164: 0 | J164: 36 | K164: Robert King
A165: 10309 | B165: 2016-02-26 | C165: Hungry Owl All-Night Grocers | D165: Ireland | E165: Singaporean Hokkien Fried Mee | F165: Grains/Cereals | G165: 14 | H165: 2 | I165: 0 | J165: 28 | K165: Janet Leverling
A166: 10309 | B166: 2016-02-26 | C166: Hungry Owl All-Night Grocers | D166: Ireland | E166: Ipoh Coffee | F166: Beverages | G166: 46 | H166: 20 | I166: 0 | J166: 920 | K166: Janet Leverling
A167: 10309 | B167: 2016-02-26 | C167: Hungry Owl All-Night Grocers | D167: Ireland | E167: Grandma's Boysenberry Spread | F167: Condiments | G167: 25 | H167: 30 | I167: 0 | J167: 750 | K167: Janet Leverling
A168: 10309 | B168: 2016-02-26 | C168: Hungry Owl All-Night Grocers | D168: Ireland | E168: Chef Anton's Cajun Seasoning | F168: Condiments | G168: 22 | H168: 20 | I168: 0 | J168: 440 | K168: Janet Leverling
A169: 10309 | B169: 2016-02-26 | C169: Hungry Owl All-Night Grocers | D169: Ireland | E169: Fløtemysost | F169: Dairy Products | G169: 21.5 | H169: 3 | I169: 0 | J169: 64.5 | K169: Janet Leverling
A170: 10310 | B170: 2016-02-27 | C170: The Big Cheese | D170: USA | E170: Pavlova | F170: Confections | G170: 17.45 | H170: 10 | I170: 0 | J170: 174.5 | K170: Laura Callahan
A171: 10310 | B171: 2016-02-27 | C171: The Big Cheese | D171: USA | E171: Tarte au sucre | F171: Confections | G171: 49.3 | H171: 5 | I171: 0 | J171: 246.5 | K171: Laura Callahan
A172: 10311 | B172: 2016-02-27 | C172: Du monde entier | D172: France | E172: Gudbrandsdalsost | F172: Dairy Products | G172: 36 | H172: 7 | I172: 0 | J172: 252 | K172: Nancy Davolio
A173: 10311 | B173: 2016-02-27 | C173: Du monde entier | D173: France | E173: Singaporean Hokkien Fried Mee | F173: Grains/Cereals | G173: 14 | H173: 6 | I173: 0 | J173: 84 | K173: Nancy Davolio
A174: 10312 | B174: 2016-03-01 | C174: Die Wandernde Kuh | D174: Germany | E174: Rhönbräu Klosterbier | F174: Beverages | G174: 7.75 | H174: 10 | I174: 0 | J174: 77.5 | K174: Andrew Fuller
A175: 10312 | B175: 2016-03-01 | C175: Die Wandernde Kuh | D175: Germany | E175: Rössle Sauerkraut | F175: Produce | G175: 45.6 | H175: 4 | I175: 0 | J175: 182.4 | K175: Andrew Fuller
A176: 10312 | B176: 2016-03-01 | C176: Die Wandernde Kuh | D176: Germany | E176: Ipoh Coffee | F176: Beverages | G176: 46 | H176: 24 | I176: 0 | J176: 1104 | K176: Andrew Fuller
A177: 10312 | B177: 2016-03-01 | C177: Die Wandernde Kuh | D177: Germany | E177: Perth Pasties | F177: Meat/Poultry | G177: 32.8 | H177: 20 | I177: 0 | J177: 656 | K177: Andrew Fuller
A178: 10313 | B178: 2016-03-02 | C178: QUICK-Stop | D178: Germany | E178: Inlagd Sill | F178: Seafood | G178: 19 | H178: 12 | I178: 0 | J178: 228 | K178: Andrew Fuller
A179: 10314 | B179: 2016-03-03 | C179: Rattlesnake Canyon Grocery | D179: USA | E179: Tarte au sucre | F179: Confections | G179: 49.3 | H179: 25 | I179: 0.1 | J179: 1109.25 | K179: Nancy Davolio
A180: 10314 | B180: 2016-03-03 | C180: Rattlesnake Canyon Grocery | D180: USA | E180: Escargots de Bourgogne | F180: Seafood | G180: 13.25 | H180: 30 | I180: 0.1 | J180: 357.75 | K180: Nancy Davolio
A181: 10314 | B181: 2016-03-03 | C181: Rattlesnake Canyon Grocery | D181: USA | E181: Mascarpone Fabioli | F181: Dairy Products | G181: 32 | H181: 40 | I181: 0.1 | J181: 1152 | K181: Nancy Davolio
A182: 10315 | B182: 2016-03-04 | C182: Island Trading | D182: UK | E182: Outback Lager | F182: Beverages | G182: 15 | H182: 30 | I182: 0 | J182: 450 | K182: Margaret Peacock
A183: 10315 | B183: 2016-03-04 | C183: Island Trading | D183: UK | E183: Sasquatch Ale | F183: Beverages | G183: 14 | H183: 14 | I183: 0 | J183: 196 | K183: Margaret Peacock
A184: 10316 | B184: 2016-03-05 | C184: Rattlesnake Canyon Grocery | D184: USA | E184: Tarte au sucre | F184: Confections | G184: 49.3 | H184: 70 | I184: 0 | J184: 3451 | K184: Nancy Davolio
A185: 10316 | B185: 2016-03-05 | C185: Rattlesnake Canyon Grocery | D185: USA | E185: Jack's New England Clam Chowder | F185: Seafood | G185: 9.65 | H185: 10 | I185: 0 | J185: 96.5 | K185: Nancy Davolio
A186: 10317 | B186: 2016-03-08 | C186: Lonesome Pine Restaurant | D186: USA | E186: Chai | F186: Beverages | G186: 18 | H186: 20 | I186: 0 | J186: 360 | K186: Michael Suyama
A187: 10318 | B187: 2016-03-09 | C187: Island Trading | D187: UK | E187: Jack's New England Clam Chowder | F187: Seafood | G187: 9.65 | H187: 20 | I187: 0 | J187: 193 | K187: Laura Callahan
A188: 10318 | B188: 2016-03-09 | C188: Island Trading | D188: UK | E188: Lakkalikööri | F188: Beverages | G188: 18 | H188: 6 | I188: 0 | J188: 108 | K188: Laura Callahan
A189: 10319 | B189: 2016-03-10 | C189: Tortuga Restaurante | D189: Mexico | E189: Alice Mutton | F189: Meat/Poultry | G189: 39 | H189: 8 | I189: 0 | J189: 312 | K189: Robert King
A190: 10319 | B190: 2016-03-10 | C190: Tortuga Restaurante | D190: Mexico | E190: Rössle Sauerkraut | F190: Produce | G190: 45.6 | H190: 14 | I190: 0 | J190: 638.4 | K190: Robert King
A191: 10319 | B191: 2016-03-10 | C191: Tortuga Restaurante | D191: Mexico | E191: Lakkalikööri | F191: Beverages | G191: 18 | H191: 30 | I191: 0 | J191: 540 | K191: Robert King
A192: 10320 | B192: 2016-03-11 | C192: Wartian Herkku | D192: Finland | E192: Fløtemysost | F192: Dairy Products | G192: 21.5 | H192: 30 | I192: 0 | J192: 645 | K192: Steven Buchanan
A193: 10321 | B193: 2016-03-11 | C193: Island Trading | D193: UK | E193: Steeleye Stout | F193: Beverages | G193: 18 | H193: 10 | I193: 0 | J193: 180 | K193: Janet Leverling
A194: 10322 | B194: 2016-03-12 | C194: Pericles Comidas clásicas | D194: Mexico | E194: Filo Mix | F194: Grains/Cereals | G194: 7 | H194: 20 | I194: 0 | J194: 140 | K194: Robert King
A195: 10323 | B195: 2016-03-15 | C195: Königlich Essen | D195: Germany | E195: NuNuCa Nuß-Nougat-Creme | F195: Confections | G195: 14 | H195: 4 | I195: 0 | J195: =ROUND((G195*H195)*(1-I195),2) -> 56 | K195: Margaret Peacock
A196: 10323 | B196: 2016-03-15 | C196: Königlich Essen | D196: Germany | E196: Genen Shouyu | F196: Condiments | G196: 15.5 | H196: 5 | I196: 0 | J196: 77.5 | K196: Margaret Peacock
A197: 10323 | B197: 2016-03-15 | C197: Königlich Essen | D197: Germany | E197: Chartreuse verte | F197: Beverages | G197: 18 | H197: 4 | I197: 0 | J197: 72 | K197: Margaret Peacock
A198: 10324 | B198: 2016-03-16 | C198: Save-a-lot Markets | D198: USA | E198: Spegesild | F198: Seafood | G198: 12 | H198: 30 | I198: 0 | J198: 360 | K198: Anne Dodsworth
A199: 10324 | B199: 2016-03-16 | C199: Save-a-lot Markets | D199: USA | E199: Vegie-spread | F199: Condiments | G199: 43.9 | H199: 80 | I199: 0.15 | J199: 2985.2 | K199: Anne Dodsworth
A200: 10324 | B200: 2016-03-16 | C200: Save-a-lot Markets | D200: USA | E200: Raclette Courdavault | F200: Dairy Products | G200: 55 | H200: 40 | I200: 0.15 | J200: 1870 | K200: Anne Dodsworth
... 300 more rows

Sheet Leicester
A1: Order ID | B1: Order Date | C1: Customer Name | D1: Country | E1: Product Name | F1: Product Category | G1: Unit Price | H1: Units Sold | I1: Discount | J1: Total Sales Value | K1: Sales Rep
A2: 10248 | B2: 2015-12-11 | C2: Vins et alcools Chevalier | D2: France | E2: Mozzarella di Giovanni | F2: Dairy Products | G2: 34.8 | H2: 5 | I2: 0 | J2: =ROUND((G2*H2)*(1-I2),2) -> 174 | K2: Steven Buchanan
A3: 10248 | B3: 2015-12-11 | C3: Vins et alcools Chevalier | D3: France | E3: Singaporean Hokkien Fried Mee | F3: Grains/Cereals | G3: 14 | H3: 10 | I3: 0 | J3: =ROUND((G3*H3)*(1-I3),2) -> 140 | K3: Steven Buchanan
A4: 10248 | B4: 2015-12-11 | C4: Vins et alcools Chevalier | D4: France | E4: Queso Cabrales | F4: Dairy Products | G4: 21 | H4: 12 | I4: 0 | J4: 252 | K4: Steven Buchanan
A5: 10249 | B5: 2015-12-12 | C5: Toms Spezialitäten | D5: Germany | E5: Manjimup Dried Apples | F5: Produce | G5: 53 | H5: 40 | I5: 0 | J5: 2120 | K5: Michael Suyama
A6: 10249 | B6: 2015-12-12 | C6: Toms Spezialitäten | D6: Germany | E6: Tofu | F6: Produce | G6: 23.25 | H6: 9 | I6: 0 | J6: 209.25 | K6: Michael Suyama
A7: 10250 | B7: 2015-12-15 | C7: Hanari Carnes | D7: Brazil | E7: Manjimup Dried Apples | F7: Produce | G7: 53 | H7: 35 | I7: 0.15 | J7: 1576.75 | K7: Margaret Peacock
A8: 10250 | B8: 2015-12-15 | C8: Hanari Carnes | D8: Brazil | E8: Jack's New England Clam Chowder | F8: Seafood | G8: 9.65 | H8: 10 | I8: 0 | J8: 96.5 | K8: Margaret Peacock
A9: 10250 | B9: 2015-12-15 | C9: Hanari Carnes | D9: Brazil | E9: Louisiana Fiery Hot Pepper Sauce | F9: Condiments | G9: 21.05 | H9: 15 | I9: 0.15 | J9: 268.39 | K9: Margaret Peacock
A10: 10251 | B10: 2015-12-15 | C10: Victuailles en stock | D10: France | E10: Gustaf's Knäckebröd | F10: Grains/Cereals | G10: 21 | H10: 6 | I10: 0.05 | J10: 119.7 | K10: Janet Leverling
A11: 10251 | B11: 2015-12-15 | C11: Victuailles en stock | D11: France | E11: Louisiana Fiery Hot Pepper Sauce | F11: Condiments | G11: 21.05 | H11: 20 | I11: 0 | J11: 421 | K11: Janet Leverling
A12: 10251 | B12: 2015-12-15 | C12: Victuailles en stock | D12: France | E12: Ravioli Angelo | F12: Grains/Cereals | G12: 19.5 | H12: 15 | I12: 0.05 | J12: 277.88 | K12: Janet Leverling
A13: 10252 | B13: 2015-12-16 | C13: Suprêmes délices | D13: Belgium | E13: Geitost | F13: Dairy Products | G13: 2.5 | H13: 25 | I13: 0.05 | J13: 59.38 | K13: Margaret Peacock
A14: 10252 | B14: 2015-12-16 | C14: Suprêmes délices | D14: Belgium | E14: Camembert Pierrot | F14: Dairy Products | G14: 34 | H14: 40 | I14: 0 | J14: 1360 | K14: Margaret Peacock
A15: 10252 | B15: 2015-12-16 | C15: Suprêmes délices | D15: Belgium | E15: Sir Rodney's Marmalade | F15: Confections | G15: 81 | H15: 40 | I15: 0.05 | J15: 3078 | K15: Margaret Peacock
A16: 10253 | B16: 2015-12-17 | C16: Hanari Carnes | D16: Brazil | E16: Chartreuse verte | F16: Beverages | G16: 18 | H16: 42 | I16: 0 | J16: 756 | K16: Janet Leverling
A17: 10253 | B17: 2015-12-17 | C17: Hanari Carnes | D17: Brazil | E17: Gorgonzola Telino | F17: Dairy Products | G17: 12.5 | H17: 20 | I17: 0 | J17: 250 | K17: Janet Leverling
A18: 10253 | B18: 2015-12-17 | C18: Hanari Carnes | D18: Brazil | E18: Maxilaku | F18: Confections | G18: 20 | H18: 40 | I18: 0 | J18: 800 | K18: Janet Leverling
A19: 10254 | B19: 2015-12-18 | C19: Chop-suey Chinese | D19: Switzerland | E19: Longlife Tofu | F19: Produce | G19: 10 | H19: 21 | I19: 0 | J19: 210 | K19: Steven Buchanan
A20: 10254 | B20: 2015-12-18 | C20: Chop-suey Chinese | D20: Switzerland | E20: Pâté chinois | F20: Meat/Poultry | G20: 24 | H20: 21 | I20: 0.15 | J20: 428.4 | K20: Steven Buchanan
A21: 10254 | B21: 2015-12-18 | C21: Chop-suey Chinese | D21: Switzerland | E21: Guaraná Fantástica | F21: Beverages | G21: 4.5 | H21: 15 | I21: 0.15 | J21: 57.38 | K21: Steven Buchanan
A22: 10255 | B22: 2015-12-19 | C22: Richter Supermarkt | D22: Switzerland | E22: Chang | F22: Beverages | G22: 19 | H22: 20 | I22: 0 | J22: 380 | K22: Anne Dodsworth
A23: 10255 | B23: 2015-12-19 | C23: Richter Supermarkt | D23: Switzerland | E23: Raclette Courdavault | F23: Dairy Products | G23: 55 | H23: 30 | I23: 0 | J23: 1650 | K23: Anne Dodsworth
A24: 10255 | B24: 2015-12-19 | C24: Richter Supermarkt | D24: Switzerland | E24: Pavlova | F24: Confections | G24: 17.45 | H24: 35 | I24: 0 | J24: 610.75 | K24: Anne Dodsworth
A25: 10255 | B25: 2015-12-19 | C25: Richter Supermarkt | D25: Switzerland | E25: Inlagd Sill | F25: Seafood | G25: 19 | H25: 25 | I25: 0 | J25: 475 | K25: Anne Dodsworth
A26: 10256 | B26: 2015-12-22 | C26: Wellington Importadora | D26: Brazil | E26: Perth Pasties | F26: Meat/Poultry | G26: 32.8 | H26: 15 | I26: 0 | J26: 492 | K26: Janet Leverling
A27: 10256 | B27: 2015-12-22 | C27: Wellington Importadora | D27: Brazil | E27: Original Frankfurter grüne Soße | F27: Condiments | G27: 13 | H27: 12 | I27: 0 | J27: 156 | K27: Janet Leverling
A28: 10257 | B28: 2015-12-23 | C28: HILARIÓN-Abastos | D28: Venezuela | E28: Schoggi Schokolade | F28: Confections | G28: 43.9 | H28: 25 | I28: 0 | J28: 1097.5 | K28: Margaret Peacock
A29: 10257 | B29: 2015-12-23 | C29: HILARIÓN-Abastos | D29: Venezuela | E29: Chartreuse verte | F29: Beverages | G29: 18 | H29: 6 | I29: 0 | J29: 108 | K29: Margaret Peacock
A30: 10257 | B30: 2015-12-23 | C30: HILARIÓN-Abastos | D30: Venezuela | E30: Original Frankfurter grüne Soße | F30: Condiments | G30: 13 | H30: 15 | I30: 0 | J30: 195 | K30: Margaret Peacock
A31: 10258 | B31: 2015-12-24 | C31: Ernst Handel | D31: Austria | E31: Chef Anton's Gumbo Mix | F31: Condiments | G31: 21.35 | H31: 65 | I31: 0.2 | J31: 1110.2 | K31: Nancy Davolio
A32: 10258 | B32: 2015-12-24 | C32: Ernst Handel | D32: Austria | E32: Chang | F32: Beverages | G32: 19 | H32: 50 | I32: 0.2 | J32: 760 | K32: Nancy Davolio
A33: 10258 | B33: 2015-12-24 | C33: Ernst Handel | D33: Austria | E33: Mascarpone Fabioli | F33: Dairy Products | G33: 32 | H33: 6 | I33: 0.2 | J33: 153.6 | K33: Nancy Davolio
A34: 10259 | B34: 2015-12-25 | C34: Centro comercial Moctezuma | D34: Mexico | E34: Sir Rodney's Scones | F34: Confections | G34: 10 | H34: 10 | I34: 0 | J34: 100 | K34: Margaret Peacock
A35: 10259 | B35: 2015-12-25 | C35: Centro comercial Moctezuma | D35: Mexico | E35: Gravad lax | F35: Seafood | G35: 26 | H35: 1 | I35: 0 | J35: 26 | K35: Margaret Peacock
A36: 10260 | B36: 2015-12-26 | C36: Ottilies Käseladen | D36: Germany | E36: Outback Lager | F36: Beverages | G36: 15 | H36: 21 | I36: 0.25 | J36: 236.25 | K36: Margaret Peacock
A37: 10260 | B37: 2015-12-26 | C37: Ottilies Käseladen | D37: Germany | E37: Ravioli Angelo | F37: Grains/Cereals | G37: 19.5 | H37: 50 | I37: 0 | J37: 975 | K37: Margaret Peacock
A38: 10260 | B38: 2015-12-26 | C38: Ottilies Käseladen | D38: Germany | E38: Tarte au sucre | F38: Confections | G38: 49.3 | H38: 15 | I38: 0.25 | J38: 554.63 | K38: Margaret Peacock
A39: 10260 | B39: 2015-12-26 | C39: Ottilies Käseladen | D39: Germany | E39: Jack's New England Clam Chowder | F39: Seafood | G39: 9.65 | H39: 16 | I39: 0.25 | J39: 115.8 | K39: Margaret Peacock
A40: 10261 | B40: 2015-12-26 | C40: Que Delícia | D40: Brazil | E40: Steeleye Stout | F40: Beverages | G40: 18 | H40: 20 | I40: 0 | J40: 360 | K40: Margaret Peacock
A41: 10261 | B41: 2015-12-26 | C41: Que Delícia | D41: Brazil | E41: Sir Rodney's Scones | F41: Confections | G41: 10 | H41: 20 | I41: 0 | J41: 200 | K41: Margaret Peacock
A42: 10262 | B42: 2015-12-29 | C42: Rattlesnake Canyon Grocery | D42: USA | E42: Chef Anton's Gumbo Mix | F42: Condiments | G42: 21.35 | H42: 12 | I42: 0.2 | J42: 204.96 | K42: Laura Callahan
A43: 10262 | B43: 2015-12-29 | C43: Rattlesnake Canyon Grocery | D43: USA | E43: Uncle Bob's Organic Dried Pears | F43: Produce | G43: 30 | H43: 15 | I43: 0 | J43: 450 | K43: Laura Callahan
A44: 10262 | B44: 2015-12-29 | C44: Rattlesnake Canyon Grocery | D44: USA | E44: Gnocchi di nonna Alice | F44: Grains/Cereals | G44: 38 | H44: 2 | I44: 0 | J44: 76 | K44: Laura Callahan
A45: 10263 | B45: 2015-12-30 | C45: Ernst Handel | D45: Austria | E45: Pavlova | F45: Confections | G45: 17.45 | H45: 60 | I45: 0.25 | J45: 785.25 | K45: Anne Dodsworth
A46: 10263 | B46: 2015-12-30 | C46: Ernst Handel | D46: Austria | E46: Nord-Ost Matjeshering | F46: Seafood | G46: 25.89 | H46: 60 | I46: 0.25 | J46: 1165.05 | K46: Anne Dodsworth
A47: 10263 | B47: 2015-12-30 | C47: Ernst Handel | D47: Austria | E47: Guaraná Fantástica | F47: Beverages | G47: 4.5 | H47: 28 | I47: 0 | J47: 126 | K47: Anne Dodsworth
A48: 10263 | B48: 2015-12-30 | C48: Ernst Handel | D48: Austria | E48: Longlife Tofu | F48: Produce | G48: 10 | H48: 36 | I48: 0.25 | J48: 270 | K48: Anne Dodsworth
A49: 10264 | B49: 2015-12-31 | C49: Folk och fä HB | D49: Sweden | E49: Chang | F49: Beverages | G49: 19 | H49: 35 | I49: 0 | J49: 665 | K49: Michael Suyama
A50: 10264 | B50: 2015-12-31 | C50: Folk och fä HB | D50: Sweden | E50: Jack's New England Clam Chowder | F50: Seafood | G50: 9.65 | H50: 25 | I50: 0.15 | J50: 205.06 | K50: Michael Suyama
A51: 10265 | B51: 2016-01-01 | C51: Blondel père et fils | D51: France | E51: Alice Mutton | F51: Meat/Poultry | G51: 39 | H51: 30 | I51: 0 | J51: 1170 | K51: Andrew Fuller
A52: 10265 | B52: 2016-01-01 | C52: Blondel père et fils | D52: France | E52: Outback Lager | F52: Beverages | G52: 15 | H52: 20 | I52: 0 | J52: 300 | K52: Andrew Fuller
A53: 10266 | B53: 2016-01-02 | C53: Wartian Herkku | D53: Finland | E53: Queso Manchego La Pastora | F53: Dairy Products | G53: 38 | H53: 12 | I53: 0.05 | J53: 433.2 | K53: Janet Leverling
A54: 10267 | B54: 2016-01-05 | C54: Frankenversand | D54: Germany | E54: Lakkalikööri | F54: Beverages | G54: 18 | H54: 15 | I54: 0.15 | J54: 229.5 | K54: Margaret Peacock
A55: 10267 | B55: 2016-01-05 | C55: Frankenversand | D55: Germany | E55: Boston Crab Meat | F55: Seafood | G55: 18.4 | H55: 50 | I55: 0 | J55: 920 | K55: Margaret Peacock
A56: 10267 | B56: 2016-01-05 | C56: Frankenversand | D56: Germany | E56: Raclette Courdavault | F56: Dairy Products | G56: 55 | H56: 70 | I56: 0.15 | J56: 3272.5 | K56: Margaret Peacock
A57: 10268 | B57: 2016-01-06 | C57: GROSELLA-Restaurante | D57: Venezuela | E57: Mozzarella di Giovanni | F57: Dairy Products | G57: 34.8 | H57: 4 | I57: 0 | J57: 139.2 | K57: Laura Callahan
A58: 10268 | B58: 2016-01-06 | C58: GROSELLA-Restaurante | D58: Venezuela | E58: Thüringer Rostbratwurst | F58: Meat/Poultry | G58: 123.79 | H58: 10 | I58: 0 | J58: 1237.9 | K58: Laura Callahan
A59: 10269 | B59: 2016-01-07 | C59: White Clover Markets | D59: USA | E59: Mozzarella di Giovanni | F59: Dairy Products | G59: 34.8 | H59: 20 | I59: 0.05 | J59: 661.2 | K59: Steven Buchanan
A60: 10269 | B60: 2016-01-07 | C60: White Clover Markets | D60: USA | E60: Geitost | F60: Dairy Products | G60: 2.5 | H60: 60 | I60: 0.05 | J60: 142.5 | K60: Steven Buchanan
A61: 10270 | B61: 2016-01-08 | C61: Wartian Herkku | D61: Finland | E61: Inlagd Sill | F61: Seafood | G61: 19 | H61: 30 | I61: 0 | J61: 570 | K61: Nancy Davolio
A62: 10270 | B62: 2016-01-08 | C62: Wartian Herkku | D62: Finland | E62: Ipoh Coffee | F62: Beverages | G62: 46 | H62: 25 | I62: 0 | J62: 1150 | K62: Nancy Davolio
A63: 10271 | B63: 2016-01-08 | C63: Split Rail Beer & Ale | D63: USA | E63: Geitost | F63: Dairy Products | G63: 2.5 | H63: 24 | I63: 0 | J63: 60 | K63: Michael Suyama
A64: 10272 | B64: 2016-01-09 | C64: Rattlesnake Canyon Grocery | D64: USA | E64: Gorgonzola Telino | F64: Dairy Products | G64: 12.5 | H64: 40 | I64: 0 | J64: 500 | K64: Michael Suyama
A65: 10272 | B65: 2016-01-09 | C65: Rattlesnake Canyon Grocery | D65: USA | E65: Sir Rodney's Marmalade | F65: Confections | G65: 81 | H65: 6 | I65: 0 | J65: 486 | K65: Michael Suyama
A66: 10272 | B66: 2016-01-09 | C66: Rattlesnake Canyon Grocery | D66: USA | E66: Mozzarella di Giovanni | F66: Dairy Products | G66: 34.8 | H66: 24 | I66: 0 | J66: 835.2 | K66: Michael Suyama
A67: 10273 | B67: 2016-01-12 | C67: QUICK-Stop | D67: Germany | E67: Boston Crab Meat | F67: Seafood | G67: 18.4 | H67: 60 | I67: 0.05 | J67: =ROUND((G67*H67)*(1-I67),2) -> 1048.8 | K67: Janet Leverling
A68: 10273 | B68: 2016-01-12 | C68: QUICK-Stop | D68: Germany | E68: Geitost | F68: Dairy Products | G68: 2.5 | H68: 20 | I68: 0 | J68: 50 | K68: Janet Leverling
A69: 10273 | B69: 2016-01-12 | C69: QUICK-Stop | D69: Germany | E69: Gorgonzola Telino | F69: Dairy Products | G69: 12.5 | H69: 15 | I69: 0.05 | J69: 178.13 | K69: Janet Leverling
A70: 10273 | B70: 2016-01-12 | C70: QUICK-Stop | D70: Germany | E70: Ikura | F70: Seafood | G70: 31 | H70: 24 | I70: 0.05 | J70: 706.8 | K70: Janet Leverling
A71: 10273 | B71: 2016-01-12 | C71: QUICK-Stop | D71: Germany | E71: Lakkalikööri | F71: Beverages | G71: 18 | H71: 33 | I71: 0.05 | J71: 564.3 | K71: Janet Leverling
A72: 10274 | B72: 2016-01-13 | C72: Vins et alcools Chevalier | D72: France | E72: Fløtemysost | F72: Dairy Products | G72: 21.5 | H72: 20 | I72: 0 | J72: 430 | K72: Michael Suyama
A73: 10274 | B73: 2016-01-13 | C73: Vins et alcools Chevalier | D73: France | E73: Mozzarella di Giovanni | F73: Dairy Products | G73: 34.8 | H73: 7 | I73: 0 | J73: 243.6 | K73: Michael Suyama
A74: 10275 | B74: 2016-01-14 | C74: Magazzini Alimentari Riuniti | D74: Italy | E74: Guaraná Fantástica | F74: Beverages | G74: 4.5 | H74: 12 | I74: 0.05 | J74: 51.3 | K74: Nancy Davolio
A75: 10275 | B75: 2016-01-14 | C75: Magazzini Alimentari Riuniti | D75: Italy | E75: Raclette Courdavault | F75: Dairy Products | G75: 55 | H75: 6 | I75: 0.05 | J75: 313.5 | K75: Nancy Davolio
A76: 10276 | B76: 2016-01-15 | C76: Tortuga Restaurante | D76: Mexico | E76: Ikura | F76: Seafood | G76: 31 | H76: 15 | I76: 0 | J76: 465 | K76: Laura Callahan
A77: 10276 | B77: 2016-01-15 | C77: Tortuga Restaurante | D77: Mexico | E77: Konbu | F77: Seafood | G77: 6 | H77: 10 | I77: 0 | J77: 60 | K77: Laura Callahan
A78: 10277 | B78: 2016-01-16 | C78: Morgenstern Gesundkost | D78: Germany | E78: Rössle Sauerkraut | F78: Produce | G78: 45.6 | H78: 20 | I78: 0 | J78: 912 | K78: Andrew Fuller
A79: 10277 | B79: 2016-01-16 | C79: Morgenstern Gesundkost | D79: Germany | E79: Tarte au sucre | F79: Confections | G79: 49.3 | H79: 12 | I79: 0 | J79: 591.6 | K79: Andrew Fuller
A80: 10278 | B80: 2016-01-19 | C80: Berglunds snabbköp | D80: Sweden | E80: Raclette Courdavault | F80: Dairy Products | G80: 55 | H80: 15 | I80: 0 | J80: 825 | K80: Laura Callahan
A81: 10278 | B81: 2016-01-19 | C81: Berglunds snabbköp | D81: Sweden | E81: Röd Kaviar | F81: Seafood | G81: 15 | H81: 25 | I81: 0 | J81: 375 | K81: Laura Callahan
A82: 10278 | B82: 2016-01-19 | C82: Berglunds snabbköp | D82: Sweden | E82: Gula Malacca | F82: Condiments | G82: 19.45 | H82: 16 | I82: 0 | J82: 311.2 | K82: Laura Callahan
A83: 10278 | B83: 2016-01-19 | C83: Berglunds snabbköp | D83: Sweden | E83: Vegie-spread | F83: Condiments | G83: 43.9 | H83: 8 | I83: 0 | J83: 351.2 | K83: Laura Callahan
A84: 10279 | B84: 2016-01-20 | C84: Lehmanns Marktstand | D84: Germany | E84: Alice Mutton | F84: Meat/Poultry | G84: 39 | H84: 15 | I84: 0.25 | J84: 438.75 | K84: Laura Callahan
A85: 10280 | B85: 2016-01-21 | C85: Berglunds snabbköp | D85: Sweden | E85: Pâté chinois | F85: Meat/Poultry | G85: 24 | H85: 20 | I85: 0 | J85: 480 | K85: Andrew Fuller
A86: 10280 | B86: 2016-01-21 | C86: Berglunds snabbköp | D86: Sweden | E86: Rhönbräu Klosterbier | F86: Beverages | G86: 7.75 | H86: 30 | I86: 0 | J86: 232.5 | K86: Andrew Fuller
A87: 10280 | B87: 2016-01-21 | C87: Berglunds snabbköp | D87: Sweden | E87: Guaraná Fantástica | F87: Beverages | G87: 4.5 | H87: 12 | I87: 0 | J87: 54 | K87: Andrew Fuller
A88: 10281 | B88: 2016-01-21 | C88: Romero y tomillo | D88: Spain | E88: Guaraná Fantástica | F88: Beverages | G88: 4.5 | H88: 6 | I88: 0 | J88: 27 | K88: Margaret Peacock
A89: 10281 | B89: 2016-01-21 | C89: Romero y tomillo | D89: Spain | E89: Steeleye Stout | F89: Beverages | G89: 18 | H89: 4 | I89: 0 | J89: 72 | K89: Margaret Peacock
A90: 10281 | B90: 2016-01-21 | C90: Romero y tomillo | D90: Spain | E90: Teatime Chocolate Biscuits | F90: Confections | G90: 9.2 | H90: 1 | I90: 0 | J90: 9.2 | K90: Margaret Peacock
A91: 10282 | B91: 2016-01-22 | C91: Romero y tomillo | D91: Spain | E91: Ravioli Angelo | F91: Grains/Cereals | G91: 19.5 | H91: 2 | I91: 0 | J91: 39 | K91: Margaret Peacock
A92: 10282 | B92: 2016-01-22 | C92: Romero y tomillo | D92: Spain | E92: Nord-Ost Matjeshering | F92: Seafood | G92: 25.89 | H92: 6 | I92: 0 | J92: 155.34 | K92: Margaret Peacock
A93: 10283 | B93: 2016-01-23 | C93: LILA-Supermercado | D93: Venezuela | E93: Teatime Chocolate Biscuits | F93: Confections | G93: 9.2 | H93: 18 | I93: 0 | J93: 165.6 | K93: Janet Leverling
A94: 10283 | B94: 2016-01-23 | C94: LILA-Supermercado | D94: Venezuela | E94: Camembert Pierrot | F94: Dairy Products | G94: 34 | H94: 35 | I94: 0 | J94: 1190 | K94: Janet Leverling
A95: 10283 | B95: 2016-01-23 | C95: LILA-Supermercado | D95: Venezuela | E95: Genen Shouyu | F95: Condiments | G95: 15.5 | H95: 20 | I95: 0 | J95: 310 | K95: Janet Leverling
A96: 10283 | B96: 2016-01-23 | C96: LILA-Supermercado | D96: Venezuela | E96: Mozzarella di Giovanni | F96: Dairy Products | G96: 34.8 | H96: 3 | I96: 0 | J96: 104.4 | K96: Janet Leverling
A97: 10284 | B97: 2016-01-26 | C97: Lehmanns Marktstand | D97: Germany | E97: Laughing Lumberjack Lager | F97: Beverages | G97: 14 | H97: 5 | I97: 0.25 | J97: 52.5 | K97: Margaret Peacock
A98: 10284 | B98: 2016-01-26 | C98: Lehmanns Marktstand | D98: Germany | E98: Gula Malacca | F98: Condiments | G98: 19.45 | H98: 21 | I98: 0 | J98: 408.45 | K98: Margaret Peacock
A99: 10284 | B99: 2016-01-26 | C99: Lehmanns Marktstand | D99: Germany | E99: Camembert Pierrot | F99: Dairy Products | G99: 34 | H99: 20 | I99: 0.25 | J99: 510 | K99: Margaret Peacock
A100: 10284 | B100: 2016-01-26 | C100: Lehmanns Marktstand | D100: Germany | E100: Schoggi Schokolade | F100: Confections | G100: 43.9 | H100: 15 | I100: 0.25 | J100: 493.88 | K100: Margaret Peacock
A101: 10285 | B101: 2016-01-27 | C101: QUICK-Stop | D101: Germany | E101: Chai | F101: Beverages | G101: 18 | H101: 45 | I101: 0.2 | J101: 648 | K101: Nancy Davolio
A102: 10285 | B102: 2016-01-27 | C102: QUICK-Stop | D102: Germany | E102: Boston Crab Meat | F102: Seafood | G102: 18.4 | H102: 40 | I102: 0.2 | J102: 588.8 | K102: Nancy Davolio
A103: 10285 | B103: 2016-01-27 | C103: QUICK-Stop | D103: Germany | E103: Perth Pasties | F103: Meat/Poultry | G103: 32.8 | H103: 36 | I103: 0.2 | J103: 944.64 | K103: Nancy Davolio
A104: 10286 | B104: 2016-01-28 | C104: QUICK-Stop | D104: Germany | E104: Tarte au sucre | F104: Confections | G104: 49.3 | H104: 40 | I104: 0 | J104: 1972 | K104: Laura Callahan
A105: 10286 | B105: 2016-01-28 | C105: QUICK-Stop | D105: Germany | E105: Steeleye Stout | F105: Beverages | G105: 18 | H105: 100 | I105: 0 | J105: 1800 | K105: Laura Callahan
A106: 10287 | B106: 2016-01-29 | C106: Ricardo Adocicados | D106: Brazil | E106: Spegesild | F106: Seafood | G106: 12 | H106: 15 | I106: 0.15 | J106: 153 | K106: Laura Callahan
A107: 10287 | B107: 2016-01-29 | C107: Ricardo Adocicados | D107: Brazil | E107: Pavlova | F107: Confections | G107: 17.45 | H107: 40 | I107: 0.15 | J107: 593.3 | K107: Laura Callahan
A108: 10287 | B108: 2016-01-29 | C108: Ricardo Adocicados | D108: Brazil | E108: Sasquatch Ale | F108: Beverages | G108: 14 | H108: 20 | I108: 0 | J108: 280 | K108: Laura Callahan
A109: 10288 | B109: 2016-01-30 | C109: Reggiani Caseifici | D109: Italy | E109: Scottish Longbreads | F109: Confections | G109: 12.5 | H109: 3 | I109: 0.1 | J109: 33.75 | K109: Margaret Peacock
A110: 10288 | B110: 2016-01-30 | C110: Reggiani Caseifici | D110: Italy | E110: Tourtière | F110: Meat/Poultry | G110: 7.45 | H110: 10 | I110: 0.1 | J110: 67.05 | K110: Margaret Peacock
A111: 10289 | B111: 2016-02-02 | C111: B's Beverages | D111: UK | E111: Aniseed Syrup | F111: Condiments | G111: 10 | H111: 30 | I111: 0 | J111: 300 | K111: Robert King
A112: 10289 | B112: 2016-02-02 | C112: B's Beverages | D112: UK | E112: Wimmers gute Semmelknödel | F112: Grains/Cereals | G112: 33.25 | H112: 9 | I112: 0 | J112: 299.25 | K112: Robert King
A113: 10290 | B113: 2016-02-03 | C113: Comércio Mineiro | D113: Brazil | E113: Original Frankfurter grüne Soße | F113: Condiments | G113: 13 | H113: 10 | I113: 0 | J113: 130 | K113: Laura Callahan
A114: 10290 | B114: 2016-02-03 | C114: Comércio Mineiro | D114: Brazil | E114: Thüringer Rostbratwurst | F114: Meat/Poultry | G114: 123.79 | H114: 15 | I114: 0 | J114: 1856.85 | K114: Laura Callahan
A115: 10290 | B115: 2016-02-03 | C115: Comércio Mineiro | D115: Brazil | E115: Maxilaku | F115: Confections | G115: 20 | H115: 15 | I115: 0 | J115: 300 | K115: Laura Callahan
A116: 10290 | B116: 2016-02-03 | C116: Comércio Mineiro | D116: Brazil | E116: Chef Anton's Gumbo Mix | F116: Condiments | G116: 21.35 | H116: 20 | I116: 0 | J116: 427 | K116: Laura Callahan
A117: 10291 | B117: 2016-02-03 | C117: Que Delícia | D117: Brazil | E117: Gula Malacca | F117: Condiments | G117: 19.45 | H117: 24 | I117: 0.1 | J117: 420.12 | K117: Michael Suyama
A118: 10291 | B118: 2016-02-03 | C118: Que Delícia | D118: Brazil | E118: Konbu | F118: Seafood | G118: 6 | H118: 20 | I118: 0.1 | J118: 108 | K118: Michael Suyama
A119: 10291 | B119: 2016-02-03 | C119: Que Delícia | D119: Brazil | E119: Manjimup Dried Apples | F119: Produce | G119: 53 | H119: 2 | I119: 0.1 | J119: 95.4 | K119: Michael Suyama
A120: 10292 | B120: 2016-02-04 | C120: Tradição Hipermercados | D120: Brazil | E120: Sir Rodney's Marmalade | F120: Confections | G120: 81 | H120: 20 | I120: 0 | J120: 1620 | K120: Nancy Davolio
A121: 10293 | B121: 2016-02-05 | C121: Tortuga Restaurante | D121: Mexico | E121: Carnarvon Tigers | F121: Seafood | G121: 62.5 | H121: 12 | I121: 0 | J121: 750 | K121: Nancy Davolio
A122: 10293 | B122: 2016-02-05 | C122: Tortuga Restaurante | D122: Mexico | E122: Rhönbräu Klosterbier | F122: Beverages | G122: 7.75 | H122: 6 | I122: 0 | J122: 46.5 | K122: Nancy Davolio
A123: 10293 | B123: 2016-02-05 | C123: Tortuga Restaurante | D123: Mexico | E123: Guaraná Fantástica | F123: Beverages | G123: 4.5 | H123: 10 | I123: 0 | J123: 45 | K123: Nancy Davolio
A124: 10293 | B124: 2016-02-05 | C124: Tortuga Restaurante | D124: Mexico | E124: Vegie-spread | F124: Condiments | G124: 43.9 | H124: 5 | I124: 0 | J124: 219.5 | K124: Nancy Davolio
A125: 10294 | B125: 2016-02-06 | C125: Rattlesnake Canyon Grocery | D125: USA | E125: Camembert Pierrot | F125: Dairy Products | G125: 34 | H125: 21 | I125: 0 | J125: 714 | K125: Margaret Peacock
A126: 10294 | B126: 2016-02-06 | C126: Rattlesnake Canyon Grocery | D126: USA | E126: Rhönbräu Klosterbier | F126: Beverages | G126: 7.75 | H126: 6 | I126: 0 | J126: 46.5 | K126: Margaret Peacock
A127: 10294 | B127: 2016-02-06 | C127: Rattlesnake Canyon Grocery | D127: USA | E127: Chai | F127: Beverages | G127: 18 | H127: 18 | I127: 0 | J127: 324 | K127: Margaret Peacock
A128: 10294 | B128: 2016-02-06 | C128: Rattlesnake Canyon Grocery | D128: USA | E128: Ipoh Coffee | F128: Beverages | G128: 46 | H128: 15 | I128: 0 | J128: 690 | K128: Margaret Peacock
A129: 10294 | B129: 2016-02-06 | C129: Rattlesnake Canyon Grocery | D129: USA | E129: Alice Mutton | F129: Meat/Poultry | G129: 39 | H129: 15 | I129: 0 | J129: 585 | K129: Margaret Peacock
A130: 10295 | B130: 2016-02-09 | C130: Vins et alcools Chevalier | D130: France | E130: Gnocchi di nonna Alice | F130: Grains/Cereals | G130: 38 | H130: 4 | I130: 0 | J130: 152 | K130: Andrew Fuller
A131: 10296 | B131: 2016-02-10 | C131: LILA-Supermercado | D131: Venezuela | E131: Gudbrandsdalsost | F131: Dairy Products | G131: 36 | H131: 15 | I131: 0 | J131: =ROUND((G131*H131)*(1-I131),2) -> 540 | K131: Michael Suyama
A132: 10296 | B132: 2016-02-10 | C132: LILA-Supermercado | D132: Venezuela | E132: Queso Cabrales | F132: Dairy Products | G132: 21 | H132: 12 | I132: 0 | J132: 252 | K132: Michael Suyama
A133: 10296 | B133: 2016-02-10 | C133: LILA-Supermercado | D133: Venezuela | E133: Pavlova | F133: Confections | G133: 17.45 | H133: 30 | I133: 0 | J133: 523.5 | K133: Michael Suyama
A134: 10297 | B134: 2016-02-11 | C134: Blondel père et fils | D134: France | E134: Mozzarella di Giovanni | F134: Dairy Products | G134: 34.8 | H134: 20 | I134: 0 | J134: 696 | K134: Steven Buchanan
A135: 10297 | B135: 2016-02-11 | C135: Blondel père et fils | D135: France | E135: Chartreuse verte | F135: Beverages | G135: 18 | H135: 60 | I135: 0 | J135: 1080 | K135: Steven Buchanan
A136: 10298 | B136: 2016-02-12 | C136: Hungry Owl All-Night Grocers | D136: Ireland | E136: Chang | F136: Beverages | G136: 19 | H136: 40 | I136: 0 | J136: 760 | K136: Michael Suyama
A137: 10298 | B137: 2016-02-12 | C137: Hungry Owl All-Night Grocers | D137: Ireland | E137: Inlagd Sill | F137: Seafood | G137: 19 | H137: 40 | I137: 0.25 | J137: 570 | K137: Michael Suyama
A138: 10298 | B138: 2016-02-12 | C138: Hungry Owl All-Night Grocers | D138: Ireland | E138: Tarte au sucre | F138: Confections | G138: 49.3 | H138: 15 | I138: 0 | J138: 739.5 | K138: Michael Suyama
A139: 10298 | B139: 2016-02-12 | C139: Hungry Owl All-Night Grocers | D139: Ireland | E139: Raclette Courdavault | F139: Dairy Products | G139: 55 | H139: 30 | I139: 0.25 | J139: 1237.5 | K139: Michael Suyama
A140: 10299 | B140: 2016-02-13 | C140: Ricardo Adocicados | D140: Brazil | E140: Outback Lager | F140: Beverages | G140: 15 | H140: 20 | I140: 0 | J140: 300 | K140: Margaret Peacock
A141: 10299 | B141: 2016-02-13 | C141: Ricardo Adocicados | D141: Brazil | E141: Teatime Chocolate Biscuits | F141: Confections | G141: 9.2 | H141: 15 | I141: 0 | J141: 138 | K141: Margaret Peacock
A142: 10300 | B142: 2016-02-16 | C142: Magazzini Alimentari Riuniti | D142: Italy | E142: Scottish Longbreads | F142: Confections | G142: 12.5 | H142: 20 | I142: 0 | J142: 250 | K142: Andrew Fuller
A143: 10300 | B143: 2016-02-16 | C143: Magazzini Alimentari Riuniti | D143: Italy | E143: Louisiana Hot Spiced Okra | F143: Condiments | G143: 17 | H143: 30 | I143: 0 | J143: 510 | K143: Andrew Fuller
A144: 10301 | B144: 2016-02-16 | C144: Die Wandernde Kuh | D144: Germany | E144: Gnocchi di nonna Alice | F144: Grains/Cereals | G144: 38 | H144: 20 | I144: 0 | J144: 760 | K144: Laura Callahan
A145: 10301 | B145: 2016-02-16 | C145: Die Wandernde Kuh | D145: Germany | E145: Boston Crab Meat | F145: Seafood | G145: 18.4 | H145: 10 | I145: 0 | J145: 184 | K145: Laura Callahan
A146: 10302 | B146: 2016-02-17 | C146: Suprêmes délices | D146: Belgium | E146: Ipoh Coffee | F146: Beverages | G146: 46 | H146: 12 | I146: 0 | J146: 552 | K146: Margaret Peacock
A147: 10302 | B147: 2016-02-17 | C147: Suprêmes délices | D147: Belgium | E147: Rössle Sauerkraut | F147: Produce | G147: 45.6 | H147: 28 | I147: 0 | J147: 1276.8 | K147: Margaret Peacock
A148: 10302 | B148: 2016-02-17 | C148: Suprêmes délices | D148: Belgium | E148: Alice Mutton | F148: Meat/Poultry | G148: 39 | H148: 40 | I148: 0 | J148: 1560 | K148: Margaret Peacock
A149: 10303 | B149: 2016-02-18 | C149: Godos Cocina Típica | D149: Spain | E149: Louisiana Fiery Hot Pepper Sauce | F149: Condiments | G149: 21.05 | H149: 30 | I149: 0.1 | J149: 568.35 | K149: Robert King
A150: 10303 | B150: 2016-02-18 | C150: Godos Cocina Típica | D150: Spain | E150: Boston Crab Meat | F150: Seafood | G150: 18.4 | H150: 40 | I150: 0.1 | J150: 662.4 | K150: Robert King
A151: 10303 | B151: 2016-02-18 | C151: Godos Cocina Típica | D151: Spain | E151: Scottish Longbreads | F151: Confections | G151: 12.5 | H151: 15 | I151: 0.1 | J151: 168.75 | K151: Robert King
A152: 10304 | B152: 2016-02-19 | C152: Tortuga Restaurante | D152: Mexico | E152: Maxilaku | F152: Confections | G152: 20 | H152: 30 | I152: 0 | J152: 600 | K152: Nancy Davolio
A153: 10304 | B153: 2016-02-19 | C153: Tortuga Restaurante | D153: Mexico | E153: Raclette Courdavault | F153: Dairy Products | G153: 55 | H153: 10 | I153: 0 | J153: 550 | K153: Nancy Davolio
A154: 10304 | B154: 2016-02-19 | C154: Tortuga Restaurante | D154: Mexico | E154: Fløtemysost | F154: Dairy Products | G154: 21.5 | H154: 2 | I154: 0 | J154: 43 | K154: Nancy Davolio
A155: 10305 | B155: 2016-02-20 | C155: Old World Delicatessen | D155: USA | E155: Chartreuse verte | F155: Beverages | G155: 18 | H155: 30 | I155: 0.1 | J155: 486 | K155: Laura Callahan
A156: 10305 | B156: 2016-02-20 | C156: Old World Delicatessen | D156: USA | E156: Thüringer Rostbratwurst | F156: Meat/Poultry | G156: 123.79 | H156: 25 | I156: 0.1 | J156: 2785.28 | K156: Laura Callahan
A157: 10305 | B157: 2016-02-20 | C157: Old World Delicatessen | D157: USA | E157: Carnarvon Tigers | F157: Seafood | G157: 62.5 | H157: 25 | I157: 0.1 | J157: 1406.25 | K157: Laura Callahan
A158: 10306 | B158: 2016-02-23 | C158: Romero y tomillo | D158: Spain | E158: Nord-Ost Matjeshering | F158: Seafood | G158: 25.89 | H158: 10 | I158: 0 | J158: 258.9 | K158: Nancy Davolio
A159: 10306 | B159: 2016-02-23 | C159: Romero y tomillo | D159: Spain | E159: Perth Pasties | F159: Meat/Poultry | G159: 32.8 | H159: 10 | I159: 0 | J159: 328 | K159: Nancy Davolio
A160: 10306 | B160: 2016-02-23 | C160: Romero y tomillo | D160: Spain | E160: Tourtière | F160: Meat/Poultry | G160: 7.45 | H160: 5 | I160: 0 | J160: 37.25 | K160: Nancy Davolio
A161: 10307 | B161: 2016-02-24 | C161: Lonesome Pine Restaurant | D161: USA | E161: Tarte au sucre | F161: Confections | G161: 49.3 | H161: 10 | I161: 0 | J161: 493 | K161: Andrew Fuller
A162: 10307 | B162: 2016-02-24 | C162: Lonesome Pine Restaurant | D162: USA | E162: Scottish Longbreads | F162: Confections | G162: 12.5 | H162: 3 | I162: 0 | J162: 37.5 | K162: Andrew Fuller
A163: 10308 | B163: 2016-02-25 | C163: Ana Trujillo Emparedados y helados | D163: Mexico | E163: Outback Lager | F163: Beverages | G163: 15 | H163: 5 | I163: 0 | J163: 75 | K163: Robert King
A164: 10308 | B164: 2016-02-25 | C164: Ana Trujillo Emparedados y helados | D164: Mexico | E164: Gudbrandsdalsost | F164: Dairy Products | G164: 36 | H164: 1 | I164: 0 | J164: 36 | K164: Robert King
A165: 10309 | B165: 2016-02-26 | C165: Hungry Owl All-Night Grocers | D165: Ireland | E165: Singaporean Hokkien Fried Mee | F165: Grains/Cereals | G165: 14 | H165: 2 | I165: 0 | J165: 28 | K165: Janet Leverling
A166: 10309 | B166: 2016-02-26 | C166: Hungry Owl All-Night Grocers | D166: Ireland | E166: Ipoh Coffee | F166: Beverages | G166: 46 | H166: 20 | I166: 0 | J166: 920 | K166: Janet Leverling
A167: 10309 | B167: 2016-02-26 | C167: Hungry Owl All-Night Grocers | D167: Ireland | E167: Grandma's Boysenberry Spread | F167: Condiments | G167: 25 | H167: 30 | I167: 0 | J167: 750 | K167: Janet Leverling
A168: 10309 | B168: 2016-02-26 | C168: Hungry Owl All-Night Grocers | D168: Ireland | E168: Chef Anton's Cajun Seasoning | F168: Condiments | G168: 22 | H168: 20 | I168: 0 | J168: 440 | K168: Janet Leverling
A169: 10309 | B169: 2016-02-26 | C169: Hungry Owl All-Night Grocers | D169: Ireland | E169: Fløtemysost | F169: Dairy Products | G169: 21.5 | H169: 3 | I169: 0 | J169: 64.5 | K169: Janet Leverling
A170: 10310 | B170: 2016-02-27 | C170: The Big Cheese | D170: USA | E170: Pavlova | F170: Confections | G170: 17.45 | H170: 10 | I170: 0 | J170: 174.5 | K170: Laura Callahan
A171: 10310 | B171: 2016-02-27 | C171: The Big Cheese | D171: USA | E171: Tarte au sucre | F171: Confections | G171: 49.3 | H171: 5 | I171: 0 | J171: 246.5 | K171: Laura Callahan
A172: 10311 | B172: 2016-02-27 | C172: Du monde entier | D172: France | E172: Gudbrandsdalsost | F172: Dairy Products | G172: 36 | H172: 7 | I172: 0 | J172: 252 | K172: Nancy Davolio
A173: 10311 | B173: 2016-02-27 | C173: Du monde entier | D173: France | E173: Singaporean Hokkien Fried Mee | F173: Grains/Cereals | G173: 14 | H173: 6 | I173: 0 | J173: 84 | K173: Nancy Davolio
A174: 10312 | B174: 2016-03-01 | C174: Die Wandernde Kuh | D174: Germany | E174: Rhönbräu Klosterbier | F174: Beverages | G174: 7.75 | H174: 10 | I174: 0 | J174: 77.5 | K174: Andrew Fuller
A175: 10312 | B175: 2016-03-01 | C175: Die Wandernde Kuh | D175: Germany | E175: Rössle Sauerkraut | F175: Produce | G175: 45.6 | H175: 4 | I175: 0 | J175: 182.4 | K175: Andrew Fuller
A176: 10312 | B176: 2016-03-01 | C176: Die Wandernde Kuh | D176: Germany | E176: Ipoh Coffee | F176: Beverages | G176: 46 | H176: 24 | I176: 0 | J176: 1104 | K176: Andrew Fuller
A177: 10312 | B177: 2016-03-01 | C177: Die Wandernde Kuh | D177: Germany | E177: Perth Pasties | F177: Meat/Poultry | G177: 32.8 | H177: 20 | I177: 0 | J177: 656 | K177: Andrew Fuller
A178: 10313 | B178: 2016-03-02 | C178: QUICK-Stop | D178: Germany | E178: Inlagd Sill | F178: Seafood | G178: 19 | H178: 12 | I178: 0 | J178: 228 | K178: Andrew Fuller
A179: 10314 | B179: 2016-03-03 | C179: Rattlesnake Canyon Grocery | D179: USA | E179: Tarte au sucre | F179: Confections | G179: 49.3 | H179: 25 | I179: 0.1 | J179: 1109.25 | K179: Nancy Davolio
A180: 10314 | B180: 2016-03-03 | C180: Rattlesnake Canyon Grocery | D180: USA | E180: Escargots de Bourgogne | F180: Seafood | G180: 13.25 | H180: 30 | I180: 0.1 | J180: 357.75 | K180: Nancy Davolio
A181: 10314 | B181: 2016-03-03 | C181: Rattlesnake Canyon Grocery | D181: USA | E181: Mascarpone Fabioli | F181: Dairy Products | G181: 32 | H181: 40 | I181: 0.1 | J181: 1152 | K181: Nancy Davolio
A182: 10315 | B182: 2016-03-04 | C182: Island Trading | D182: UK | E182: Outback Lager | F182: Beverages | G182: 15 | H182: 30 | I182: 0 | J182: 450 | K182: Margaret Peacock
A183: 10315 | B183: 2016-03-04 | C183: Island Trading | D183: UK | E183: Sasquatch Ale | F183: Beverages | G183: 14 | H183: 14 | I183: 0 | J183: 196 | K183: Margaret Peacock
A184: 10316 | B184: 2016-03-05 | C184: Rattlesnake Canyon Grocery | D184: USA | E184: Tarte au sucre | F184: Confections | G184: 49.3 | H184: 70 | I184: 0 | J184: 3451 | K184: Nancy Davolio
A185: 10316 | B185: 2016-03-05 | C185: Rattlesnake Canyon Grocery | D185: USA | E185: Jack's New England Clam Chowder | F185: Seafood | G185: 9.65 | H185: 10 | I185: 0 | J185: 96.5 | K185: Nancy Davolio
A186: 10317 | B186: 2016-03-08 | C186: Lonesome Pine Restaurant | D186: USA | E186: Chai | F186: Beverages | G186: 18 | H186: 20 | I186: 0 | J186: 360 | K186: Michael Suyama
A187: 10318 | B187: 2016-03-09 | C187: Island Trading | D187: UK | E187: Jack's New England Clam Chowder | F187: Seafood | G187: 9.65 | H187: 20 | I187: 0 | J187: 193 | K187: Laura Callahan
A188: 10318 | B188: 2016-03-09 | C188: Island Trading | D188: UK | E188: Lakkalikööri | F188: Beverages | G188: 18 | H188: 6 | I188: 0 | J188: 108 | K188: Laura Callahan
A189: 10319 | B189: 2016-03-10 | C189: Tortuga Restaurante | D189: Mexico | E189: Alice Mutton | F189: Meat/Poultry | G189: 39 | H189: 8 | I189: 0 | J189: 312 | K189: Robert King
A190: 10319 | B190: 2016-03-10 | C190: Tortuga Restaurante | D190: Mexico | E190: Rössle Sauerkraut | F190: Produce | G190: 45.6 | H190: 14 | I190: 0 | J190: 638.4 | K190: Robert King
A191: 10319 | B191: 2016-03-10 | C191: Tortuga Restaurante | D191: Mexico | E191: Lakkalikööri | F191: Beverages | G191: 18 | H191: 30 | I191: 0 | J191: 540 | K191: Robert King
A192: 10320 | B192: 2016-03-11 | C192: Wartian Herkku | D192: Finland | E192: Fløtemysost | F192: Dairy Products | G192: 21.5 | H192: 30 | I192: 0 | J192: 645 | K192: Steven Buchanan
A193: 10321 | B193: 2016-03-11 | C193: Island Trading | D193: UK | E193: Steeleye Stout | F193: Beverages | G193: 18 | H193: 10 | I193: 0 | J193: 180 | K193: Janet Leverling
A194: 10322 | B194: 2016-03-12 | C194: Pericles Comidas clásicas | D194: Mexico | E194: Filo Mix | F194: Grains/Cereals | G194: 7 | H194: 20 | I194: 0 | J194: 140 | K194: Robert King
A195: 10323 | B195: 2016-03-15 | C195: Königlich Essen | D195: Germany | E195: NuNuCa Nuß-Nougat-Creme | F195: Confections | G195: 14 | H195: 4 | I195: 0 | J195: =ROUND((G195*H195)*(1-I195),2) -> 56 | K195: Margaret Peacock
A196: 10323 | B196: 2016-03-15 | C196: Königlich Essen | D196: Germany | E196: Genen Shouyu | F196: Condiments | G196: 15.5 | H196: 5 | I196: 0 | J196: 77.5 | K196: Margaret Peacock
A197: 10323 | B197: 2016-03-15 | C197: Königlich Essen | D197: Germany | E197: Chartreuse verte | F197: Beverages | G197: 18 | H197: 4 | I197: 0 | J197: 72 | K197: Margaret Peacock
A198: 10324 | B198: 2016-03-16 | C198: Save-a-lot Markets | D198: USA | E198: Spegesild | F198: Seafood | G198: 12 | H198: 30 | I198: 0 | J198: 360 | K198: Anne Dodsworth
A199: 10324 | B199: 2016-03-16 | C199: Save-a-lot Markets | D199: USA | E199: Vegie-spread | F199: Condiments | G199: 43.9 | H199: 80 | I199: 0.15 | J199: 2985.2 | K199: Anne Dodsworth
A200: 10324 | B200: 2016-03-16 | C200: Save-a-lot Markets | D200: USA | E200: Raclette Courdavault | F200: Dairy Products | G200: 55 | H200: 40 | I200: 0.15 | J200: 1870 | K200: Anne Dodsworth
... 728 more rows

Sheet London
A1: Order ID | B1: Order Date | C1: Customer Name | D1: Country | E1: Product Name | F1: Product Category | G1: Unit Price | H1: Units Sold | I1: Discount | J1: Total Sales Value | K1: Sales Rep
A2: 10248 | B2: 2015-12-11 | C2: Vins et alcools Chevalier | D2: France | E2: Mozzarella di Giovanni | F2: Dairy Products | G2: 34.8 | H2: 5 | I2: 0 | J2: =ROUND((G2*H2)*(1-I2),2) -> 174 | K2: Steven Buchanan
A3: 10248 | B3: 2015-12-11 | C3: Vins et alcools Chevalier | D3: France | E3: Singaporean Hokkien Fried Mee | F3: Grains/Cereals | G3: 14 | H3: 10 | I3: 0 | J3: =ROUND((G3*H3)*(1-I3),2) -> 140 | K3: Steven Buchanan
A4: 10248 | B4: 2015-12-11 | C4: Vins et alcools Chevalier | D4: France | E4: Queso Cabrales | F4: Dairy Products | G4: 21 | H4: 12 | I4: 0 | J4: 252 | K4: Steven Buchanan
A5: 10249 | B5: 2015-12-12 | C5: Toms Spezialitäten | D5: Germany | E5: Manjimup Dried Apples | F5: Produce | G5: 53 | H5: 40 | I5: 0 | J5: 2120 | K5: Michael Suyama
A6: 10249 | B6: 2015-12-12 | C6: Toms Spezialitäten | D6: Germany | E6: Tofu | F6: Produce | G6: 23.25 | H6: 9 | I6: 0 | J6: 209.25 | K6: Michael Suyama
A7: 10250 | B7: 2015-12-15 | C7: Hanari Carnes | D7: Brazil | E7: Manjimup Dried Apples | F7: Produce | G7: 53 | H7: 35 | I7: 0.15 | J7: 1576.75 | K7: Margaret Peacock
A8: 10250 | B8: 2015-12-15 | C8: Hanari Carnes | D8: Brazil | E8: Jack's New England Clam Chowder | F8: Seafood | G8: 9.65 | H8: 10 | I8: 0 | J8: 96.5 | K8: Margaret Peacock
A9: 10250 | B9: 2015-12-15 | C9: Hanari Carnes | D9: Brazil | E9: Louisiana Fiery Hot Pepper Sauce | F9: Condiments | G9: 21.05 | H9: 15 | I9: 0.15 | J9: 268.39 | K9: Margaret Peacock
A10: 10251 | B10: 2015-12-15 | C10: Victuailles en stock | D10: France | E10: Gustaf's Knäckebröd | F10: Grains/Cereals | G10: 21 | H10: 6 | I10: 0.05 | J10: 119.7 | K10: Janet Leverling
A11: 10251 | B11: 2015-12-15 | C11: Victuailles en stock | D11: France | E11: Louisiana Fiery Hot Pepper Sauce | F11: Condiments | G11: 21.05 | H11: 20 | I11: 0 | J11: 421 | K11: Janet Leverling
A12: 10251 | B12: 2015-12-15 | C12: Victuailles en stock | D12: France | E12: Ravioli Angelo | F12: Grains/Cereals | G12: 19.5 | H12: 15 | I12: 0.05 | J12: 277.88 | K12: Janet Leverling
A13: 10252 | B13: 2015-12-16 | C13: Suprêmes délices | D13: Belgium | E13: Geitost | F13: Dairy Products | G13: 2.5 | H13: 25 | I13: 0.05 | J13: 59.38 | K13: Margaret Peacock
A14: 10252 | B14: 2015-12-16 | C14: Suprêmes délices | D14: Belgium | E14: Camembert Pierrot | F14: Dairy Products | G14: 34 | H14: 40 | I14: 0 | J14: 1360 | K14: Margaret Peacock
A15: 10252 | B15: 2015-12-16 | C15: Suprêmes délices | D15: Belgium | E15: Sir Rodney's Marmalade | F15: Confections | G15: 81 | H15: 40 | I15: 0.05 | J15: 3078 | K15: Margaret Peacock
A16: 10253 | B16: 2015-12-17 | C16: Hanari Carnes | D16: Brazil | E16: Chartreuse verte | F16: Beverages | G16: 18 | H16: 42 | I16: 0 | J16: 756 | K16: Janet Leverling
A17: 10253 | B17: 2015-12-17 | C17: Hanari Carnes | D17: Brazil | E17: Gorgonzola Telino | F17: Dairy Products | G17: 12.5 | H17: 20 | I17: 0 | J17: 250 | K17: Janet Leverling
A18: 10253 | B18: 2015-12-17 | C18: Hanari Carnes | D18: Brazil | E18: Maxilaku | F18: Confections | G18: 20 | H18: 40 | I18: 0 | J18: 800 | K18: Janet Leverling
A19: 10254 | B19: 2015-12-18 | C19: Chop-suey Chinese | D19: Switzerland | E19: Longlife Tofu | F19: Produce | G19: 10 | H19: 21 | I19: 0 | J19: 210 | K19: Steven Buchanan
A20: 10254 | B20: 2015-12-18 | C20: Chop-suey Chinese | D20: Switzerland | E20: Pâté chinois | F20: Meat/Poultry | G20: 24 | H20: 21 | I20: 0.15 | J20: 428.4 | K20: Steven Buchanan
A21: 10254 | B21: 2015-12-18 | C21: Chop-suey Chinese | D21: Switzerland | E21: Guaraná Fantástica | F21: Beverages | G21: 4.5 | H21: 15 | I21: 0.15 | J21: 57.38 | K21: Steven Buchanan
A22: 10255 | B22: 2015-12-19 | C22: Richter Supermarkt | D22: Switzerland | E22: Chang | F22: Beverages | G22: 19 | H22: 20 | I22: 0 | J22: 380 | K22: Anne Dodsworth
A23: 10255 | B23: 2015-12-19 | C23: Richter Supermarkt | D23: Switzerland | E23: Raclette Courdavault | F23: Dairy Products | G23: 55 | H23: 30 | I23: 0 | J23: 1650 | K23: Anne Dodsworth
A24: 10255 | B24: 2015-12-19 | C24: Richter Supermarkt | D24: Switzerland | E24: Pavlova | F24: Confections | G24: 17.45 | H24: 35 | I24: 0 | J24: 610.75 | K24: Anne Dodsworth
A25: 10255 | B25: 2015-12-19 | C25: Richter Supermarkt | D25: Switzerland | E25: Inlagd Sill | F25: Seafood | G25: 19 | H25: 25 | I25: 0 | J25: 475 | K25: Anne Dodsworth
A26: 10256 | B26: 2015-12-22 | C26: Wellington Importadora | D26: Brazil | E26: Perth Pasties | F26: Meat/Poultry | G26: 32.8 | H26: 15 | I26: 0 | J26: 492 | K26: Janet Leverling
A27: 10256 | B27: 2015-12-22 | C27: Wellington Importadora | D27: Brazil | E27: Original Frankfurter grüne Soße | F27: Condiments | G27: 13 | H27: 12 | I27: 0 | J27: 156 | K27: Janet Leverling
A28: 10257 | B28: 2015-12-23 | C28: HILARIÓN-Abastos | D28: Venezuela | E28: Schoggi Schokolade | F28: Confections | G28: 43.9 | H28: 25 | I28: 0 | J28: 1097.5 | K28: Margaret Peacock
A29: 10257 | B29: 2015-12-23 | C29: HILARIÓN-Abastos | D29: Venezuela | E29: Chartreuse verte | F29: Beverages | G29: 18 | H29: 6 | I29: 0 | J29: 108 | K29: Margaret Peacock
A30: 10257 | B30: 2015-12-23 | C30: HILARIÓN-Abastos | D30: Venezuela | E30: Original Frankfurter grüne Soße | F30: Condiments | G30: 13 | H30: 15 | I30: 0 | J30: 195 | K30: Margaret Peacock
A31: 10258 | B31: 2015-12-24 | C31: Ernst Handel | D31: Austria | E31: Chef Anton's Gumbo Mix | F31: Condiments | G31: 21.35 | H31: 65 | I31: 0.2 | J31: 1110.2 | K31: Nancy Davolio
A32: 10258 | B32: 2015-12-24 | C32: Ernst Handel | D32: Austria | E32: Chang | F32: Beverages | G32: 19 | H32: 50 | I32: 0.2 | J32: 760 | K32: Nancy Davolio
A33: 10258 | B33: 2015-12-24 | C33: Ernst Handel | D33: Austria | E33: Mascarpone Fabioli | F33: Dairy Products | G33: 32 | H33: 6 | I33: 0.2 | J33: 153.6 | K33: Nancy Davolio
A34: 10259 | B34: 2015-12-25 | C34: Centro comercial Moctezuma | D34: Mexico | E34: Sir Rodney's Scones | F34: Confections | G34: 10 | H34: 10 | I34: 0 | J34: 100 | K34: Margaret Peacock
A35: 10259 | B35: 2015-12-25 | C35: Centro comercial Moctezuma | D35: Mexico | E35: Gravad lax | F35: Seafood | G35: 26 | H35: 1 | I35: 0 | J35: 26 | K35: Margaret Peacock
A36: 10260 | B36: 2015-12-26 | C36: Ottilies Käseladen | D36: Germany | E36: Outback Lager | F36: Beverages | G36: 15 | H36: 21 | I36: 0.25 | J36: 236.25 | K36: Margaret Peacock
A37: 10260 | B37: 2015-12-26 | C37: Ottilies Käseladen | D37: Germany | E37: Ravioli Angelo | F37: Grains/Cereals | G37: 19.5 | H37: 50 | I37: 0 | J37: 975 | K37: Margaret Peacock
A38: 10260 | B38: 2015-12-26 | C38: Ottilies Käseladen | D38: Germany | E38: Tarte au sucre | F38: Confections | G38: 49.3 | H38: 15 | I38: 0.25 | J38: 554.63 | K38: Margaret Peacock
A39: 10260 | B39: 2015-12-26 | C39: Ottilies Käseladen | D39: Germany | E39: Jack's New England Clam Chowder | F39: Seafood | G39: 9.65 | H39: 16 | I39: 0.25 | J39: 115.8 | K39: Margaret Peacock
A40: 10261 | B40: 2015-12-26 | C40: Que Delícia | D40: Brazil | E40: Steeleye Stout | F40: Beverages | G40: 18 | H40: 20 | I40: 0 | J40: 360 | K40: Margaret Peacock
A41: 10261 | B41: 2015-12-26 | C41: Que Delícia | D41: Brazil | E41: Sir Rodney's Scones | F41: Confections | G41: 10 | H41: 20 | I41: 0 | J41: 200 | K41: Margaret Peacock
A42: 10262 | B42: 2015-12-29 | C42: Rattlesnake Canyon Grocery | D42: USA | E42: Chef Anton's Gumbo Mix | F42: Condiments | G42: 21.35 | H42: 12 | I42: 0.2 | J42: 204.96 | K42: Laura Callahan
A43: 10262 | B43: 2015-12-29 | C43: Rattlesnake Canyon Grocery | D43: USA | E43: Uncle Bob's Organic Dried Pears | F43: Produce | G43: 30 | H43: 15 | I43: 0 | J43: 450 | K43: Laura Callahan
A44: 10262 | B44: 2015-12-29 | C44: Rattlesnake Canyon Grocery | D44: USA | E44: Gnocchi di nonna Alice | F44: Grains/Cereals | G44: 38 | H44: 2 | I44: 0 | J44: 76 | K44: Laura Callahan
A45: 10263 | B45: 2015-12-30 | C45: Ernst Handel | D45: Austria | E45: Pavlova | F45: Confections | G45: 17.45 | H45: 60 | I45: 0.25 | J45: 785.25 | K45: Anne Dodsworth
A46: 10263 | B46: 2015-12-30 | C46: Ernst Handel | D46: Austria | E46: Nord-Ost Matjeshering | F46: Seafood | G46: 25.89 | H46: 60 | I46: 0.25 | J46: 1165.05 | K46: Anne Dodsworth
A47: 10263 | B47: 2015-12-30 | C47: Ernst Handel | D47: Austria | E47: Guaraná Fantástica | F47: Beverages | G47: 4.5 | H47: 28 | I47: 0 | J47: 126 | K47: Anne Dodsworth
A48: 10263 | B48: 2015-12-30 | C48: Ernst Handel | D48: Austria | E48: Longlife Tofu | F48: Produce | G48: 10 | H48: 36 | I48: 0.25 | J48: 270 | K48: Anne Dodsworth
A49: 10264 | B49: 2015-12-31 | C49: Folk och fä HB | D49: Sweden | E49: Chang | F49: Beverages | G49: 19 | H49: 35 | I49: 0 | J49: 665 | K49: Michael Suyama
A50: 10264 | B50: 2015-12-31 | C50: Folk och fä HB | D50: Sweden | E50: Jack's New England Clam Chowder | F50: Seafood | G50: 9.65 | H50: 25 | I50: 0.15 | J50: 205.06 | K50: Michael Suyama
A51: 10265 | B51: 2016-01-01 | C51: Blondel père et fils | D51: France | E51: Alice Mutton | F51: Meat/Poultry | G51: 39 | H51: 30 | I51: 0 | J51: 1170 | K51: Andrew Fuller
A52: 10265 | B52: 2016-01-01 | C52: Blondel père et fils | D52: France | E52: Outback Lager | F52: Beverages | G52: 15 | H52: 20 | I52: 0 | J52: 300 | K52: Andrew Fuller
A53: 10266 | B53: 2016-01-02 | C53: Wartian Herkku | D53: Finland | E53: Queso Manchego La Pastora | F53: Dairy Products | G53: 38 | H53: 12 | I53: 0.05 | J53: 433.2 | K53: Janet Leverling
A54: 10267 | B54: 2016-01-05 | C54: Frankenversand | D54: Germany | E54: Lakkalikööri | F54: Beverages | G54: 18 | H54: 15 | I54: 0.15 | J54: 229.5 | K54: Margaret Peacock
A55: 10267 | B55: 2016-01-05 | C55: Frankenversand | D55: Germany | E55: Boston Crab Meat | F55: Seafood | G55: 18.4 | H55: 50 | I55: 0 | J55: 920 | K55: Margaret Peacock
A56: 10267 | B56: 2016-01-05 | C56: Frankenversand | D56: Germany | E56: Raclette Courdavault | F56: Dairy Products | G56: 55 | H56: 70 | I56: 0.15 | J56: 3272.5 | K56: Margaret Peacock
A57: 10268 | B57: 2016-01-06 | C57: GROSELLA-Restaurante | D57: Venezuela | E57: Mozzarella di Giovanni | F57: Dairy Products | G57: 34.8 | H57: 4 | I57: 0 | J57: 139.2 | K57: Laura Callahan
A58: 10268 | B58: 2016-01-06 | C58: GROSELLA-Restaurante | D58: Venezuela | E58: Thüringer Rostbratwurst | F58: Meat/Poultry | G58: 123.79 | H58: 10 | I58: 0 | J58: 1237.9 | K58: Laura Callahan
A59: 10269 | B59: 2016-01-07 | C59: White Clover Markets | D59: USA | E59: Mozzarella di Giovanni | F59: Dairy Products | G59: 34.8 | H59: 20 | I59: 0.05 | J59: 661.2 | K59: Steven Buchanan
A60: 10269 | B60: 2016-01-07 | C60: White Clover Markets | D60: USA | E60: Geitost | F60: Dairy Products | G60: 2.5 | H60: 60 | I60: 0.05 | J60: 142.5 | K60: Steven Buchanan
A61: 10270 | B61: 2016-01-08 | C61: Wartian Herkku | D61: Finland | E61: Inlagd Sill | F61: Seafood | G61: 19 | H61: 30 | I61: 0 | J61: 570 | K61: Nancy Davolio
A62: 10270 | B62: 2016-01-08 | C62: Wartian Herkku | D62: Finland | E62: Ipoh Coffee | F62: Beverages | G62: 46 | H62: 25 | I62: 0 | J62: 1150 | K62: Nancy Davolio
A63: 10271 | B63: 2016-01-08 | C63: Split Rail Beer & Ale | D63: USA | E63: Geitost | F63: Dairy Products | G63: 2.5 | H63: 24 | I63: 0 | J63: 60 | K63: Michael Suyama
A64: 10272 | B64: 2016-01-09 | C64: Rattlesnake Canyon Grocery | D64: USA | E64: Gorgonzola Telino | F64: Dairy Products | G64: 12.5 | H64: 40 | I64: 0 | J64: 500 | K64: Michael Suyama
A65: 10272 | B65: 2016-01-09 | C65: Rattlesnake Canyon Grocery | D65: USA | E65: Sir Rodney's Marmalade | F65: Confections | G65: 81 | H65: 6 | I65: 0 | J65: 486 | K65: Michael Suyama
A66: 10272 | B66: 2016-01-09 | C66: Rattlesnake Canyon Grocery | D66: USA | E66: Mozzarella di Giovanni | F66: Dairy Products | G66: 34.8 | H66: 24 | I66: 0 | J66: 835.2 | K66: Michael Suyama
A67: 10273 | B67: 2016-01-12 | C67: QUICK-Stop | D67: Germany | E67: Boston Crab Meat | F67: Seafood | G67: 18.4 | H67: 60 | I67: 0.05 | J67: =ROUND((G67*H67)*(1-I67),2) -> 1048.8 | K67: Janet Leverling
A68: 10273 | B68: 2016-01-12 | C68: QUICK-Stop | D68: Germany | E68: Geitost | F68: Dairy Products | G68: 2.5 | H68: 20 | I68: 0 | J68: 50 | K68: Janet Leverling
A69: 10273 | B69: 2016-01-12 | C69: QUICK-Stop | D69: Germany | E69: Gorgonzola Telino | F69: Dairy Products | G69: 12.5 | H69: 15 | I69: 0.05 | J69: 178.13 | K69: Janet Leverling
A70: 10273 | B70: 2016-01-12 | C70: QUICK-Stop | D70: Germany | E70: Ikura | F70: Seafood | G70: 31 | H70: 24 | I70: 0.05 | J70: 706.8 | K70: Janet Leverling
A71: 10273 | B71: 2016-01-12 | C71: QUICK-Stop | D71: Germany | E71: Lakkalikööri | F71: Beverages | G71: 18 | H71: 33 | I71: 0.05 | J71: 564.3 | K71: Janet Leverling
A72: 10274 | B72: 2016-01-13 | C72: Vins et alcools Chevalier | D72: France | E72: Fløtemysost | F72: Dairy Products | G72: 21.5 | H72: 20 | I72: 0 | J72: 430 | K72: Michael Suyama
A73: 10274 | B73: 2016-01-13 | C73: Vins et alcools Chevalier | D73: France | E73: Mozzarella di Giovanni | F73: Dairy Products | G73: 34.8 | H73: 7 | I73: 0 | J73: 243.6 | K73: Michael Suyama
A74: 10275 | B74: 2016-01-14 | C74: Magazzini Alimentari Riuniti | D74: Italy | E74: Guaraná Fantástica | F74: Beverages | G74: 4.5 | H74: 12 | I74: 0.05 | J74: 51.3 | K74: Nancy Davolio
A75: 10275 | B75: 2016-01-14 | C75: Magazzini Alimentari Riuniti | D75: Italy | E75: Raclette Courdavault | F75: Dairy Products | G75: 55 | H75: 6 | I75: 0.05 | J75: 313.5 | K75: Nancy Davolio
A76: 10276 | B76: 2016-01-15 | C76: Tortuga Restaurante | D76: Mexico | E76: Ikura | F76: Seafood | G76: 31 | H76: 15 | I76: 0 | J76: 465 | K76: Laura Callahan
A77: 10276 | B77: 2016-01-15 | C77: Tortuga Restaurante | D77: Mexico | E77: Konbu | F77: Seafood | G77: 6 | H77: 10 | I77: 0 | J77: 60 | K77: Laura Callahan
A78: 10277 | B78: 2016-01-16 | C78: Morgenstern Gesundkost | D78: Germany | E78: Rössle Sauerkraut | F78: Produce | G78: 45.6 | H78: 20 | I78: 0 | J78: 912 | K78: Andrew Fuller
A79: 10277 | B79: 2016-01-16 | C79: Morgenstern Gesundkost | D79: Germany | E79: Tarte au sucre | F79: Confections | G79: 49.3 | H79: 12 | I79: 0 | J79: 591.6 | K79: Andrew Fuller
A80: 10278 | B80: 2016-01-19 | C80: Berglunds snabbköp | D80: Sweden | E80: Raclette Courdavault | F80: Dairy Products | G80: 55 | H80: 15 | I80: 0 | J80: 825 | K80: Laura Callahan
A81: 10278 | B81: 2016-01-19 | C81: Berglunds snabbköp | D81: Sweden | E81: Röd Kaviar | F81: Seafood | G81: 15 | H81: 25 | I81: 0 | J81: 375 | K81: Laura Callahan
A82: 10278 | B82: 2016-01-19 | C82: Berglunds snabbköp | D82: Sweden | E82: Gula Malacca | F82: Condiments | G82: 19.45 | H82: 16 | I82: 0 | J82: 311.2 | K82: Laura Callahan
A83: 10278 | B83: 2016-01-19 | C83: Berglunds snabbköp | D83: Sweden | E83: Vegie-spread | F83: Condiments | G83: 43.9 | H83: 8 | I83: 0 | J83: 351.2 | K83: Laura Callahan
A84: 10279 | B84: 2016-01-20 | C84: Lehmanns Marktstand | D84: Germany | E84: Alice Mutton | F84: Meat/Poultry | G84: 39 | H84: 15 | I84: 0.25 | J84: 438.75 | K84: Laura Callahan
A85: 10280 | B85: 2016-01-21 | C85: Berglunds snabbköp | D85: Sweden | E85: Pâté chinois | F85: Meat/Poultry | G85: 24 | H85: 20 | I85: 0 | J85: 480 | K85: Andrew Fuller
A86: 10280 | B86: 2016-01-21 | C86: Berglunds snabbköp | D86: Sweden | E86: Rhönbräu Klosterbier | F86: Beverages | G86: 7.75 | H86: 30 | I86: 0 | J86: 232.5 | K86: Andrew Fuller
A87: 10280 | B87: 2016-01-21 | C87: Berglunds snabbköp | D87: Sweden | E87: Guaraná Fantástica | F87: Beverages | G87: 4.5 | H87: 12 | I87: 0 | J87: 54 | K87: Andrew Fuller
A88: 10281 | B88: 2016-01-21 | C88: Romero y tomillo | D88: Spain | E88: Guaraná Fantástica | F88: Beverages | G88: 4.5 | H88: 6 | I88: 0 | J88: 27 | K88: Margaret Peacock
A89: 10281 | B89: 2016-01-21 | C89: Romero y tomillo | D89: Spain | E89: Steeleye Stout | F89: Beverages | G89: 18 | H89: 4 | I89: 0 | J89: 72 | K89: Margaret Peacock
A90: 10281 | B90: 2016-01-21 | C90: Romero y tomillo | D90: Spain | E90: Teatime Chocolate Biscuits | F90: Confections | G90: 9.2 | H90: 1 | I90: 0 | J90: 9.2 | K90: Margaret Peacock
A91: 10282 | B91: 2016-01-22 | C91: Romero y tomillo | D91: Spain | E91: Ravioli Angelo | F91: Grains/Cereals | G91: 19.5 | H91: 2 | I91: 0 | J91: 39 | K91: Margaret Peacock
A92: 10282 | B92: 2016-01-22 | C92: Romero y tomillo | D92: Spain | E92: Nord-Ost Matjeshering | F92: Seafood | G92: 25.89 | H92: 6 | I92: 0 | J92: 155.34 | K92: Margaret Peacock
A93: 10283 | B93: 2016-01-23 | C93: LILA-Supermercado | D93: Venezuela | E93: Teatime Chocolate Biscuits | F93: Confections | G93: 9.2 | H93: 18 | I93: 0 | J93: 165.6 | K93: Janet Leverling
A94: 10283 | B94: 2016-01-23 | C94: LILA-Supermercado | D94: Venezuela | E94: Camembert Pierrot | F94: Dairy Products | G94: 34 | H94: 35 | I94: 0 | J94: 1190 | K94: Janet Leverling
A95: 10283 | B95: 2016-01-23 | C95: LILA-Supermercado | D95: Venezuela | E95: Genen Shouyu | F95: Condiments | G95: 15.5 | H95: 20 | I95: 0 | J95: 310 | K95: Janet Leverling
A96: 10283 | B96: 2016-01-23 | C96: LILA-Supermercado | D96: Venezuela | E96: Mozzarella di Giovanni | F96: Dairy Products | G96: 34.8 | H96: 3 | I96: 0 | J96: 104.4 | K96: Janet Leverling
A97: 10284 | B97: 2016-01-26 | C97: Lehmanns Marktstand | D97: Germany | E97: Laughing Lumberjack Lager | F97: Beverages | G97: 14 | H97: 5 | I97: 0.25 | J97: 52.5 | K97: Margaret Peacock
A98: 10284 | B98: 2016-01-26 | C98: Lehmanns Marktstand | D98: Germany | E98: Gula Malacca | F98: Condiments | G98: 19.45 | H98: 21 | I98: 0 | J98: 408.45 | K98: Margaret Peacock
A99: 10284 | B99: 2016-01-26 | C99: Lehmanns Marktstand | D99: Germany | E99: Camembert Pierrot | F99: Dairy Products | G99: 34 | H99: 20 | I99: 0.25 | J99: 510 | K99: Margaret Peacock
A100: 10284 | B100: 2016-01-26 | C100: Lehmanns Marktstand | D100: Germany | E100: Schoggi Schokolade | F100: Confections | G100: 43.9 | H100: 15 | I100: 0.25 | J100: 493.88 | K100: Margaret Peacock
A101: 10285 | B101: 2016-01-27 | C101: QUICK-Stop | D101: Germany | E101: Chai | F101: Beverages | G101: 18 | H101: 45 | I101: 0.2 | J101: 648 | K101: Nancy Davolio
A102: 10285 | B102: 2016-01-27 | C102: QUICK-Stop | D102: Germany | E102: Boston Crab Meat | F102: Seafood | G102: 18.4 | H102: 40 | I102: 0.2 | J102: 588.8 | K102: Nancy Davolio
A103: 10285 | B103: 2016-01-27 | C103: QUICK-Stop | D103: Germany | E103: Perth Pasties | F103: Meat/Poultry | G103: 32.8 | H103: 36 | I103: 0.2 | J103: 944.64 | K103: Nancy Davolio
A104: 10286 | B104: 2016-01-28 | C104: QUICK-Stop | D104: Germany | E104: Tarte au sucre | F104: Confections | G104: 49.3 | H104: 40 | I104: 0 | J104: 1972 | K104: Laura Callahan
A105: 10286 | B105: 2016-01-28 | C105: QUICK-Stop | D105: Germany | E105: Steeleye Stout | F105: Beverages | G105: 18 | H105: 100 | I105: 0 | J105: 1800 | K105: Laura Callahan
A106: 10287 | B106: 2016-01-29 | C106: Ricardo Adocicados | D106: Brazil | E106: Spegesild | F106: Seafood | G106: 12 | H106: 15 | I106: 0.15 | J106: 153 | K106: Laura Callahan
A107: 10287 | B107: 2016-01-29 | C107: Ricardo Adocicados | D107: Brazil | E107: Pavlova | F107: Confections | G107: 17.45 | H107: 40 | I107: 0.15 | J107: 593.3 | K107: Laura Callahan
A108: 10287 | B108: 2016-01-29 | C108: Ricardo Adocicados | D108: Brazil | E108: Sasquatch Ale | F108: Beverages | G108: 14 | H108: 20 | I108: 0 | J108: 280 | K108: Laura Callahan
A109: 10288 | B109: 2016-01-30 | C109: Reggiani Caseifici | D109: Italy | E109: Scottish Longbreads | F109: Confections | G109: 12.5 | H109: 3 | I109: 0.1 | J109: 33.75 | K109: Margaret Peacock
A110: 10288 | B110: 2016-01-30 | C110: Reggiani Caseifici | D110: Italy | E110: Tourtière | F110: Meat/Poultry | G110: 7.45 | H110: 10 | I110: 0.1 | J110: 67.05 | K110: Margaret Peacock
A111: 10289 | B111: 2016-02-02 | C111: B's Beverages | D111: UK | E111: Aniseed Syrup | F111: Condiments | G111: 10 | H111: 30 | I111: 0 | J111: 300 | K111: Robert King
A112: 10289 | B112: 2016-02-02 | C112: B's Beverages | D112: UK | E112: Wimmers gute Semmelknödel | F112: Grains/Cereals | G112: 33.25 | H112: 9 | I112: 0 | J112: 299.25 | K112: Robert King
A113: 10290 | B113: 2016-02-03 | C113: Comércio Mineiro | D113: Brazil | E113: Original Frankfurter grüne Soße | F113: Condiments | G113: 13 | H113: 10 | I113: 0 | J113: 130 | K113: Laura Callahan
A114: 10290 | B114: 2016-02-03 | C114: Comércio Mineiro | D114: Brazil | E114: Thüringer Rostbratwurst | F114: Meat/Poultry | G114: 123.79 | H114: 15 | I114: 0 | J114: 1856.85 | K114: Laura Callahan
A115: 10290 | B115: 2016-02-03 | C115: Comércio Mineiro | D115: Brazil | E115: Maxilaku | F115: Confections | G115: 20 | H115: 15 | I115: 0 | J115: 300 | K115: Laura Callahan
A116: 10290 | B116: 2016-02-03 | C116: Comércio Mineiro | D116: Brazil | E116: Chef Anton's Gumbo Mix | F116: Condiments | G116: 21.35 | H116: 20 | I116: 0 | J116: 427 | K116: Laura Callahan
A117: 10291 | B117: 2016-02-03 | C117: Que Delícia | D117: Brazil | E117: Gula Malacca | F117: Condiments | G117: 19.45 | H117: 24 | I117: 0.1 | J117: 420.12 | K117: Michael Suyama
A118: 10291 | B118: 2016-02-03 | C118: Que Delícia | D118: Brazil | E118: Konbu | F118: Seafood | G118: 6 | H118: 20 | I118: 0.1 | J118: 108 | K118: Michael Suyama
A119: 10291 | B119: 2016-02-03 | C119: Que Delícia | D119: Brazil | E119: Manjimup Dried Apples | F119: Produce | G119: 53 | H119: 2 | I119: 0.1 | J119: 95.4 | K119: Michael Suyama
A120: 10292 | B120: 2016-02-04 | C120: Tradição Hipermercados | D120: Brazil | E120: Sir Rodney's Marmalade | F120: Confections | G120: 81 | H120: 20 | I120: 0 | J120: 1620 | K120: Nancy Davolio
A121: 10293 | B121: 2016-02-05 | C121: Tortuga Restaurante | D121: Mexico | E121: Carnarvon Tigers | F121: Seafood | G121: 62.5 | H121: 12 | I121: 0 | J121: 750 | K121: Nancy Davolio
A122: 10293 | B122: 2016-02-05 | C122: Tortuga Restaurante | D122: Mexico | E122: Rhönbräu Klosterbier | F122: Beverages | G122: 7.75 | H122: 6 | I122: 0 | J122: 46.5 | K122: Nancy Davolio
A123: 10293 | B123: 2016-02-05 | C123: Tortuga Restaurante | D123: Mexico | E123: Guaraná Fantástica | F123: Beverages | G123: 4.5 | H123: 10 | I123: 0 | J123: 45 | K123: Nancy Davolio
A124: 10293 | B124: 2016-02-05 | C124: Tortuga Restaurante | D124: Mexico | E124: Vegie-spread | F124: Condiments | G124: 43.9 | H124: 5 | I124: 0 | J124: 219.5 | K124: Nancy Davolio
A125: 10294 | B125: 2016-02-06 | C125: Rattlesnake Canyon Grocery | D125: USA | E125: Camembert Pierrot | F125: Dairy Products | G125: 34 | H125: 21 | I125: 0 | J125: 714 | K125: Margaret Peacock
A126: 10294 | B126: 2016-02-06 | C126: Rattlesnake Canyon Grocery | D126: USA | E126: Rhönbräu Klosterbier | F126: Beverages | G126: 7.75 | H126: 6 | I126: 0 | J126: 46.5 | K126: Margaret Peacock
A127: 10294 | B127: 2016-02-06 | C127: Rattlesnake Canyon Grocery | D127: USA | E127: Chai | F127: Beverages | G127: 18 | H127: 18 | I127: 0 | J127: 324 | K127: Margaret Peacock
A128: 10294 | B128: 2016-02-06 | C128: Rattlesnake Canyon Grocery | D128: USA | E128: Ipoh Coffee | F128: Beverages | G128: 46 | H128: 15 | I128: 0 | J128: 690 | K128: Margaret Peacock
A129: 10294 | B129: 2016-02-06 | C129: Rattlesnake Canyon Grocery | D129: USA | E129: Alice Mutton | F129: Meat/Poultry | G129: 39 | H129: 15 | I129: 0 | J129: 585 | K129: Margaret Peacock
A130: 10295 | B130: 2016-02-09 | C130: Vins et alcools Chevalier | D130: France | E130: Gnocchi di nonna Alice | F130: Grains/Cereals | G130: 38 | H130: 4 | I130: 0 | J130: 152 | K130: Andrew Fuller
A131: 10296 | B131: 2016-02-10 | C131: LILA-Supermercado | D131: Venezuela | E131: Gudbrandsdalsost | F131: Dairy Products | G131: 36 | H131: 15 | I131: 0 | J131: =ROUND((G131*H131)*(1-I131),2) -> 540 | K131: Michael Suyama
A132: 10296 | B132: 2016-02-10 | C132: LILA-Supermercado | D132: Venezuela | E132: Queso Cabrales | F132: Dairy Products | G132: 21 | H132: 12 | I132: 0 | J132: 252 | K132: Michael Suyama
A133: 10296 | B133: 2016-02-10 | C133: LILA-Supermercado | D133: Venezuela | E133: Pavlova | F133: Confections | G133: 17.45 | H133: 30 | I133: 0 | J133: 523.5 | K133: Michael Suyama
A134: 10297 | B134: 2016-02-11 | C134: Blondel père et fils | D134: France | E134: Mozzarella di Giovanni | F134: Dairy Products | G134: 34.8 | H134: 20 | I134: 0 | J134: 696 | K134: Steven Buchanan
A135: 10297 | B135: 2016-02-11 | C135: Blondel père et fils | D135: France | E135: Chartreuse verte | F135: Beverages | G135: 18 | H135: 60 | I135: 0 | J135: 1080 | K135: Steven Buchanan
A136: 10298 | B136: 2016-02-12 | C136: Hungry Owl All-Night Grocers | D136: Ireland | E136: Chang | F136: Beverages | G136: 19 | H136: 40 | I136: 0 | J136: 760 | K136: Michael Suyama
A137: 10298 | B137: 2016-02-12 | C137: Hungry Owl All-Night Grocers | D137: Ireland | E137: Inlagd Sill | F137: Seafood | G137: 19 | H137: 40 | I137: 0.25 | J137: 570 | K137: Michael Suyama
A138: 10298 | B138: 2016-02-12 | C138: Hungry Owl All-Night Grocers | D138: Ireland | E138: Tarte au sucre | F138: Confections | G138: 49.3 | H138: 15 | I138: 0 | J138: 739.5 | K138: Michael Suyama
A139: 10298 | B139: 2016-02-12 | C139: Hungry Owl All-Night Grocers | D139: Ireland | E139: Raclette Courdavault | F139: Dairy Products | G139: 55 | H139: 30 | I139: 0.25 | J139: 1237.5 | K139: Michael Suyama
A140: 10299 | B140: 2016-02-13 | C140: Ricardo Adocicados | D140: Brazil | E140: Outback Lager | F140: Beverages | G140: 15 | H140: 20 | I140: 0 | J140: 300 | K140: Margaret Peacock
A141: 10299 | B141: 2016-02-13 | C141: Ricardo Adocicados | D141: Brazil | E141: Teatime Chocolate Biscuits | F141: Confections | G141: 9.2 | H141: 15 | I141: 0 | J141: 138 | K141: Margaret Peacock
A142: 10300 | B142: 2016-02-16 | C142: Magazzini Alimentari Riuniti | D142: Italy | E142: Scottish Longbreads | F142: Confections | G142: 12.5 | H142: 20 | I142: 0 | J142: 250 | K142: Andrew Fuller
A143: 10300 | B143: 2016-02-16 | C143: Magazzini Alimentari Riuniti | D143: Italy | E143: Louisiana Hot Spiced Okra | F143: Condiments | G143: 17 | H143: 30 | I143: 0 | J143: 510 | K143: Andrew Fuller
A144: 10301 | B144: 2016-02-16 | C144: Die Wandernde Kuh | D144: Germany | E144: Gnocchi di nonna Alice | F144: Grains/Cereals | G144: 38 | H144: 20 | I144: 0 | J144: 760 | K144: Laura Callahan
A145: 10301 | B145: 2016-02-16 | C145: Die Wandernde Kuh | D145: Germany | E145: Boston Crab Meat | F145: Seafood | G145: 18.4 | H145: 10 | I145: 0 | J145: 184 | K145: Laura Callahan
A146: 10302 | B146: 2016-02-17 | C146: Suprêmes délices | D146: Belgium | E146: Ipoh Coffee | F146: Beverages | G146: 46 | H146: 12 | I146: 0 | J146: 552 | K146: Margaret Peacock
A147: 10302 | B147: 2016-02-17 | C147: Suprêmes délices | D147: Belgium | E147: Rössle Sauerkraut | F147: Produce | G147: 45.6 | H147: 28 | I147: 0 | J147: 1276.8 | K147: Margaret Peacock
A148: 10302 | B148: 2016-02-17 | C148: Suprêmes délices | D148: Belgium | E148: Alice Mutton | F148: Meat/Poultry | G148: 39 | H148: 40 | I148: 0 | J148: 1560 | K148: Margaret Peacock
A149: 10303 | B149: 2016-02-18 | C149: Godos Cocina Típica | D149: Spain | E149: Louisiana Fiery Hot Pepper Sauce | F149: Condiments | G149: 21.05 | H149: 30 | I149: 0.1 | J149: 568.35 | K149: Robert King
A150: 10303 | B150: 2016-02-18 | C150: Godos Cocina Típica | D150: Spain | E150: Boston Crab Meat | F150: Seafood | G150: 18.4 | H150: 40 | I150: 0.1 | J150: 662.4 | K150: Robert King
A151: 10303 | B151: 2016-02-18 | C151: Godos Cocina Típica | D151: Spain | E151: Scottish Longbreads | F151: Confections | G151: 12.5 | H151: 15 | I151: 0.1 | J151: 168.75 | K151: Robert King
A152: 10304 | B152: 2016-02-19 | C152: Tortuga Restaurante | D152: Mexico | E152: Maxilaku | F152: Confections | G152: 20 | H152: 30 | I152: 0 | J152: 600 | K152: Nancy Davolio
A153: 10304 | B153: 2016-02-19 | C153: Tortuga Restaurante | D153: Mexico | E153: Raclette Courdavault | F153: Dairy Products | G153: 55 | H153: 10 | I153: 0 | J153: 550 | K153: Nancy Davolio
A154: 10304 | B154: 2016-02-19 | C154: Tortuga Restaurante | D154: Mexico | E154: Fløtemysost | F154: Dairy Products | G154: 21.5 | H154: 2 | I154: 0 | J154: 43 | K154: Nancy Davolio
A155: 10305 | B155: 2016-02-20 | C155: Old World Delicatessen | D155: USA | E155: Chartreuse verte | F155: Beverages | G155: 18 | H155: 30 | I155: 0.1 | J155: 486 | K155: Laura Callahan
A156: 10305 | B156: 2016-02-20 | C156: Old World Delicatessen | D156: USA | E156: Thüringer Rostbratwurst | F156: Meat/Poultry | G156: 123.79 | H156: 25 | I156: 0.1 | J156: 2785.28 | K156: Laura Callahan
A157: 10305 | B157: 2016-02-20 | C157: Old World Delicatessen | D157: USA | E157: Carnarvon Tigers | F157: Seafood | G157: 62.5 | H157: 25 | I157: 0.1 | J157: 1406.25 | K157: Laura Callahan
A158: 10306 | B158: 2016-02-23 | C158: Romero y tomillo | D158: Spain | E158: Nord-Ost Matjeshering | F158: Seafood | G158: 25.89 | H158: 10 | I158: 0 | J158: 258.9 | K158: Nancy Davolio
A159: 10306 | B159: 2016-02-23 | C159: Romero y tomillo | D159: Spain | E159: Perth Pasties | F159: Meat/Poultry | G159: 32.8 | H159: 10 | I159: 0 | J159: 328 | K159: Nancy Davolio
A160: 10306 | B160: 2016-02-23 | C160: Romero y tomillo | D160: Spain | E160: Tourtière | F160: Meat/Poultry | G160: 7.45 | H160: 5 | I160: 0 | J160: 37.25 | K160: Nancy Davolio
A161: 10307 | B161: 2016-02-24 | C161: Lonesome Pine Restaurant | D161: USA | E161: Tarte au sucre | F161: Confections | G161: 49.3 | H161: 10 | I161: 0 | J161: 493 | K161: Andrew Fuller
A162: 10307 | B162: 2016-02-24 | C162: Lonesome Pine Restaurant | D162: USA | E162: Scottish Longbreads | F162: Confections | G162: 12.5 | H162: 3 | I162: 0 | J162: 37.5 | K162: Andrew Fuller
A163: 10308 | B163: 2016-02-25 | C163: Ana Trujillo Emparedados y helados | D163: Mexico | E163: Outback Lager | F163: Beverages | G163: 15 | H163: 5 | I163: 0 | J163: 75 | K163: Robert King
A164: 10308 | B164: 2016-02-25 | C164: Ana Trujillo Emparedados y helados | D164: Mexico | E164: Gudbrandsdalsost | F164: Dairy Products | G164: 36 | H164: 1 | I164: 0 | J164: 36 | K164: Robert King
A165: 10309 | B165: 2016-02-26 | C165: Hungry Owl All-Night Grocers | D165: Ireland | E165: Singaporean Hokkien Fried Mee | F165: Grains/Cereals | G165: 14 | H165: 2 | I165: 0 | J165: 28 | K165: Janet Leverling
A166: 10309 | B166: 2016-02-26 | C166: Hungry Owl All-Night Grocers | D166: Ireland | E166: Ipoh Coffee | F166: Beverages | G166: 46 | H166: 20 | I166: 0 | J166: 920 | K166: Janet Leverling
A167: 10309 | B167: 2016-02-26 | C167: Hungry Owl All-Night Grocers | D167: Ireland | E167: Grandma's Boysenberry Spread | F167: Condiments | G167: 25 | H167: 30 | I167: 0 | J167: 750 | K167: Janet Leverling
A168: 10309 | B168: 2016-02-26 | C168: Hungry Owl All-Night Grocers | D168: Ireland | E168: Chef Anton's Cajun Seasoning | F168: Condiments | G168: 22 | H168: 20 | I168: 0 | J168: 440 | K168: Janet Leverling
A169: 10309 | B169: 2016-02-26 | C169: Hungry Owl All-Night Grocers | D169: Ireland | E169: Fløtemysost | F169: Dairy Products | G169: 21.5 | H169: 3 | I169: 0 | J169: 64.5 | K169: Janet Leverling
A170: 10310 | B170: 2016-02-27 | C170: The Big Cheese | D170: USA | E170: Pavlova | F170: Confections | G170: 17.45 | H170: 10 | I170: 0 | J170: 174.5 | K170: Laura Callahan
A171: 10310 | B171: 2016-02-27 | C171: The Big Cheese | D171: USA | E171: Tarte au sucre | F171: Confections | G171: 49.3 | H171: 5 | I171: 0 | J171: 246.5 | K171: Laura Callahan
A172: 10311 | B172: 2016-02-27 | C172: Du monde entier | D172: France | E172: Gudbrandsdalsost | F172: Dairy Products | G172: 36 | H172: 7 | I172: 0 | J172: 252 | K172: Nancy Davolio
A173: 10311 | B173: 2016-02-27 | C173: Du monde entier | D173: France | E173: Singaporean Hokkien Fried Mee | F173: Grains/Cereals | G173: 14 | H173: 6 | I173: 0 | J173: 84 | K173: Nancy Davolio
A174: 10312 | B174: 2016-03-01 | C174: Die Wandernde Kuh | D174: Germany | E174: Rhönbräu Klosterbier | F174: Beverages | G174: 7.75 | H174: 10 | I174: 0 | J174: 77.5 | K174: Andrew Fuller
A175: 10312 | B175: 2016-03-01 | C175: Die Wandernde Kuh | D175: Germany | E175: Rössle Sauerkraut | F175: Produce | G175: 45.6 | H175: 4 | I175: 0 | J175: 182.4 | K175: Andrew Fuller
A176: 10312 | B176: 2016-03-01 | C176: Die Wandernde Kuh | D176: Germany | E176: Ipoh Coffee | F176: Beverages | G176: 46 | H176: 24 | I176: 0 | J176: 1104 | K176: Andrew Fuller
A177: 10312 | B177: 2016-03-01 | C177: Die Wandernde Kuh | D177: Germany | E177: Perth Pasties | F177: Meat/Poultry | G177: 32.8 | H177: 20 | I177: 0 | J177: 656 | K177: Andrew Fuller
A178: 10313 | B178: 2016-03-02 | C178: QUICK-Stop | D178: Germany | E178: Inlagd Sill | F178: Seafood | G178: 19 | H178: 12 | I178: 0 | J178: 228 | K178: Andrew Fuller
A179: 10314 | B179: 2016-03-03 | C179: Rattlesnake Canyon Grocery | D179: USA | E179: Tarte au sucre | F179: Confections | G179: 49.3 | H179: 25 | I179: 0.1 | J179: 1109.25 | K179: Nancy Davolio
A180: 10314 | B180: 2016-03-03 | C180: Rattlesnake Canyon Grocery | D180: USA | E180: Escargots de Bourgogne | F180: Seafood | G180: 13.25 | H180: 30 | I180: 0.1 | J180: 357.75 | K180: Nancy Davolio
A181: 10314 | B181: 2016-03-03 | C181: Rattlesnake Canyon Grocery | D181: USA | E181: Mascarpone Fabioli | F181: Dairy Products | G181: 32 | H181: 40 | I181: 0.1 | J181: 1152 | K181: Nancy Davolio
A182: 10315 | B182: 2016-03-04 | C182: Island Trading | D182: UK | E182: Outback Lager | F182: Beverages | G182: 15 | H182: 30 | I182: 0 | J182: 450 | K182: Margaret Peacock
A183: 10315 | B183: 2016-03-04 | C183: Island Trading | D183: UK | E183: Sasquatch Ale | F183: Beverages | G183: 14 | H183: 14 | I183: 0 | J183: 196 | K183: Margaret Peacock
A184: 10316 | B184: 2016-03-05 | C184: Rattlesnake Canyon Grocery | D184: USA | E184: Tarte au sucre | F184: Confections | G184: 49.3 | H184: 70 | I184: 0 | J184: 3451 | K184: Nancy Davolio
A185: 10316 | B185: 2016-03-05 | C185: Rattlesnake Canyon Grocery | D185: USA | E185: Jack's New England Clam Chowder | F185: Seafood | G185: 9.65 | H185: 10 | I185: 0 | J185: 96.5 | K185: Nancy Davolio
A186: 10317 | B186: 2016-03-08 | C186: Lonesome Pine Restaurant | D186: USA | E186: Chai | F186: Beverages | G186: 18 | H186: 20 | I186: 0 | J186: 360 | K186: Michael Suyama
A187: 10318 | B187: 2016-03-09 | C187: Island Trading | D187: UK | E187: Jack's New England Clam Chowder | F187: Seafood | G187: 9.65 | H187: 20 | I187: 0 | J187: 193 | K187: Laura Callahan
A188: 10318 | B188: 2016-03-09 | C188: Island Trading | D188: UK | E188: Lakkalikööri | F188: Beverages | G188: 18 | H188: 6 | I188: 0 | J188: 108 | K188: Laura Callahan
A189: 10319 | B189: 2016-03-10 | C189: Tortuga Restaurante | D189: Mexico | E189: Alice Mutton | F189: Meat/Poultry | G189: 39 | H189: 8 | I189: 0 | J189: 312 | K189: Robert King
A190: 10319 | B190: 2016-03-10 | C190: Tortuga Restaurante | D190: Mexico | E190: Rössle Sauerkraut | F190: Produce | G190: 45.6 | H190: 14 | I190: 0 | J190: 638.4 | K190: Robert King
A191: 10319 | B191: 2016-03-10 | C191: Tortuga Restaurante | D191: Mexico | E191: Lakkalikööri | F191: Beverages | G191: 18 | H191: 30 | I191: 0 | J191: 540 | K191: Robert King
A192: 10320 | B192: 2016-03-11 | C192: Wartian Herkku | D192: Finland | E192: Fløtemysost | F192: Dairy Products | G192: 21.5 | H192: 30 | I192: 0 | J192: 645 | K192: Steven Buchanan

Sheet Manchester
A1: Order ID | B1: Order Date | C1: Customer Name | D1: Country | E1: Product Name | F1: Product Category | G1: Unit Price | H1: Units Sold | I1: Discount | J1: Total Sales Value | K1: Sales Rep
A2: 10248 | B2: 2015-12-11 | C2: Vins et alcools Chevalier | D2: France | E2: Mozzarella di Giovanni | F2: Dairy Products | G2: 34.8 | H2: 5 | I2: 0 | J2: =ROUND((G2*H2)*(1-I2),2) -> 174 | K2: Steven Buchanan
A3: 10248 | B3: 2015-12-11 | C3: Vins et alcools Chevalier | D3: France | E3: Singaporean Hokkien Fried Mee | F3: Grains/Cereals | G3: 14 | H3: 10 | I3: 0 | J3: =ROUND((G3*H3)*(1-I3),2) -> 140 | K3: Steven Buchanan
A4: 10248 | B4: 2015-12-11 | C4: Vins et alcools Chevalier | D4: France | E4: Queso Cabrales | F4: Dairy Products | G4: 21 | H4: 12 | I4: 0 | J4: 252 | K4: Steven Buchanan
A5: 10249 | B5: 2015-12-12 | C5: Toms Spezialitäten | D5: Germany | E5: Manjimup Dried Apples | F5: Produce | G5: 53 | H5: 40 | I5: 0 | J5: 2120 | K5: Michael Suyama
A6: 10249 | B6: 2015-12-12 | C6: Toms Spezialitäten | D6: Germany | E6: Tofu | F6: Produce | G6: 23.25 | H6: 9 | I6: 0 | J6: 209.25 | K6: Michael Suyama
A7: 10250 | B7: 2015-12-15 | C7: Hanari Carnes | D7: Brazil | E7: Manjimup Dried Apples | F7: Produce | G7: 53 | H7: 35 | I7: 0.15 | J7: 1576.75 | K7: Margaret Peacock
A8: 10250 | B8: 2015-12-15 | C8: Hanari Carnes | D8: Brazil | E8: Jack's New England Clam Chowder | F8: Seafood | G8: 9.65 | H8: 10 | I8: 0 | J8: 96.5 | K8: Margaret Peacock
A9: 10250 | B9: 2015-12-15 | C9: Hanari Carnes | D9: Brazil | E9: Louisiana Fiery Hot Pepper Sauce | F9: Condiments | G9: 21.05 | H9: 15 | I9: 0.15 | J9: 268.39 | K9: Margaret Peacock
A10: 10251 | B10: 2015-12-15 | C10: Victuailles en stock | D10: France | E10: Gustaf's Knäckebröd | F10: Grains/Cereals | G10: 21 | H10: 6 | I10: 0.05 | J10: 119.7 | K10: Janet Leverling
A11: 10251 | B11: 2015-12-15 | C11: Victuailles en stock | D11: France | E11: Louisiana Fiery Hot Pepper Sauce | F11: Condiments | G11: 21.05 | H11: 20 | I11: 0 | J11: 421 | K11: Janet Leverling
A12: 10251 | B12: 2015-12-15 | C12: Victuailles en stock | D12: France | E12: Ravioli Angelo | F12: Grains/Cereals | G12: 19.5 | H12: 15 | I12: 0.05 | J12: 277.88 | K12: Janet Leverling
A13: 10252 | B13: 2015-12-16 | C13: Suprêmes délices | D13: Belgium | E13: Geitost | F13: Dairy Products | G13: 2.5 | H13: 25 | I13: 0.05 | J13: 59.38 | K13: Margaret Peacock
A14: 10252 | B14: 2015-12-16 | C14: Suprêmes délices | D14: Belgium | E14: Camembert Pierrot | F14: Dairy Products | G14: 34 | H14: 40 | I14: 0 | J14: 1360 | K14: Margaret Peacock
A15: 10252 | B15: 2015-12-16 | C15: Suprêmes délices | D15: Belgium | E15: Sir Rodney's Marmalade | F15: Confections | G15: 81 | H15: 40 | I15: 0.05 | J15: 3078 | K15: Margaret Peacock
A16: 10253 | B16: 2015-12-17 | C16: Hanari Carnes | D16: Brazil | E16: Chartreuse verte | F16: Beverages | G16: 18 | H16: 42 | I16: 0 | J16: 756 | K16: Janet Leverling
A17: 10253 | B17: 2015-12-17 | C17: Hanari Carnes | D17: Brazil | E17: Gorgonzola Telino | F17: Dairy Products | G17: 12.5 | H17: 20 | I17: 0 | J17: 250 | K17: Janet Leverling
A18: 10253 | B18: 2015-12-17 | C18: Hanari Carnes | D18: Brazil | E18: Maxilaku | F18: Confections | G18: 20 | H18: 40 | I18: 0 | J18: 800 | K18: Janet Leverling
A19: 10254 | B19: 2015-12-18 | C19: Chop-suey Chinese | D19: Switzerland | E19: Longlife Tofu | F19: Produce | G19: 10 | H19: 21 | I19: 0 | J19: 210 | K19: Steven Buchanan
A20: 10254 | B20: 2015-12-18 | C20: Chop-suey Chinese | D20: Switzerland | E20: Pâté chinois | F20: Meat/Poultry | G20: 24 | H20: 21 | I20: 0.15 | J20: 428.4 | K20: Steven Buchanan
A21: 10254 | B21: 2015-12-18 | C21: Chop-suey Chinese | D21: Switzerland | E21: Guaraná Fantástica | F21: Beverages | G21: 4.5 | H21: 15 | I21: 0.15 | J21: 57.38 | K21: Steven Buchanan
A22: 10255 | B22: 2015-12-19 | C22: Richter Supermarkt | D22: Switzerland | E22: Chang | F22: Beverages | G22: 19 | H22: 20 | I22: 0 | J22: 380 | K22: Anne Dodsworth
A23: 10255 | B23: 2015-12-19 | C23: Richter Supermarkt | D23: Switzerland | E23: Raclette Courdavault | F23: Dairy Products | G23: 55 | H23: 30 | I23: 0 | J23: 1650 | K23: Anne Dodsworth
A24: 10255 | B24: 2015-12-19 | C24: Richter Supermarkt | D24: Switzerland | E24: Pavlova | F24: Confections | G24: 17.45 | H24: 35 | I24: 0 | J24: 610.75 | K24: Anne Dodsworth
A25: 10255 | B25: 2015-12-19 | C25: Richter Supermarkt | D25: Switzerland | E25: Inlagd Sill | F25: Seafood | G25: 19 | H25: 25 | I25: 0 | J25: 475 | K25: Anne Dodsworth
A26: 10256 | B26: 2015-12-22 | C26: Wellington Importadora | D26: Brazil | E26: Perth Pasties | F26: Meat/Poultry | G26: 32.8 | H26: 15 | I26: 0 | J26: 492 | K26: Janet Leverling
A27: 10256 | B27: 2015-12-22 | C27: Wellington Importadora | D27: Brazil | E27: Original Frankfurter grüne Soße | F27: Condiments | G27: 13 | H27: 12 | I27: 0 | J27: 156 | K27: Janet Leverling
A28: 10257 | B28: 2015-12-23 | C28: HILARIÓN-Abastos | D28: Venezuela | E28: Schoggi Schokolade | F28: Confections | G28: 43.9 | H28: 25 | I28: 0 | J28: 1097.5 | K28: Margaret Peacock
A29: 10257 | B29: 2015-12-23 | C29: HILARIÓN-Abastos | D29: Venezuela | E29: Chartreuse verte | F29: Beverages | G29: 18 | H29: 6 | I29: 0 | J29: 108 | K29: Margaret Peacock
A30: 10257 | B30: 2015-12-23 | C30: HILARIÓN-Abastos | D30: Venezuela | E30: Original Frankfurter grüne Soße | F30: Condiments | G30: 13 | H30: 15 | I30: 0 | J30: 195 | K30: Margaret Peacock
A31: 10258 | B31: 2015-12-24 | C31: Ernst Handel | D31: Austria | E31: Chef Anton's Gumbo Mix | F31: Condiments | G31: 21.35 | H31: 65 | I31: 0.2 | J31: 1110.2 | K31: Nancy Davolio
A32: 10258 | B32: 2015-12-24 | C32: Ernst Handel | D32: Austria | E32: Chang | F32: Beverages | G32: 19 | H32: 50 | I32: 0.2 | J32: 760 | K32: Nancy Davolio
A33: 10258 | B33: 2015-12-24 | C33: Ernst Handel | D33: Austria | E33: Mascarpone Fabioli | F33: Dairy Products | G33: 32 | H33: 6 | I33: 0.2 | J33: 153.6 | K33: Nancy Davolio
A34: 10259 | B34: 2015-12-25 | C34: Centro comercial Moctezuma | D34: Mexico | E34: Sir Rodney's Scones | F34: Confections | G34: 10 | H34: 10 | I34: 0 | J34: 100 | K34: Margaret Peacock
A35: 10259 | B35: 2015-12-25 | C35: Centro comercial Moctezuma | D35: Mexico | E35: Gravad lax | F35: Seafood | G35: 26 | H35: 1 | I35: 0 | J35: 26 | K35: Margaret Peacock
A36: 10260 | B36: 2015-12-26 | C36: Ottilies Käseladen | D36: Germany | E36: Outback Lager | F36: Beverages | G36: 15 | H36: 21 | I36: 0.25 | J36: 236.25 | K36: Margaret Peacock
A37: 10260 | B37: 2015-12-26 | C37: Ottilies Käseladen | D37: Germany | E37: Ravioli Angelo | F37: Grains/Cereals | G37: 19.5 | H37: 50 | I37: 0 | J37: 975 | K37: Margaret Peacock
A38: 10260 | B38: 2015-12-26 | C38: Ottilies Käseladen | D38: Germany | E38: Tarte au sucre | F38: Confections | G38: 49.3 | H38: 15 | I38: 0.25 | J38: 554.63 | K38: Margaret Peacock
A39: 10260 | B39: 2015-12-26 | C39: Ottilies Käseladen | D39: Germany | E39: Jack's New England Clam Chowder | F39: Seafood | G39: 9.65 | H39: 16 | I39: 0.25 | J39: 115.8 | K39: Margaret Peacock
A40: 10261 | B40: 2015-12-26 | C40: Que Delícia | D40: Brazil | E40: Steeleye Stout | F40: Beverages | G40: 18 | H40: 20 | I40: 0 | J40: 360 | K40: Margaret Peacock
A41: 10261 | B41: 2015-12-26 | C41: Que Delícia | D41: Brazil | E41: Sir Rodney's Scones | F41: Confections | G41: 10 | H41: 20 | I41: 0 | J41: 200 | K41: Margaret Peacock
A42: 10262 | B42: 2015-12-29 | C42: Rattlesnake Canyon Grocery | D42: USA | E42: Chef Anton's Gumbo Mix | F42: Condiments | G42: 21.35 | H42: 12 | I42: 0.2 | J42: 204.96 | K42: Laura Callahan
A43: 10262 | B43: 2015-12-29 | C43: Rattlesnake Canyon Grocery | D43: USA | E43: Uncle Bob's Organic Dried Pears | F43: Produce | G43: 30 | H43: 15 | I43: 0 | J43: 450 | K43: Laura Callahan
A44: 10262 | B44: 2015-12-29 | C44: Rattlesnake Canyon Grocery | D44: USA | E44: Gnocchi di nonna Alice | F44: Grains/Cereals | G44: 38 | H44: 2 | I44: 0 | J44: 76 | K44: Laura Callahan
A45: 10263 | B45: 2015-12-30 | C45: Ernst Handel | D45: Austria | E45: Pavlova | F45: Confections | G45: 17.45 | H45: 60 | I45: 0.25 | J45: 785.25 | K45: Anne Dodsworth
A46: 10263 | B46: 2015-12-30 | C46: Ernst Handel | D46: Austria | E46: Nord-Ost Matjeshering | F46: Seafood | G46: 25.89 | H46: 60 | I46: 0.25 | J46: 1165.05 | K46: Anne Dodsworth
A47: 10263 | B47: 2015-12-30 | C47: Ernst Handel | D47: Austria | E47: Guaraná Fantástica | F47: Beverages | G47: 4.5 | H47: 28 | I47: 0 | J47: 126 | K47: Anne Dodsworth
A48: 10263 | B48: 2015-12-30 | C48: Ernst Handel | D48: Austria | E48: Longlife Tofu | F48: Produce | G48: 10 | H48: 36 | I48: 0.25 | J48: 270 | K48: Anne Dodsworth
A49: 10264 | B49: 2015-12-31 | C49: Folk och fä HB | D49: Sweden | E49: Chang | F49: Beverages | G49: 19 | H49: 35 | I49: 0 | J49: 665 | K49: Michael Suyama
A50: 10264 | B50: 2015-12-31 | C50: Folk och fä HB | D50: Sweden | E50: Jack's New England Clam Chowder | F50: Seafood | G50: 9.65 | H50: 25 | I50: 0.15 | J50: 205.06 | K50: Michael Suyama
A51: 10265 | B51: 2016-01-01 | C51: Blondel père et fils | D51: France | E51: Alice Mutton | F51: Meat/Poultry | G51: 39 | H51: 30 | I51: 0 | J51: 1170 | K51: Andrew Fuller
A52: 10265 | B52: 2016-01-01 | C52: Blondel père et fils | D52: France | E52: Outback Lager | F52: Beverages | G52: 15 | H52: 20 | I52: 0 | J52: 300 | K52: Andrew Fuller
A53: 10266 | B53: 2016-01-02 | C53: Wartian Herkku | D53: Finland | E53: Queso Manchego La Pastora | F53: Dairy Products | G53: 38 | H53: 12 | I53: 0.05 | J53: 433.2 | K53: Janet Leverling
A54: 10267 | B54: 2016-01-05 | C54: Frankenversand | D54: Germany | E54: Lakkalikööri | F54: Beverages | G54: 18 | H54: 15 | I54: 0.15 | J54: 229.5 | K54: Margaret Peacock
A55: 10267 | B55: 2016-01-05 | C55: Frankenversand | D55: Germany | E55: Boston Crab Meat | F55: Seafood | G55: 18.4 | H55: 50 | I55: 0 | J55: 920 | K55: Margaret Peacock
A56: 10267 | B56: 2016-01-05 | C56: Frankenversand | D56: Germany | E56: Raclette Courdavault | F56: Dairy Products | G56: 55 | H56: 70 | I56: 0.15 | J56: 3272.5 | K56: Margaret Peacock
A57: 10268 | B57: 2016-01-06 | C57: GROSELLA-Restaurante | D57: Venezuela | E57: Mozzarella di Giovanni | F57: Dairy Products | G57: 34.8 | H57: 4 | I57: 0 | J57: 139.2 | K57: Laura Callahan
A58: 10268 | B58: 2016-01-06 | C58: GROSELLA-Restaurante | D58: Venezuela | E58: Thüringer Rostbratwurst | F58: Meat/Poultry | G58: 123.79 | H58: 10 | I58: 0 | J58: 1237.9 | K58: Laura Callahan
A59: 10269 | B59: 2016-01-07 | C59: White Clover Markets | D59: USA | E59: Mozzarella di Giovanni | F59: Dairy Products | G59: 34.8 | H59: 20 | I59: 0.05 | J59: 661.2 | K59: Steven Buchanan
A60: 10269 | B60: 2016-01-07 | C60: White Clover Markets | D60: USA | E60: Geitost | F60: Dairy Products | G60: 2.5 | H60: 60 | I60: 0.05 | J60: 142.5 | K60: Steven Buchanan
A61: 10270 | B61: 2016-01-08 | C61: Wartian Herkku | D61: Finland | E61: Inlagd Sill | F61: Seafood | G61: 19 | H61: 30 | I61: 0 | J61: 570 | K61: Nancy Davolio
A62: 10270 | B62: 2016-01-08 | C62: Wartian Herkku | D62: Finland | E62: Ipoh Coffee | F62: Beverages | G62: 46 | H62: 25 | I62: 0 | J62: 1150 | K62: Nancy Davolio
A63: 10271 | B63: 2016-01-08 | C63: Split Rail Beer & Ale | D63: USA | E63: Geitost | F63: Dairy Products | G63: 2.5 | H63: 24 | I63: 0 | J63: 60 | K63: Michael Suyama
A64: 10272 | B64: 2016-01-09 | C64: Rattlesnake Canyon Grocery | D64: USA | E64: Gorgonzola Telino | F64: Dairy Products | G64: 12.5 | H64: 40 | I64: 0 | J64: 500 | K64: Michael Suyama
A65: 10272 | B65: 2016-01-09 | C65: Rattlesnake Canyon Grocery | D65: USA | E65: Sir Rodney's Marmalade | F65: Confections | G65: 81 | H65: 6 | I65: 0 | J65: 486 | K65: Michael Suyama
A66: 10272 | B66: 2016-01-09 | C66: Rattlesnake Canyon Grocery | D66: USA | E66: Mozzarella di Giovanni | F66: Dairy Products | G66: 34.8 | H66: 24 | I66: 0 | J66: 835.2 | K66: Michael Suyama
A67: 10273 | B67: 2016-01-12 | C67: QUICK-Stop | D67: Germany | E67: Boston Crab Meat | F67: Seafood | G67: 18.4 | H67: 60 | I67: 0.05 | J67: =ROUND((G67*H67)*(1-I67),2) -> 1048.8 | K67: Janet Leverling
A68: 10273 | B68: 2016-01-12 | C68: QUICK-Stop | D68: Germany | E68: Geitost | F68: Dairy Products | G68: 2.5 | H68: 20 | I68: 0 | J68: 50 | K68: Janet Leverling
A69: 10273 | B69: 2016-01-12 | C69: QUICK-Stop | D69: Germany | E69: Gorgonzola Telino | F69: Dairy Products | G69: 12.5 | H69: 15 | I69: 0.05 | J69: 178.13 | K69: Janet Leverling
A70: 10273 | B70: 2016-01-12 | C70: QUICK-Stop | D70: Germany | E70: Ikura | F70: Seafood | G70: 31 | H70: 24 | I70: 0.05 | J70: 706.8 | K70: Janet Leverling
A71: 10273 | B71: 2016-01-12 | C71: QUICK-Stop | D71: Germany | E71: Lakkalikööri | F71: Beverages | G71: 18 | H71: 33 | I71: 0.05 | J71: 564.3 | K71: Janet Leverling
A72: 10274 | B72: 2016-01-13 | C72: Vins et alcools Chevalier | D72: France | E72: Fløtemysost | F72: Dairy Products | G72: 21.5 | H72: 20 | I72: 0 | J72: 430 | K72: Michael Suyama
A73: 10274 | B73: 2016-01-13 | C73: Vins et alcools Chevalier | D73: France | E73: Mozzarella di Giovanni | F73: Dairy Products | G73: 34.8 | H73: 7 | I73: 0 | J73: 243.6 | K73: Michael Suyama
A74: 10275 | B74: 2016-01-14 | C74: Magazzini Alimentari Riuniti | D74: Italy | E74: Guaraná Fantástica | F74: Beverages | G74: 4.5 | H74: 12 | I74: 0.05 | J74: 51.3 | K74: Nancy Davolio
A75: 10275 | B75: 2016-01-14 | C75: Magazzini Alimentari Riuniti | D75: Italy | E75: Raclette Courdavault | F75: Dairy Products | G75: 55 | H75: 6 | I75: 0.05 | J75: 313.5 | K75: Nancy Davolio
A76: 10276 | B76: 2016-01-15 | C76: Tortuga Restaurante | D76: Mexico | E76: Ikura | F76: Seafood | G76: 31 | H76: 15 | I76: 0 | J76: 465 | K76: Laura Callahan
A77: 10276 | B77: 2016-01-15 | C77: Tortuga Restaurante | D77: Mexico | E77: Konbu | F77: Seafood | G77: 6 | H77: 10 | I77: 0 | J77: 60 | K77: Laura Callahan
A78: 10277 | B78: 2016-01-16 | C78: Morgenstern Gesundkost | D78: Germany | E78: Rössle Sauerkraut | F78: Produce | G78: 45.6 | H78: 20 | I78: 0 | J78: 912 | K78: Andrew Fuller
A79: 10277 | B79: 2016-01-16 | C79: Morgenstern Gesundkost | D79: Germany | E79: Tarte au sucre | F79: Confections | G79: 49.3 | H79: 12 | I79: 0 | J79: 591.6 | K79: Andrew Fuller
A80: 10278 | B80: 2016-01-19 | C80: Berglunds snabbköp | D80: Sweden | E80: Raclette Courdavault | F80: Dairy Products | G80: 55 | H80: 15 | I80: 0 | J80: 825 | K80: Laura Callahan
A81: 10278 | B81: 2016-01-19 | C81: Berglunds snabbköp | D81: Sweden | E81: Röd Kaviar | F81: Seafood | G81: 15 | H81: 25 | I81: 0 | J81: 375 | K81: Laura Callahan
A82: 10278 | B82: 2016-01-19 | C82: Berglunds snabbköp | D82: Sweden | E82: Gula Malacca | F82: Condiments | G82: 19.45 | H82: 16 | I82: 0 | J82: 311.2 | K82: Laura Callahan
A83: 10278 | B83: 2016-01-19 | C83: Berglunds snabbköp | D83: Sweden | E83: Vegie-spread | F83: Condiments | G83: 43.9 | H83: 8 | I83: 0 | J83: 351.2 | K83: Laura Callahan
A84: 10279 | B84: 2016-01-20 | C84: Lehmanns Marktstand | D84: Germany | E84: Alice Mutton | F84: Meat/Poultry | G84: 39 | H84: 15 | I84: 0.25 | J84: 438.75 | K84: Laura Callahan
A85: 10280 | B85: 2016-01-21 | C85: Berglunds snabbköp | D85: Sweden | E85: Pâté chinois | F85: Meat/Poultry | G85: 24 | H85: 20 | I85: 0 | J85: 480 | K85: Andrew Fuller
A86: 10280 | B86: 2016-01-21 | C86: Berglunds snabbköp | D86: Sweden | E86: Rhönbräu Klosterbier | F86: Beverages | G86: 7.75 | H86: 30 | I86: 0 | J86: 232.5 | K86: Andrew Fuller
A87: 10280 | B87: 2016-01-21 | C87: Berglunds snabbköp | D87: Sweden | E87: Guaraná Fantástica | F87: Beverages | G87: 4.5 | H87: 12 | I87: 0 | J87: 54 | K87: Andrew Fuller
A88: 10281 | B88: 2016-01-21 | C88: Romero y tomillo | D88: Spain | E88: Guaraná Fantástica | F88: Beverages | G88: 4.5 | H88: 6 | I88: 0 | J88: 27 | K88: Margaret Peacock
A89: 10281 | B89: 2016-01-21 | C89: Romero y tomillo | D89: Spain | E89: Steeleye Stout | F89: Beverages | G89: 18 | H89: 4 | I89: 0 | J89: 72 | K89: Margaret Peacock
A90: 10281 | B90: 2016-01-21 | C90: Romero y tomillo | D90: Spain | E90: Teatime Chocolate Biscuits | F90: Confections | G90: 9.2 | H90: 1 | I90: 0 | J90: 9.2 | K90: Margaret Peacock
A91: 10282 | B91: 2016-01-22 | C91: Romero y tomillo | D91: Spain | E91: Ravioli Angelo | F91: Grains/Cereals | G91: 19.5 | H91: 2 | I91: 0 | J91: 39 | K91: Margaret Peacock
A92: 10282 | B92: 2016-01-22 | C92: Romero y tomillo | D92: Spain | E92: Nord-Ost Matjeshering | F92: Seafood | G92: 25.89 | H92: 6 | I92: 0 | J92: 155.34 | K92: Margaret Peacock
A93: 10283 | B93: 2016-01-23 | C93: LILA-Supermercado | D93: Venezuela | E93: Teatime Chocolate Biscuits | F93: Confections | G93: 9.2 | H93: 18 | I93: 0 | J93: 165.6 | K93: Janet Leverling
A94: 10283 | B94: 2016-01-23 | C94: LILA-Supermercado | D94: Venezuela | E94: Camembert Pierrot | F94: Dairy Products | G94: 34 | H94: 35 | I94: 0 | J94: 1190 | K94: Janet Leverling
A95: 10283 | B95: 2016-01-23 | C95: LILA-Supermercado | D95: Venezuela | E95: Genen Shouyu | F95: Condiments | G95: 15.5 | H95: 20 | I95: 0 | J95: 310 | K95: Janet Leverling
A96: 10283 | B96: 2016-01-23 | C96: LILA-Supermercado | D96: Venezuela | E96: Mozzarella di Giovanni | F96: Dairy Products | G96: 34.8 | H96: 3 | I96: 0 | J96: 104.4 | K96: Janet Leverling
A97: 10284 | B97: 2016-01-26 | C97: Lehmanns Marktstand | D97: Germany | E97: Laughing Lumberjack Lager | F97: Beverages | G97: 14 | H97: 5 | I97: 0.25 | J97: 52.5 | K97: Margaret Peacock
A98: 10284 | B98: 2016-01-26 | C98: Lehmanns Marktstand | D98: Germany | E98: Gula Malacca | F98: Condiments | G98: 19.45 | H98: 21 | I98: 0 | J98: 408.45 | K98: Margaret Peacock
A99: 10284 | B99: 2016-01-26 | C99: Lehmanns Marktstand | D99: Germany | E99: Camembert Pierrot | F99: Dairy Products | G99: 34 | H99: 20 | I99: 0.25 | J99: 510 | K99: Margaret Peacock
A100: 10284 | B100: 2016-01-26 | C100: Lehmanns Marktstand | D100: Germany | E100: Schoggi Schokolade | F100: Confections | G100: 43.9 | H100: 15 | I100: 0.25 | J100: 493.88 | K100: Margaret Peacock
A101: 10285 | B101: 2016-01-27 | C101: QUICK-Stop | D101: Germany | E101: Chai | F101: Beverages | G101: 18 | H101: 45 | I101: 0.2 | J101: 648 | K101: Nancy Davolio
A102: 10285 | B102: 2016-01-27 | C102: QUICK-Stop | D102: Germany | E102: Boston Crab Meat | F102: Seafood | G102: 18.4 | H102: 40 | I102: 0.2 | J102: 588.8 | K102: Nancy Davolio
A103: 10285 | B103: 2016-01-27 | C103: QUICK-Stop | D103: Germany | E103: Perth Pasties | F103: Meat/Poultry | G103: 32.8 | H103: 36 | I103: 0.2 | J103: 944.64 | K103: Nancy Davolio
A104: 10286 | B104: 2016-01-28 | C104: QUICK-Stop | D104: Germany | E104: Tarte au sucre | F104: Confections | G104: 49.3 | H104: 40 | I104: 0 | J104: 1972 | K104: Laura Callahan
A105: 10286 | B105: 2016-01-28 | C105: QUICK-Stop | D105: Germany | E105: Steeleye Stout | F105: Beverages | G105: 18 | H105: 100 | I105: 0 | J105: 1800 | K105: Laura Callahan
A106: 10287 | B106: 2016-01-29 | C106: Ricardo Adocicados | D106: Brazil | E106: Spegesild | F106: Seafood | G106: 12 | H106: 15 | I106: 0.15 | J106: 153 | K106: Laura Callahan
A107: 10287 | B107: 2016-01-29 | C107: Ricardo Adocicados | D107: Brazil | E107: Pavlova | F107: Confections | G107: 17.45 | H107: 40 | I107: 0.15 | J107: 593.3 | K107: Laura Callahan
A108: 10287 | B108: 2016-01-29 | C108: Ricardo Adocicados | D108: Brazil | E108: Sasquatch Ale | F108: Beverages | G108: 14 | H108: 20 | I108: 0 | J108: 280 | K108: Laura Callahan
A109: 10288 | B109: 2016-01-30 | C109: Reggiani Caseifici | D109: Italy | E109: Scottish Longbreads | F109: Confections | G109: 12.5 | H109: 3 | I109: 0.1 | J109: 33.75 | K109: Margaret Peacock
A110: 10288 | B110: 2016-01-30 | C110: Reggiani Caseifici | D110: Italy | E110: Tourtière | F110: Meat/Poultry | G110: 7.45 | H110: 10 | I110: 0.1 | J110: 67.05 | K110: Margaret Peacock
A111: 10289 | B111: 2016-02-02 | C111: B's Beverages | D111: UK | E111: Aniseed Syrup | F111: Condiments | G111: 10 | H111: 30 | I111: 0 | J111: 300 | K111: Robert King
A112: 10289 | B112: 2016-02-02 | C112: B's Beverages | D112: UK | E112: Wimmers gute Semmelknödel | F112: Grains/Cereals | G112: 33.25 | H112: 9 | I112: 0 | J112: 299.25 | K112: Robert King
A113: 10290 | B113: 2016-02-03 | C113: Comércio Mineiro | D113: Brazil | E113: Original Frankfurter grüne Soße | F113: Condiments | G113: 13 | H113: 10 | I113: 0 | J113: 130 | K113: Laura Callahan
A114: 10290 | B114: 2016-02-03 | C114: Comércio Mineiro | D114: Brazil | E114: Thüringer Rostbratwurst | F114: Meat/Poultry | G114: 123.79 | H114: 15 | I114: 0 | J114: 1856.85 | K114: Laura Callahan
A115: 10290 | B115: 2016-02-03 | C115: Comércio Mineiro | D115: Brazil | E115: Maxilaku | F115: Confections | G115: 20 | H115: 15 | I115: 0 | J115: 300 | K115: Laura Callahan
A116: 10290 | B116: 2016-02-03 | C116: Comércio Mineiro | D116: Brazil | E116: Chef Anton's Gumbo Mix | F116: Condiments | G116: 21.35 | H116: 20 | I116: 0 | J116: 427 | K116: Laura Callahan
A117: 10291 | B117: 2016-02-03 | C117: Que Delícia | D117: Brazil | E117: Gula Malacca | F117: Condiments | G117: 19.45 | H117: 24 | I117: 0.1 | J117: 420.12 | K117: Michael Suyama
A118: 10291 | B118: 2016-02-03 | C118: Que Delícia | D118: Brazil | E118: Konbu | F118: Seafood | G118: 6 | H118: 20 | I118: 0.1 | J118: 108 | K118: Michael Suyama
A119: 10291 | B119: 2016-02-03 | C119: Que Delícia | D119: Brazil | E119: Manjimup Dried Apples | F119: Produce | G119: 53 | H119: 2 | I119: 0.1 | J119: 95.4 | K119: Michael Suyama
A120: 10292 | B120: 2016-02-04 | C120: Tradição Hipermercados | D120: Brazil | E120: Sir Rodney's Marmalade | F120: Confections | G120: 81 | H120: 20 | I120: 0 | J120: 1620 | K120: Nancy Davolio
A121: 10293 | B121: 2016-02-05 | C121: Tortuga Restaurante | D121: Mexico | E121: Carnarvon Tigers | F121: Seafood | G121: 62.5 | H121: 12 | I121: 0 | J121: 750 | K121: Nancy Davolio
A122: 10293 | B122: 2016-02-05 | C122: Tortuga Restaurante | D122: Mexico | E122: Rhönbräu Klosterbier | F122: Beverages | G122: 7.75 | H122: 6 | I122: 0 | J122: 46.5 | K122: Nancy Davolio
A123: 10293 | B123: 2016-02-05 | C123: Tortuga Restaurante | D123: Mexico | E123: Guaraná Fantástica | F123: Beverages | G123: 4.5 | H123: 10 | I123: 0 | J123: 45 | K123: Nancy Davolio
A124: 10293 | B124: 2016-02-05 | C124: Tortuga Restaurante | D124: Mexico | E124: Vegie-spread | F124: Condiments | G124: 43.9 | H124: 5 | I124: 0 | J124: 219.5 | K124: Nancy Davolio
A125: 10294 | B125: 2016-02-06 | C125: Rattlesnake Canyon Grocery | D125: USA | E125: Camembert Pierrot | F125: Dairy Products | G125: 34 | H125: 21 | I125: 0 | J125: 714 | K125: Margaret Peacock
A126: 10294 | B126: 2016-02-06 | C126: Rattlesnake Canyon Grocery | D126: USA | E126: Rhönbräu Klosterbier | F126: Beverages | G126: 7.75 | H126: 6 | I126: 0 | J126: 46.5 | K126: Margaret Peacock
A127: 10294 | B127: 2016-02-06 | C127: Rattlesnake Canyon Grocery | D127: USA | E127: Chai | F127: Beverages | G127: 18 | H127: 18 | I127: 0 | J127: 324 | K127: Margaret Peacock
A128: 10294 | B128: 2016-02-06 | C128: Rattlesnake Canyon Grocery | D128: USA | E128: Ipoh Coffee | F128: Beverages | G128: 46 | H128: 15 | I128: 0 | J128: 690 | K128: Margaret Peacock
A129: 10294 | B129: 2016-02-06 | C129: Rattlesnake Canyon Grocery | D129: USA | E129: Alice Mutton | F129: Meat/Poultry | G129: 39 | H129: 15 | I129: 0 | J129: 585 | K129: Margaret Peacock
A130: 10295 | B130: 2016-02-09 | C130: Vins et alcools Chevalier | D130: France | E130: Gnocchi di nonna Alice | F130: Grains/Cereals | G130: 38 | H130: 4 | I130: 0 | J130: 152 | K130: Andrew Fuller
A131: 10296 | B131: 2016-02-10 | C131: LILA-Supermercado | D131: Venezuela | E131: Gudbrandsdalsost | F131: Dairy Products | G131: 36 | H131: 15 | I131: 0 | J131: =ROUND((G131*H131)*(1-I131),2) -> 540 | K131: Michael Suyama
A132: 10296 | B132: 2016-02-10 | C132: LILA-Supermercado | D132: Venezuela | E132: Queso Cabrales | F132: Dairy Products | G132: 21 | H132: 12 | I132: 0 | J132: 252 | K132: Michael Suyama
A133: 10296 | B133: 2016-02-10 | C133: LILA-Supermercado | D133: Venezuela | E133: Pavlova | F133: Confections | G133: 17.45 | H133: 30 | I133: 0 | J133: 523.5 | K133: Michael Suyama
A134: 10297 | B134: 2016-02-11 | C134: Blondel père et fils | D134: France | E134: Mozzarella di Giovanni | F134: Dairy Products | G134: 34.8 | H134: 20 | I134: 0 | J134: 696 | K134: Steven Buchanan
A135: 10297 | B135: 2016-02-11 | C135: Blondel père et fils | D135: France | E135: Chartreuse verte | F135: Beverages | G135: 18 | H135: 60 | I135: 0 | J135: 1080 | K135: Steven Buchanan
A136: 10298 | B136: 2016-02-12 | C136: Hungry Owl All-Night Grocers | D136: Ireland | E136: Chang | F136: Beverages | G136: 19 | H136: 40 | I136: 0 | J136: 760 | K136: Michael Suyama
A137: 10298 | B137: 2016-02-12 | C137: Hungry Owl All-Night Grocers | D137: Ireland | E137: Inlagd Sill | F137: Seafood | G137: 19 | H137: 40 | I137: 0.25 | J137: 570 | K137: Michael Suyama
A138: 10298 | B138: 2016-02-12 | C138: Hungry Owl All-Night Grocers | D138: Ireland | E138: Tarte au sucre | F138: Confections | G138: 49.3 | H138: 15 | I138: 0 | J138: 739.5 | K138: Michael Suyama
A139: 10298 | B139: 2016-02-12 | C139: Hungry Owl All-Night Grocers | D139: Ireland | E139: Raclette Courdavault | F139: Dairy Products | G139: 55 | H139: 30 | I139: 0.25 | J139: 1237.5 | K139: Michael Suyama
A140: 10299 | B140: 2016-02-13 | C140: Ricardo Adocicados | D140: Brazil | E140: Outback Lager | F140: Beverages | G140: 15 | H140: 20 | I140: 0 | J140: 300 | K140: Margaret Peacock
A141: 10299 | B141: 2016-02-13 | C141: Ricardo Adocicados | D141: Brazil | E141: Teatime Chocolate Biscuits | F141: Confections | G141: 9.2 | H141: 15 | I141: 0 | J141: 138 | K141: Margaret Peacock
A142: 10300 | B142: 2016-02-16 | C142: Magazzini Alimentari Riuniti | D142: Italy | E142: Scottish Longbreads | F142: Confections | G142: 12.5 | H142: 20 | I142: 0 | J142: 250 | K142: Andrew Fuller
A143: 10300 | B143: 2016-02-16 | C143: Magazzini Alimentari Riuniti | D143: Italy | E143: Louisiana Hot Spiced Okra | F143: Condiments | G143: 17 | H143: 30 | I143: 0 | J143: 510 | K143: Andrew Fuller
A144: 10301 | B144: 2016-02-16 | C144: Die Wandernde Kuh | D144: Germany | E144: Gnocchi di nonna Alice | F144: Grains/Cereals | G144: 38 | H144: 20 | I144: 0 | J144: 760 | K144: Laura Callahan
A145: 10301 | B145: 2016-02-16 | C145: Die Wandernde Kuh | D145: Germany | E145: Boston Crab Meat | F145: Seafood | G145: 18.4 | H145: 10 | I145: 0 | J145: 184 | K145: Laura Callahan
A146: 10302 | B146: 2016-02-17 | C146: Suprêmes délices | D146: Belgium | E146: Ipoh Coffee | F146: Beverages | G146: 46 | H146: 12 | I146: 0 | J146: 552 | K146: Margaret Peacock
A147: 10302 | B147: 2016-02-17 | C147: Suprêmes délices | D147: Belgium | E147: Rössle Sauerkraut | F147: Produce | G147: 45.6 | H147: 28 | I147: 0 | J147: 1276.8 | K147: Margaret Peacock
A148: 10302 | B148: 2016-02-17 | C148: Suprêmes délices | D148: Belgium | E148: Alice Mutton | F148: Meat/Poultry | G148: 39 | H148: 40 | I148: 0 | J148: 1560 | K148: Margaret Peacock
A149: 10303 | B149: 2016-02-18 | C149: Godos Cocina Típica | D149: Spain | E149: Louisiana Fiery Hot Pepper Sauce | F149: Condiments | G149: 21.05 | H149: 30 | I149: 0.1 | J149: 568.35 | K149: Robert King
A150: 10303 | B150: 2016-02-18 | C150: Godos Cocina Típica | D150: Spain | E150: Boston Crab Meat | F150: Seafood | G150: 18.4 | H150: 40 | I150: 0.1 | J150: 662.4 | K150: Robert King
A151: 10303 | B151: 2016-02-18 | C151: Godos Cocina Típica | D151: Spain | E151: Scottish Longbreads | F151: Confections | G151: 12.5 | H151: 15 | I151: 0.1 | J151: 168.75 | K151: Robert King
A152: 10304 | B152: 2016-02-19 | C152: Tortuga Restaurante | D152: Mexico | E152: Maxilaku | F152: Confections | G152: 20 | H152: 30 | I152: 0 | J152: 600 | K152: Nancy Davolio
A153: 10304 | B153: 2016-02-19 | C153: Tortuga Restaurante | D153: Mexico | E153: Raclette Courdavault | F153: Dairy Products | G153: 55 | H153: 10 | I153: 0 | J153: 550 | K153: Nancy Davolio
A154: 10304 | B154: 2016-02-19 | C154: Tortuga Restaurante | D154: Mexico | E154: Fløtemysost | F154: Dairy Products | G154: 21.5 | H154: 2 | I154: 0 | J154: 43 | K154: Nancy Davolio
A155: 10305 | B155: 2016-02-20 | C155: Old World Delicatessen | D155: USA | E155: Chartreuse verte | F155: Beverages | G155: 18 | H155: 30 | I155: 0.1 | J155: 486 | K155: Laura Callahan
A156: 10305 | B156: 2016-02-20 | C156: Old World Delicatessen | D156: USA | E156: Thüringer Rostbratwurst | F156: Meat/Poultry | G156: 123.79 | H156: 25 | I156: 0.1 | J156: 2785.28 | K156: Laura Callahan
A157: 10305 | B157: 2016-02-20 | C157: Old World Delicatessen | D157: USA | E157: Carnarvon Tigers | F157: Seafood | G157: 62.5 | H157: 25 | I157: 0.1 | J157: 1406.25 | K157: Laura Callahan
A158: 10306 | B158: 2016-02-23 | C158: Romero y tomillo | D158: Spain | E158: Nord-Ost Matjeshering | F158: Seafood | G158: 25.89 | H158: 10 | I158: 0 | J158: 258.9 | K158: Nancy Davolio
A159: 10306 | B159: 2016-02-23 | C159: Romero y tomillo | D159: Spain | E159: Perth Pasties | F159: Meat/Poultry | G159: 32.8 | H159: 10 | I159: 0 | J159: 328 | K159: Nancy Davolio
A160: 10306 | B160: 2016-02-23 | C160: Romero y tomillo | D160: Spain | E160: Tourtière | F160: Meat/Poultry | G160: 7.45 | H160: 5 | I160: 0 | J160: 37.25 | K160: Nancy Davolio
A161: 10307 | B161: 2016-02-24 | C161: Lonesome Pine Restaurant | D161: USA | E161: Tarte au sucre | F161: Confections | G161: 49.3 | H161: 10 | I161: 0 | J161: 493 | K161: Andrew Fuller
A162: 10307 | B162: 2016-02-24 | C162: Lonesome Pine Restaurant | D162: USA | E162: Scottish Longbreads | F162: Confections | G162: 12.5 | H162: 3 | I162: 0 | J162: 37.5 | K162: Andrew Fuller
A163: 10308 | B163: 2016-02-25 | C163: Ana Trujillo Emparedados y helados | D163: Mexico | E163: Outback Lager | F163: Beverages | G163: 15 | H163: 5 | I163: 0 | J163: 75 | K163: Robert King
A164: 10308 | B164: 2016-02-25 | C164: Ana Trujillo Emparedados y helados | D164: Mexico | E164: Gudbrandsdalsost | F164: Dairy Products | G164: 36 | H164: 1 | I164: 0 | J164: 36 | K164: Robert King
A165: 10309 | B165: 2016-02-26 | C165: Hungry Owl All-Night Grocers | D165: Ireland | E165: Singaporean Hokkien Fried Mee | F165: Grains/Cereals | G165: 14 | H165: 2 | I165: 0 | J165: 28 | K165: Janet Leverling
A166: 10309 | B166: 2016-02-26 | C166: Hungry Owl All-Night Grocers | D166: Ireland | E166: Ipoh Coffee | F166: Beverages | G166: 46 | H166: 20 | I166: 0 | J166: 920 | K166: Janet Leverling
A167: 10309 | B167: 2016-02-26 | C167: Hungry Owl All-Night Grocers | D167: Ireland | E167: Grandma's Boysenberry Spread | F167: Condiments | G167: 25 | H167: 30 | I167: 0 | J167: 750 | K167: Janet Leverling
A168: 10309 | B168: 2016-02-26 | C168: Hungry Owl All-Night Grocers | D168: Ireland | E168: Chef Anton's Cajun Seasoning | F168: Condiments | G168: 22 | H168: 20 | I168: 0 | J168: 440 | K168: Janet Leverling
A169: 10309 | B169: 2016-02-26 | C169: Hungry Owl All-Night Grocers | D169: Ireland | E169: Fløtemysost | F169: Dairy Products | G169: 21.5 | H169: 3 | I169: 0 | J169: 64.5 | K169: Janet Leverling
A170: 10310 | B170: 2016-02-27 | C170: The Big Cheese | D170: USA | E170: Pavlova | F170: Confections | G170: 17.45 | H170: 10 | I170: 0 | J170: 174.5 | K170: Laura Callahan
A171: 10310 | B171: 2016-02-27 | C171: The Big Cheese | D171: USA | E171: Tarte au sucre | F171: Confections | G171: 49.3 | H171: 5 | I171: 0 | J171: 246.5 | K171: Laura Callahan
A172: 10311 | B172: 2016-02-27 | C172: Du monde entier | D172: France | E172: Gudbrandsdalsost | F172: Dairy Products | G172: 36 | H172: 7 | I172: 0 | J172: 252 | K172: Nancy Davolio
A173: 10311 | B173: 2016-02-27 | C173: Du monde entier | D173: France | E173: Singaporean Hokkien Fried Mee | F173: Grains/Cereals | G173: 14 | H173: 6 | I173: 0 | J173: 84 | K173: Nancy Davolio
A174: 10312 | B174: 2016-03-01 | C174: Die Wandernde Kuh | D174: Germany | E174: Rhönbräu Klosterbier | F174: Beverages | G174: 7.75 | H174: 10 | I174: 0 | J174: 77.5 | K174: Andrew Fuller
A175: 10312 | B175: 2016-03-01 | C175: Die Wandernde Kuh | D175: Germany | E175: Rössle Sauerkraut | F175: Produce | G175: 45.6 | H175: 4 | I175: 0 | J175: 182.4 | K175: Andrew Fuller
A176: 10312 | B176: 2016-03-01 | C176: Die Wandernde Kuh | D176: Germany | E176: Ipoh Coffee | F176: Beverages | G176: 46 | H176: 24 | I176: 0 | J176: 1104 | K176: Andrew Fuller
A177: 10312 | B177: 2016-03-01 | C177: Die Wandernde Kuh | D177: Germany | E177: Perth Pasties | F177: Meat/Poultry | G177: 32.8 | H177: 20 | I177: 0 | J177: 656 | K177: Andrew Fuller
A178: 10313 | B178: 2016-03-02 | C178: QUICK-Stop | D178: Germany | E178: Inlagd Sill | F178: Seafood | G178: 19 | H178: 12 | I178: 0 | J178: 228 | K178: Andrew Fuller
A179: 10314 | B179: 2016-03-03 | C179: Rattlesnake Canyon Grocery | D179: USA | E179: Tarte au sucre | F179: Confections | G179: 49.3 | H179: 25 | I179: 0.1 | J179: 1109.25 | K179: Nancy Davolio
A180: 10314 | B180: 2016-03-03 | C180: Rattlesnake Canyon Grocery | D180: USA | E180: Escargots de Bourgogne | F180: Seafood | G180: 13.25 | H180: 30 | I180: 0.1 | J180: 357.75 | K180: Nancy Davolio
A181: 10314 | B181: 2016-03-03 | C181: Rattlesnake Canyon Grocery | D181: USA | E181: Mascarpone Fabioli | F181: Dairy Products | G181: 32 | H181: 40 | I181: 0.1 | J181: 1152 | K181: Nancy Davolio
A182: 10315 | B182: 2016-03-04 | C182: Island Trading | D182: UK | E182: Outback Lager | F182: Beverages | G182: 15 | H182: 30 | I182: 0 | J182: 450 | K182: Margaret Peacock
A183: 10315 | B183: 2016-03-04 | C183: Island Trading | D183: UK | E183: Sasquatch Ale | F183: Beverages | G183: 14 | H183: 14 | I183: 0 | J183: 196 | K183: Margaret Peacock
A184: 10316 | B184: 2016-03-05 | C184: Rattlesnake Canyon Grocery | D184: USA | E184: Tarte au sucre | F184: Confections | G184: 49.3 | H184: 70 | I184: 0 | J184: 3451 | K184: Nancy Davolio
A185: 10316 | B185: 2016-03-05 | C185: Rattlesnake Canyon Grocery | D185: USA | E185: Jack's New England Clam Chowder | F185: Seafood | G185: 9.65 | H185: 10 | I185: 0 | J185: 96.5 | K185: Nancy Davolio
A186: 10317 | B186: 2016-03-08 | C186: Lonesome Pine Restaurant | D186: USA | E186: Chai | F186: Beverages | G186: 18 | H186: 20 | I186: 0 | J186: 360 | K186: Michael Suyama
A187: 10318 | B187: 2016-03-09 | C187: Island Trading | D187: UK | E187: Jack's New England Clam Chowder | F187: Seafood | G187: 9.65 | H187: 20 | I187: 0 | J187: 193 | K187: Laura Callahan
A188: 10318 | B188: 2016-03-09 | C188: Island Trading | D188: UK | E188: Lakkalikööri | F188: Beverages | G188: 18 | H188: 6 | I188: 0 | J188: 108 | K188: Laura Callahan
A189: 10319 | B189: 2016-03-10 | C189: Tortuga Restaurante | D189: Mexico | E189: Alice Mutton | F189: Meat/Poultry | G189: 39 | H189: 8 | I189: 0 | J189: 312 | K189: Robert King
A190: 10319 | B190: 2016-03-10 | C190: Tortuga Restaurante | D190: Mexico | E190: Rössle Sauerkraut | F190: Produce | G190: 45.6 | H190: 14 | I190: 0 | J190: 638.4 | K190: Robert King
A191: 10319 | B191: 2016-03-10 | C191: Tortuga Restaurante | D191: Mexico | E191: Lakkalikööri | F191: Beverages | G191: 18 | H191: 30 | I191: 0 | J191: 540 | K191: Robert King
A192: 10320 | B192: 2016-03-11 | C192: Wartian Herkku | D192: Finland | E192: Fløtemysost | F192: Dairy Products | G192: 21.5 | H192: 30 | I192: 0 | J192: 645 | K192: Steven Buchanan
A193: 10321 | B193: 2016-03-11 | C193: Island Trading | D193: UK | E193: Steeleye Stout | F193: Beverages | G193: 18 | H193: 10 | I193: 0 | J193: 180 | K193: Janet Leverling
A194: 10322 | B194: 2016-03-12 | C194: Pericles Comidas clásicas | D194: Mexico | E194: Filo Mix | F194: Grains/Cereals | G194: 7 | H194: 20 | I194: 0 | J194: 140 | K194: Robert King
A195: 10323 | B195: 2016-03-15 | C195: Königlich Essen | D195: Germany | E195: NuNuCa Nuß-Nougat-Creme | F195: Confections | G195: 14 | H195: 4 | I195: 0 | J195: =ROUND((G195*H195)*(1-I195),2) -> 56 | K195: Margaret Peacock
A196: 10323 | B196: 2016-03-15 | C196: Königlich Essen | D196: Germany | E196: Genen Shouyu | F196: Condiments | G196: 15.5 | H196: 5 | I196: 0 | J196: 77.5 | K196: Margaret Peacock
A197: 10323 | B197: 2016-03-15 | C197: Königlich Essen | D197: Germany | E197: Chartreuse verte | F197: Beverages | G197: 18 | H197: 4 | I197: 0 | J197: 72 | K197: Margaret Peacock
A198: 10324 | B198: 2016-03-16 | C198: Save-a-lot Markets | D198: USA | E198: Spegesild | F198: Seafood | G198: 12 | H198: 30 | I198: 0 | J198: 360 | K198: Anne Dodsworth
A199: 10324 | B199: 2016-03-16 | C199: Save-a-lot Markets | D199: USA | E199: Vegie-spread | F199: Condiments | G199: 43.9 | H199: 80 | I199: 0.15 | J199: 2985.2 | K199: Anne Dodsworth
A200: 10324 | B200: 2016-03-16 | C200: Save-a-lot Markets | D200: USA | E200: Raclette Courdavault | F200: Dairy Products | G200: 55 | H200: 40 | I200: 0.15 | J200: 1870 | K200: Anne Dodsworth
... 568 more rows

Sheet Newcastle
A1: Order ID | B1: Order Date | C1: Customer Name | D1: Country | E1: Product Name | F1: Product Category | G1: Unit Price | H1: Units Sold | I1: Discount | J1: Total Sales Value | K1: Sales Rep
A2: 10248 | B2: 2015-12-11 | C2: Vins et alcools Chevalier | D2: France | E2: Mozzarella di Giovanni | F2: Dairy Products | G2: 34.8 | H2: 5 | I2: 0 | J2: =ROUND((G2*H2)*(1-I2),2) -> 174 | K2: Steven Buchanan
A3: 10248 | B3: 2015-12-11 | C3: Vins et alcools Chevalier | D3: France | E3: Singaporean Hokkien Fried Mee | F3: Grains/Cereals | G3: 14 | H3: 10 | I3: 0 | J3: =ROUND((G3*H3)*(1-I3),2) -> 140 | K3: Steven Buchanan
A4: 10248 | B4: 2015-12-11 | C4: Vins et alcools Chevalier | D4: France | E4: Queso Cabrales | F4: Dairy Products | G4: 21 | H4: 12 | I4: 0 | J4: 252 | K4: Steven Buchanan
A5: 10249 | B5: 2015-12-12 | C5: Toms Spezialitäten | D5: Germany | E5: Manjimup Dried Apples | F5: Produce | G5: 53 | H5: 40 | I5: 0 | J5: 2120 | K5: Michael Suyama
A6: 10249 | B6: 2015-12-12 | C6: Toms Spezialitäten | D6: Germany | E6: Tofu | F6: Produce | G6: 23.25 | H6: 9 | I6: 0 | J6: 209.25 | K6: Michael Suyama
A7: 10250 | B7: 2015-12-15 | C7: Hanari Carnes | D7: Brazil | E7: Manjimup Dried Apples | F7: Produce | G7: 53 | H7: 35 | I7: 0.15 | J7: 1576.75 | K7: Margaret Peacock
A8: 10250 | B8: 2015-12-15 | C8: Hanari Carnes | D8: Brazil | E8: Jack's New England Clam Chowder | F8: Seafood | G8: 9.65 | H8: 10 | I8: 0 | J8: 96.5 | K8: Margaret Peacock
A9: 10250 | B9: 2015-12-15 | C9: Hanari Carnes | D9: Brazil | E9: Louisiana Fiery Hot Pepper Sauce | F9: Condiments | G9: 21.05 | H9: 15 | I9: 0.15 | J9: 268.39 | K9: Margaret Peacock
A10: 10251 | B10: 2015-12-15 | C10: Victuailles en stock | D10: France | E10: Gustaf's Knäckebröd | F10: Grains/Cereals | G10: 21 | H10: 6 | I10: 0.05 | J10: 119.7 | K10: Janet Leverling
A11: 10251 | B11: 2015-12-15 | C11: Victuailles en stock | D11: France | E11: Louisiana Fiery Hot Pepper Sauce | F11: Condiments | G11: 21.05 | H11: 20 | I11: 0 | J11: 421 | K11: Janet Leverling
A12: 10251 | B12: 2015-12-15 | C12: Victuailles en stock | D12: France | E12: Ravioli Angelo | F12: Grains/Cereals | G12: 19.5 | H12: 15 | I12: 0.05 | J12: 277.88 | K12: Janet Leverling
A13: 10252 | B13: 2015-12-16 | C13: Suprêmes délices | D13: Belgium | E13: Geitost | F13: Dairy Products | G13: 2.5 | H13: 25 | I13: 0.05 | J13: 59.38 | K13: Margaret Peacock
A14: 10252 | B14: 2015-12-16 | C14: Suprêmes délices | D14: Belgium | E14: Camembert Pierrot | F14: Dairy Products | G14: 34 | H14: 40 | I14: 0 | J14: 1360 | K14: Margaret Peacock
A15: 10252 | B15: 2015-12-16 | C15: Suprêmes délices | D15: Belgium | E15: Sir Rodney's Marmalade | F15: Confections | G15: 81 | H15: 40 | I15: 0.05 | J15: 3078 | K15: Margaret Peacock
A16: 10253 | B16: 2015-12-17 | C16: Hanari Carnes | D16: Brazil | E16: Chartreuse verte | F16: Beverages | G16: 18 | H16: 42 | I16: 0 | J16: 756 | K16: Janet Leverling
A17: 10253 | B17: 2015-12-17 | C17: Hanari Carnes | D17: Brazil | E17: Gorgonzola Telino | F17: Dairy Products | G17: 12.5 | H17: 20 | I17: 0 | J17: 250 | K17: Janet Leverling
A18: 10253 | B18: 2015-12-17 | C18: Hanari Carnes | D18: Brazil | E18: Maxilaku | F18: Confections | G18: 20 | H18: 40 | I18: 0 | J18: 800 | K18: Janet Leverling
A19: 10254 | B19: 2015-12-18 | C19: Chop-suey Chinese | D19: Switzerland | E19: Longlife Tofu | F19: Produce | G19: 10 | H19: 21 | I19: 0 | J19: 210 | K19: Steven Buchanan
A20: 10254 | B20: 2015-12-18 | C20: Chop-suey Chinese | D20: Switzerland | E20: Pâté chinois | F20: Meat/Poultry | G20: 24 | H20: 21 | I20: 0.15 | J20: 428.4 | K20: Steven Buchanan
A21: 10254 | B21: 2015-12-18 | C21: Chop-suey Chinese | D21: Switzerland | E21: Guaraná Fantástica | F21: Beverages | G21: 4.5 | H21: 15 | I21: 0.15 | J21: 57.38 | K21: Steven Buchanan
A22: 10255 | B22: 2015-12-19 | C22: Richter Supermarkt | D22: Switzerland | E22: Chang | F22: Beverages | G22: 19 | H22: 20 | I22: 0 | J22: 380 | K22: Anne Dodsworth
A23: 10255 | B23: 2015-12-19 | C23: Richter Supermarkt | D23: Switzerland | E23: Raclette Courdavault | F23: Dairy Products | G23: 55 | H23: 30 | I23: 0 | J23: 1650 | K23: Anne Dodsworth
A24: 10255 | B24: 2015-12-19 | C24: Richter Supermarkt | D24: Switzerland | E24: Pavlova | F24: Confections | G24: 17.45 | H24: 35 | I24: 0 | J24: 610.75 | K24: Anne Dodsworth
A25: 10255 | B25: 2015-12-19 | C25: Richter Supermarkt | D25: Switzerland | E25: Inlagd Sill | F25: Seafood | G25: 19 | H25: 25 | I25: 0 | J25: 475 | K25: Anne Dodsworth
A26: 10256 | B26: 2015-12-22 | C26: Wellington Importadora | D26: Brazil | E26: Perth Pasties | F26: Meat/Poultry | G26: 32.8 | H26: 15 | I26: 0 | J26: 492 | K26: Janet Leverling
A27: 10256 | B27: 2015-12-22 | C27: Wellington Importadora | D27: Brazil | E27: Original Frankfurter grüne Soße | F27: Condiments | G27: 13 | H27: 12 | I27: 0 | J27: 156 | K27: Janet Leverling
A28: 10257 | B28: 2015-12-23 | C28: HILARIÓN-Abastos | D28: Venezuela | E28: Schoggi Schokolade | F28: Confections | G28: 43.9 | H28: 25 | I28: 0 | J28: 1097.5 | K28: Margaret Peacock
A29: 10257 | B29: 2015-12-23 | C29: HILARIÓN-Abastos | D29: Venezuela | E29: Chartreuse verte | F29: Beverages | G29: 18 | H29: 6 | I29: 0 | J29: 108 | K29: Margaret Peacock
A30: 10257 | B30: 2015-12-23 | C30: HILARIÓN-Abastos | D30: Venezuela | E30: Original Frankfurter grüne Soße | F30: Condiments | G30: 13 | H30: 15 | I30: 0 | J30: 195 | K30: Margaret Peacock
A31: 10258 | B31: 2015-12-24 | C31: Ernst Handel | D31: Austria | E31: Chef Anton's Gumbo Mix | F31: Condiments | G31: 21.35 | H31: 65 | I31: 0.2 | J31: 1110.2 | K31: Nancy Davolio
A32: 10258 | B32: 2015-12-24 | C32: Ernst Handel | D32: Austria | E32: Chang | F32: Beverages | G32: 19 | H32: 50 | I32: 0.2 | J32: 760 | K32: Nancy Davolio
A33: 10258 | B33: 2015-12-24 | C33: Ernst Handel | D33: Austria | E33: Mascarpone Fabioli | F33: Dairy Products | G33: 32 | H33: 6 | I33: 0.2 | J33: 153.6 | K33: Nancy Davolio
A34: 10259 | B34: 2015-12-25 | C34: Centro comercial Moctezuma | D34: Mexico | E34: Sir Rodney's Scones | F34: Confections | G34: 10 | H34: 10 | I34: 0 | J34: 100 | K34: Margaret Peacock
A35: 10259 | B35: 2015-12-25 | C35: Centro comercial Moctezuma | D35: Mexico | E35: Gravad lax | F35: Seafood | G35: 26 | H35: 1 | I35: 0 | J35: 26 | K35: Margaret Peacock
A36: 10260 | B36: 2015-12-26 | C36: Ottilies Käseladen | D36: Germany | E36: Outback Lager | F36: Beverages | G36: 15 | H36: 21 | I36: 0.25 | J36: 236.25 | K36: Margaret Peacock
A37: 10260 | B37: 2015-12-26 | C37: Ottilies Käseladen | D37: Germany | E37: Ravioli Angelo | F37: Grains/Cereals | G37: 19.5 | H37: 50 | I37: 0 | J37: 975 | K37: Margaret Peacock
A38: 10260 | B38: 2015-12-26 | C38: Ottilies Käseladen | D38: Germany | E38: Tarte au sucre | F38: Confections | G38: 49.3 | H38: 15 | I38: 0.25 | J38: 554.63 | K38: Margaret Peacock
A39: 10260 | B39: 2015-12-26 | C39: Ottilies Käseladen | D39: Germany | E39: Jack's New England Clam Chowder | F39: Seafood | G39: 9.65 | H39: 16 | I39: 0.25 | J39: 115.8 | K39: Margaret Peacock
A40: 10261 | B40: 2015-12-26 | C40: Que Delícia | D40: Brazil | E40: Steeleye Stout | F40: Beverages | G40: 18 | H40: 20 | I40: 0 | J40: 360 | K40: Margaret Peacock
A41: 10261 | B41: 2015-12-26 | C41: Que Delícia | D41: Brazil | E41: Sir Rodney's Scones | F41: Confections | G41: 10 | H41: 20 | I41: 0 | J41: 200 | K41: Margaret Peacock
A42: 10262 | B42: 2015-12-29 | C42: Rattlesnake Canyon Grocery | D42: USA | E42: Chef Anton's Gumbo Mix | F42: Condiments | G42: 21.35 | H42: 12 | I42: 0.2 | J42: 204.96 | K42: Laura Callahan
A43: 10262 | B43: 2015-12-29 | C43: Rattlesnake Canyon Grocery | D43: USA | E43: Uncle Bob's Organic Dried Pears | F43: Produce | G43: 30 | H43: 15 | I43: 0 | J43: 450 | K43: Laura Callahan
A44: 10262 | B44: 2015-12-29 | C44: Rattlesnake Canyon Grocery | D44: USA | E44: Gnocchi di nonna Alice | F44: Grains/Cereals | G44: 38 | H44: 2 | I44: 0 | J44: 76 | K44: Laura Callahan
A45: 10263 | B45: 2015-12-30 | C45: Ernst Handel | D45: Austria | E45: Pavlova | F45: Confections | G45: 17.45 | H45: 60 | I45: 0.25 | J45: 785.25 | K45: Anne Dodsworth
A46: 10263 | B46: 2015-12-30 | C46: Ernst Handel | D46: Austria | E46: Nord-Ost Matjeshering | F46: Seafood | G46: 25.89 | H46: 60 | I46: 0.25 | J46: 1165.05 | K46: Anne Dodsworth
A47: 10263 | B47: 2015-12-30 | C47: Ernst Handel | D47: Austria | E47: Guaraná Fantástica | F47: Beverages | G47: 4.5 | H47: 28 | I47: 0 | J47: 126 | K47: Anne Dodsworth
A48: 10263 | B48: 2015-12-30 | C48: Ernst Handel | D48: Austria | E48: Longlife Tofu | F48: Produce | G48: 10 | H48: 36 | I48: 0.25 | J48: 270 | K48: Anne Dodsworth
A49: 10264 | B49: 2015-12-31 | C49: Folk och fä HB | D49: Sweden | E49: Chang | F49: Beverages | G49: 19 | H49: 35 | I49: 0 | J49: 665 | K49: Michael Suyama
A50: 10264 | B50: 2015-12-31 | C50: Folk och fä HB | D50: Sweden | E50: Jack's New England Clam Chowder | F50: Seafood | G50: 9.65 | H50: 25 | I50: 0.15 | J50: 205.06 | K50: Michael Suyama
A51: 10265 | B51: 2016-01-01 | C51: Blondel père et fils | D51: France | E51: Alice Mutton | F51: Meat/Poultry | G51: 39 | H51: 30 | I51: 0 | J51: 1170 | K51: Andrew Fuller
A52: 10265 | B52: 2016-01-01 | C52: Blondel père et fils | D52: France | E52: Outback Lager | F52: Beverages | G52: 15 | H52: 20 | I52: 0 | J52: 300 | K52: Andrew Fuller
A53: 10266 | B53: 2016-01-02 | C53: Wartian Herkku | D53: Finland | E53: Queso Manchego La Pastora | F53: Dairy Products | G53: 38 | H53: 12 | I53: 0.05 | J53: 433.2 | K53: Janet Leverling
A54: 10267 | B54: 2016-01-05 | C54: Frankenversand | D54: Germany | E54: Lakkalikööri | F54: Beverages | G54: 18 | H54: 15 | I54: 0.15 | J54: 229.5 | K54: Margaret Peacock
A55: 10267 | B55: 2016-01-05 | C55: Frankenversand | D55: Germany | E55: Boston Crab Meat | F55: Seafood | G55: 18.4 | H55: 50 | I55: 0 | J55: 920 | K55: Margaret Peacock
A56: 10267 | B56: 2016-01-05 | C56: Frankenversand | D56: Germany | E56: Raclette Courdavault | F56: Dairy Products | G56: 55 | H56: 70 | I56: 0.15 | J56: 3272.5 | K56: Margaret Peacock
A57: 10268 | B57: 2016-01-06 | C57: GROSELLA-Restaurante | D57: Venezuela | E57: Mozzarella di Giovanni | F57: Dairy Products | G57: 34.8 | H57: 4 | I57: 0 | J57: 139.2 | K57: Laura Callahan
A58: 10268 | B58: 2016-01-06 | C58: GROSELLA-Restaurante | D58: Venezuela | E58: Thüringer Rostbratwurst | F58: Meat/Poultry | G58: 123.79 | H58: 10 | I58: 0 | J58: 1237.9 | K58: Laura Callahan
A59: 10269 | B59: 2016-01-07 | C59: White Clover Markets | D59: USA | E59: Mozzarella di Giovanni | F59: Dairy Products | G59: 34.8 | H59: 20 | I59: 0.05 | J59: 661.2 | K59: Steven Buchanan
A60: 10269 | B60: 2016-01-07 | C60: White Clover Markets | D60: USA | E60: Geitost | F60: Dairy Products | G60: 2.5 | H60: 60 | I60: 0.05 | J60: 142.5 | K60: Steven Buchanan
A61: 10270 | B61: 2016-01-08 | C61: Wartian Herkku | D61: Finland | E61: Inlagd Sill | F61: Seafood | G61: 19 | H61: 30 | I61: 0 | J61: 570 | K61: Nancy Davolio
A62: 10270 | B62: 2016-01-08 | C62: Wartian Herkku | D62: Finland | E62: Ipoh Coffee | F62: Beverages | G62: 46 | H62: 25 | I62: 0 | J62: 1150 | K62: Nancy Davolio
A63: 10271 | B63: 2016-01-08 | C63: Split Rail Beer & Ale | D63: USA | E63: Geitost | F63: Dairy Products | G63: 2.5 | H63: 24 | I63: 0 | J63: 60 | K63: Michael Suyama
A64: 10272 | B64: 2016-01-09 | C64: Rattlesnake Canyon Grocery | D64: USA | E64: Gorgonzola Telino | F64: Dairy Products | G64: 12.5 | H64: 40 | I64: 0 | J64: 500 | K64: Michael Suyama
A65: 10272 | B65: 2016-01-09 | C65: Rattlesnake Canyon Grocery | D65: USA | E65: Sir Rodney's Marmalade | F65: Confections | G65: 81 | H65: 6 | I65: 0 | J65: 486 | K65: Michael Suyama
A66: 10272 | B66: 2016-01-09 | C66: Rattlesnake Canyon Grocery | D66: USA | E66: Mozzarella di Giovanni | F66: Dairy Products | G66: 34.8 | H66: 24 | I66: 0 | J66: 835.2 | K66: Michael Suyama
A67: 10273 | B67: 2016-01-12 | C67: QUICK-Stop | D67: Germany | E67: Boston Crab Meat | F67: Seafood | G67: 18.4 | H67: 60 | I67: 0.05 | J67: =ROUND((G67*H67)*(1-I67),2) -> 1048.8 | K67: Janet Leverling
A68: 10273 | B68: 2016-01-12 | C68: QUICK-Stop | D68: Germany | E68: Geitost | F68: Dairy Products | G68: 2.5 | H68: 20 | I68: 0 | J68: 50 | K68: Janet Leverling
A69: 10273 | B69: 2016-01-12 | C69: QUICK-Stop | D69: Germany | E69: Gorgonzola Telino | F69: Dairy Products | G69: 12.5 | H69: 15 | I69: 0.05 | J69: 178.13 | K69: Janet Leverling
A70: 10273 | B70: 2016-01-12 | C70: QUICK-Stop | D70: Germany | E70: Ikura | F70: Seafood | G70: 31 | H70: 24 | I70: 0.05 | J70: 706.8 | K70: Janet Leverling
A71: 10273 | B71: 2016-01-12 | C71: QUICK-Stop | D71: Germany | E71: Lakkalikööri | F71: Beverages | G71: 18 | H71: 33 | I71: 0.05 | J71: 564.3 | K71: Janet Leverling
A72: 10274 | B72: 2016-01-13 | C72: Vins et alcools Chevalier | D72: France | E72: Fløtemysost | F72: Dairy Products | G72: 21.5 | H72: 20 | I72: 0 | J72: 430 | K72: Michael Suyama
A73: 10274 | B73: 2016-01-13 | C73: Vins et alcools Chevalier | D73: France | E73: Mozzarella di Giovanni | F73: Dairy Products | G73: 34.8 | H73: 7 | I73: 0 | J73: 243.6 | K73: Michael Suyama
A74: 10275 | B74: 2016-01-14 | C74: Magazzini Alimentari Riuniti | D74: Italy | E74: Guaraná Fantástica | F74: Beverages | G74: 4.5 | H74: 12 | I74: 0.05 | J74: 51.3 | K74: Nancy Davolio
A75: 10275 | B75: 2016-01-14 | C75: Magazzini Alimentari Riuniti | D75: Italy | E75: Raclette Courdavault | F75: Dairy Products | G75: 55 | H75: 6 | I75: 0.05 | J75: 313.5 | K75: Nancy Davolio
A76: 10276 | B76: 2016-01-15 | C76: Tortuga Restaurante | D76: Mexico | E76: Ikura | F76: Seafood | G76: 31 | H76: 15 | I76: 0 | J76: 465 | K76: Laura Callahan
A77: 10276 | B77: 2016-01-15 | C77: Tortuga Restaurante | D77: Mexico | E77: Konbu | F77: Seafood | G77: 6 | H77: 10 | I77: 0 | J77: 60 | K77: Laura Callahan
A78: 10277 | B78: 2016-01-16 | C78: Morgenstern Gesundkost | D78: Germany | E78: Rössle Sauerkraut | F78: Produce | G78: 45.6 | H78: 20 | I78: 0 | J78: 912 | K78: Andrew Fuller
A79: 10277 | B79: 2016-01-16 | C79: Morgenstern Gesundkost | D79: Germany | E79: Tarte au sucre | F79: Confections | G79: 49.3 | H79: 12 | I79: 0 | J79: 591.6 | K79: Andrew Fuller
A80: 10278 | B80: 2016-01-19 | C80: Berglunds snabbköp | D80: Sweden | E80: Raclette Courdavault | F80: Dairy Products | G80: 55 | H80: 15 | I80: 0 | J80: 825 | K80: Laura Callahan
A81: 10278 | B81: 2016-01-19 | C81: Berglunds snabbköp | D81: Sweden | E81: Röd Kaviar | F81: Seafood | G81: 15 | H81: 25 | I81: 0 | J81: 375 | K81: Laura Callahan
A82: 10278 | B82: 2016-01-19 | C82: Berglunds snabbköp | D82: Sweden | E82: Gula Malacca | F82: Condiments | G82: 19.45 | H82: 16 | I82: 0 | J82: 311.2 | K82: Laura Callahan
A83: 10278 | B83: 2016-01-19 | C83: Berglunds snabbköp | D83: Sweden | E83: Vegie-spread | F83: Condiments | G83: 43.9 | H83: 8 | I83: 0 | J83: 351.2 | K83: Laura Callahan
A84: 10279 | B84: 2016-01-20 | C84: Lehmanns Marktstand | D84: Germany | E84: Alice Mutton | F84: Meat/Poultry | G84: 39 | H84: 15 | I84: 0.25 | J84: 438.75 | K84: Laura Callahan
A85: 10280 | B85: 2016-01-21 | C85: Berglunds snabbköp | D85: Sweden | E85: Pâté chinois | F85: Meat/Poultry | G85: 24 | H85: 20 | I85: 0 | J85: 480 | K85: Andrew Fuller
A86: 10280 | B86: 2016-01-21 | C86: Berglunds snabbköp | D86: Sweden | E86: Rhönbräu Klosterbier | F86: Beverages | G86: 7.75 | H86: 30 | I86: 0 | J86: 232.5 | K86: Andrew Fuller
A87: 10280 | B87: 2016-01-21 | C87: Berglunds snabbköp | D87: Sweden | E87: Guaraná Fantástica | F87: Beverages | G87: 4.5 | H87: 12 | I87: 0 | J87: 54 | K87: Andrew Fuller
A88: 10281 | B88: 2016-01-21 | C88: Romero y tomillo | D88: Spain | E88: Guaraná Fantástica | F88: Beverages | G88: 4.5 | H88: 6 | I88: 0 | J88: 27 | K88: Margaret Peacock
A89: 10281 | B89: 2016-01-21 | C89: Romero y tomillo | D89: Spain | E89: Steeleye Stout | F89: Beverages | G89: 18 | H89: 4 | I89: 0 | J89: 72 | K89: Margaret Peacock
A90: 10281 | B90: 2016-01-21 | C90: Romero y tomillo | D90: Spain | E90: Teatime Chocolate Biscuits | F90: Confections | G90: 9.2 | H90: 1 | I90: 0 | J90: 9.2 | K90: Margaret Peacock
A91: 10282 | B91: 2016-01-22 | C91: Romero y tomillo | D91: Spain | E91: Ravioli Angelo | F91: Grains/Cereals | G91: 19.5 | H91: 2 | I91: 0 | J91: 39 | K91: Margaret Peacock
A92: 10282 | B92: 2016-01-22 | C92: Romero y tomillo | D92: Spain | E92: Nord-Ost Matjeshering | F92: Seafood | G92: 25.89 | H92: 6 | I92: 0 | J92: 155.34 | K92: Margaret Peacock
A93: 10283 | B93: 2016-01-23 | C93: LILA-Supermercado | D93: Venezuela | E93: Teatime Chocolate Biscuits | F93: Confections | G93: 9.2 | H93: 18 | I93: 0 | J93: 165.6 | K93: Janet Leverling
A94: 10283 | B94: 2016-01-23 | C94: LILA-Supermercado | D94: Venezuela | E94: Camembert Pierrot | F94: Dairy Products | G94: 34 | H94: 35 | I94: 0 | J94: 1190 | K94: Janet Leverling
A95: 10283 | B95: 2016-01-23 | C95: LILA-Supermercado | D95: Venezuela | E95: Genen Shouyu | F95: Condiments | G95: 15.5 | H95: 20 | I95: 0 | J95: 310 | K95: Janet Leverling
A96: 10283 | B96: 2016-01-23 | C96: LILA-Supermercado | D96: Venezuela | E96: Mozzarella di Giovanni | F96: Dairy Products | G96: 34.8 | H96: 3 | I96: 0 | J96: 104.4 | K96: Janet Leverling
A97: 10284 | B97: 2016-01-26 | C97: Lehmanns Marktstand | D97: Germany | E97: Laughing Lumberjack Lager | F97: Beverages | G97: 14 | H97: 5 | I97: 0.25 | J97: 52.5 | K97: Margaret Peacock
A98: 10284 | B98: 2016-01-26 | C98: Lehmanns Marktstand | D98: Germany | E98: Gula Malacca | F98: Condiments | G98: 19.45 | H98: 21 | I98: 0 | J98: 408.45 | K98: Margaret Peacock
A99: 10284 | B99: 2016-01-26 | C99: Lehmanns Marktstand | D99: Germany | E99: Camembert Pierrot | F99: Dairy Products | G99: 34 | H99: 20 | I99: 0.25 | J99: 510 | K99: Margaret Peacock
A100: 10284 | B100: 2016-01-26 | C100: Lehmanns Marktstand | D100: Germany | E100: Schoggi Schokolade | F100: Confections | G100: 43.9 | H100: 15 | I100: 0.25 | J100: 493.88 | K100: Margaret Peacock
A101: 10285 | B101: 2016-01-27 | C101: QUICK-Stop | D101: Germany | E101: Chai | F101: Beverages | G101: 18 | H101: 45 | I101: 0.2 | J101: 648 | K101: Nancy Davolio
A102: 10285 | B102: 2016-01-27 | C102: QUICK-Stop | D102: Germany | E102: Boston Crab Meat | F102: Seafood | G102: 18.4 | H102: 40 | I102: 0.2 | J102: 588.8 | K102: Nancy Davolio
A103: 10285 | B103: 2016-01-27 | C103: QUICK-Stop | D103: Germany | E103: Perth Pasties | F103: Meat/Poultry | G103: 32.8 | H103: 36 | I103: 0.2 | J103: 944.64 | K103: Nancy Davolio
A104: 10286 | B104: 2016-01-28 | C104: QUICK-Stop | D104: Germany | E104: Tarte au sucre | F104: Confections | G104: 49.3 | H104: 40 | I104: 0 | J104: 1972 | K104: Laura Callahan
A105: 10286 | B105: 2016-01-28 | C105: QUICK-Stop | D105: Germany | E105: Steeleye Stout | F105: Beverages | G105: 18 | H105: 100 | I105: 0 | J105: 1800 | K105: Laura Callahan
A106: 10287 | B106: 2016-01-29 | C106: Ricardo Adocicados | D106: Brazil | E106: Spegesild | F106: Seafood | G106: 12 | H106: 15 | I106: 0.15 | J106: 153 | K106: Laura Callahan
A107: 10287 | B107: 2016-01-29 | C107: Ricardo Adocicados | D107: Brazil | E107: Pavlova | F107: Confections | G107: 17.45 | H107: 40 | I107: 0.15 | J107: 593.3 | K107: Laura Callahan
A108: 10287 | B108: 2016-01-29 | C108: Ricardo Adocicados | D108: Brazil | E108: Sasquatch Ale | F108: Beverages | G108: 14 | H108: 20 | I108: 0 | J108: 280 | K108: Laura Callahan
A109: 10288 | B109: 2016-01-30 | C109: Reggiani Caseifici | D109: Italy | E109: Scottish Longbreads | F109: Confections | G109: 12.5 | H109: 3 | I109: 0.1 | J109: 33.75 | K109: Margaret Peacock
A110: 10288 | B110: 2016-01-30 | C110: Reggiani Caseifici | D110: Italy | E110: Tourtière | F110: Meat/Poultry | G110: 7.45 | H110: 10 | I110: 0.1 | J110: 67.05 | K110: Margaret Peacock
A111: 10289 | B111: 2016-02-02 | C111: B's Beverages | D111: UK | E111: Aniseed Syrup | F111: Condiments | G111: 10 | H111: 30 | I111: 0 | J111: 300 | K111: Robert King
A112: 10289 | B112: 2016-02-02 | C112: B's Beverages | D112: UK | E112: Wimmers gute Semmelknödel | F112: Grains/Cereals | G112: 33.25 | H112: 9 | I112: 0 | J112: 299.25 | K112: Robert King
A113: 10290 | B113: 2016-02-03 | C113: Comércio Mineiro | D113: Brazil | E113: Original Frankfurter grüne Soße | F113: Condiments | G113: 13 | H113: 10 | I113: 0 | J113: 130 | K113: Laura Callahan
A114: 10290 | B114: 2016-02-03 | C114: Comércio Mineiro | D114: Brazil | E114: Thüringer Rostbratwurst | F114: Meat/Poultry | G114: 123.79 | H114: 15 | I114: 0 | J114: 1856.85 | K114: Laura Callahan
A115: 10290 | B115: 2016-02-03 | C115: Comércio Mineiro | D115: Brazil | E115: Maxilaku | F115: Confections | G115: 20 | H115: 15 | I115: 0 | J115: 300 | K115: Laura Callahan
A116: 10290 | B116: 2016-02-03 | C116: Comércio Mineiro | D116: Brazil | E116: Chef Anton's Gumbo Mix | F116: Condiments | G116: 21.35 | H116: 20 | I116: 0 | J116: 427 | K116: Laura Callahan
A117: 10291 | B117: 2016-02-03 | C117: Que Delícia | D117: Brazil | E117: Gula Malacca | F117: Condiments | G117: 19.45 | H117: 24 | I117: 0.1 | J117: 420.12 | K117: Michael Suyama
A118: 10291 | B118: 2016-02-03 | C118: Que Delícia | D118: Brazil | E118: Konbu | F118: Seafood | G118: 6 | H118: 20 | I118: 0.1 | J118: 108 | K118: Michael Suyama
A119: 10291 | B119: 2016-02-03 | C119: Que Delícia | D119: Brazil | E119: Manjimup Dried Apples | F119: Produce | G119: 53 | H119: 2 | I119: 0.1 | J119: 95.4 | K119: Michael Suyama
A120: 10292 | B120: 2016-02-04 | C120: Tradição Hipermercados | D120: Brazil | E120: Sir Rodney's Marmalade | F120: Confections | G120: 81 | H120: 20 | I120: 0 | J120: 1620 | K120: Nancy Davolio
A121: 10293 | B121: 2016-02-05 | C121: Tortuga Restaurante | D121: Mexico | E121: Carnarvon Tigers | F121: Seafood | G121: 62.5 | H121: 12 | I121: 0 | J121: 750 | K121: Nancy Davolio
A122: 10293 | B122: 2016-02-05 | C122: Tortuga Restaurante | D122: Mexico | E122: Rhönbräu Klosterbier | F122: Beverages | G122: 7.75 | H122: 6 | I122: 0 | J122: 46.5 | K122: Nancy Davolio
A123: 10293 | B123: 2016-02-05 | C123: Tortuga Restaurante | D123: Mexico | E123: Guaraná Fantástica | F123: Beverages | G123: 4.5 | H123: 10 | I123: 0 | J123: 45 | K123: Nancy Davolio
A124: 10293 | B124: 2016-02-05 | C124: Tortuga Restaurante | D124: Mexico | E124: Vegie-spread | F124: Condiments | G124: 43.9 | H124: 5 | I124: 0 | J124: 219.5 | K124: Nancy Davolio
A125: 10294 | B125: 2016-02-06 | C125: Rattlesnake Canyon Grocery | D125: USA | E125: Camembert Pierrot | F125: Dairy Products | G125: 34 | H125: 21 | I125: 0 | J125: 714 | K125: Margaret Peacock
A126: 10294 | B126: 2016-02-06 | C126: Rattlesnake Canyon Grocery | D126: USA | E126: Rhönbräu Klosterbier | F126: Beverages | G126: 7.75 | H126: 6 | I126: 0 | J126: 46.5 | K126: Margaret Peacock
A127: 10294 | B127: 2016-02-06 | C127: Rattlesnake Canyon Grocery | D127: USA | E127: Chai | F127: Beverages | G127: 18 | H127: 18 | I127: 0 | J127: 324 | K127: Margaret Peacock
A128: 10294 | B128: 2016-02-06 | C128: Rattlesnake Canyon Grocery | D128: USA | E128: Ipoh Coffee | F128: Beverages | G128: 46 | H128: 15 | I128: 0 | J128: 690 | K128: Margaret Peacock
A129: 10294 | B129: 2016-02-06 | C129: Rattlesnake Canyon Grocery | D129: USA | E129: Alice Mutton | F129: Meat/Poultry | G129: 39 | H129: 15 | I129: 0 | J129: 585 | K129: Margaret Peacock
A130: 10295 | B130: 2016-02-09 | C130: Vins et alcools Chevalier | D130: France | E130: Gnocchi di nonna Alice | F130: Grains/Cereals | G130: 38 | H130: 4 | I130: 0 | J130: 152 | K130: Andrew Fuller
A131: 10296 | B131: 2016-02-10 | C131: LILA-Supermercado | D131: Venezuela | E131: Gudbrandsdalsost | F131: Dairy Products | G131: 36 | H131: 15 | I131: 0 | J131: =ROUND((G131*H131)*(1-I131),2) -> 540 | K131: Michael Suyama
A132: 10296 | B132: 2016-02-10 | C132: LILA-Supermercado | D132: Venezuela | E132: Queso Cabrales | F132: Dairy Products | G132: 21 | H132: 12 | I132: 0 | J132: 252 | K132: Michael Suyama
A133: 10296 | B133: 2016-02-10 | C133: LILA-Supermercado | D133: Venezuela | E133: Pavlova | F133: Confections | G133: 17.45 | H133: 30 | I133: 0 | J133: 523.5 | K133: Michael Suyama
A134: 10297 | B134: 2016-02-11 | C134: Blondel père et fils | D134: France | E134: Mozzarella di Giovanni | F134: Dairy Products | G134: 34.8 | H134: 20 | I134: 0 | J134: 696 | K134: Steven Buchanan
A135: 10297 | B135: 2016-02-11 | C135: Blondel père et fils | D135: France | E135: Chartreuse verte | F135: Beverages | G135: 18 | H135: 60 | I135: 0 | J135: 1080 | K135: Steven Buchanan
A136: 10298 | B136: 2016-02-12 | C136: Hungry Owl All-Night Grocers | D136: Ireland | E136: Chang | F136: Beverages | G136: 19 | H136: 40 | I136: 0 | J136: 760 | K136: Michael Suyama
A137: 10298 | B137: 2016-02-12 | C137: Hungry Owl All-Night Grocers | D137: Ireland | E137: Inlagd Sill | F137: Seafood | G137: 19 | H137: 40 | I137: 0.25 | J137: 570 | K137: Michael Suyama
A138: 10298 | B138: 2016-02-12 | C138: Hungry Owl All-Night Grocers | D138: Ireland | E138: Tarte au sucre | F138: Confections | G138: 49.3 | H138: 15 | I138: 0 | J138: 739.5 | K138: Michael Suyama
A139: 10298 | B139: 2016-02-12 | C139: Hungry Owl All-Night Grocers | D139: Ireland | E139: Raclette Courdavault | F139: Dairy Products | G139: 55 | H139: 30 | I139: 0.25 | J139: 1237.5 | K139: Michael Suyama
A140: 10299 | B140: 2016-02-13 | C140: Ricardo Adocicados | D140: Brazil | E140: Outback Lager | F140: Beverages | G140: 15 | H140: 20 | I140: 0 | J140: 300 | K140: Margaret Peacock
A141: 10299 | B141: 2016-02-13 | C141: Ricardo Adocicados | D141: Brazil | E141: Teatime Chocolate Biscuits | F141: Confections | G141: 9.2 | H141: 15 | I141: 0 | J141: 138 | K141: Margaret Peacock
A142: 10300 | B142: 2016-02-16 | C142: Magazzini Alimentari Riuniti | D142: Italy | E142: Scottish Longbreads | F142: Confections | G142: 12.5 | H142: 20 | I142: 0 | J142: 250 | K142: Andrew Fuller
A143: 10300 | B143: 2016-02-16 | C143: Magazzini Alimentari Riuniti | D143: Italy | E143: Louisiana Hot Spiced Okra | F143: Condiments | G143: 17 | H143: 30 | I143: 0 | J143: 510 | K143: Andrew Fuller
A144: 10301 | B144: 2016-02-16 | C144: Die Wandernde Kuh | D144: Germany | E144: Gnocchi di nonna Alice | F144: Grains/Cereals | G144: 38 | H144: 20 | I144: 0 | J144: 760 | K144: Laura Callahan
A145: 10301 | B145: 2016-02-16 | C145: Die Wandernde Kuh | D145: Germany | E145: Boston Crab Meat | F145: Seafood | G145: 18.4 | H145: 10 | I145: 0 | J145: 184 | K145: Laura Callahan
A146: 10302 | B146: 2016-02-17 | C146: Suprêmes délices | D146: Belgium | E146: Ipoh Coffee | F146: Beverages | G146: 46 | H146: 12 | I146: 0 | J146: 552 | K146: Margaret Peacock
A147: 10302 | B147: 2016-02-17 | C147: Suprêmes délices | D147: Belgium | E147: Rössle Sauerkraut | F147: Produce | G147: 45.6 | H147: 28 | I147: 0 | J147: 1276.8 | K147: Margaret Peacock
A148: 10302 | B148: 2016-02-17 | C148: Suprêmes délices | D148: Belgium | E148: Alice Mutton | F148: Meat/Poultry | G148: 39 | H148: 40 | I148: 0 | J148: 1560 | K148: Margaret Peacock
A149: 10303 | B149: 2016-02-18 | C149: Godos Cocina Típica | D149: Spain | E149: Louisiana Fiery Hot Pepper Sauce | F149: Condiments | G149: 21.05 | H149: 30 | I149: 0.1 | J149: 568.35 | K149: Robert King
A150: 10303 | B150: 2016-02-18 | C150: Godos Cocina Típica | D150: Spain | E150: Boston Crab Meat | F150: Seafood | G150: 18.4 | H150: 40 | I150: 0.1 | J150: 662.4 | K150: Robert King
A151: 10303 | B151: 2016-02-18 | C151: Godos Cocina Típica | D151: Spain | E151: Scottish Longbreads | F151: Confections | G151: 12.5 | H151: 15 | I151: 0.1 | J151: 168.75 | K151: Robert King
A152: 10304 | B152: 2016-02-19 | C152: Tortuga Restaurante | D152: Mexico | E152: Maxilaku | F152: Confections | G152: 20 | H152: 30 | I152: 0 | J152: 600 | K152: Nancy Davolio
A153: 10304 | B153: 2016-02-19 | C153: Tortuga Restaurante | D153: Mexico | E153: Raclette Courdavault | F153: Dairy Products | G153: 55 | H153: 10 | I153: 0 | J153: 550 | K153: Nancy Davolio
A154: 10304 | B154: 2016-02-19 | C154: Tortuga Restaurante | D154: Mexico | E154: Fløtemysost | F154: Dairy Products | G154: 21.5 | H154: 2 | I154: 0 | J154: 43 | K154: Nancy Davolio
A155: 10305 | B155: 2016-02-20 | C155: Old World Delicatessen | D155: USA | E155: Chartreuse verte | F155: Beverages | G155: 18 | H155: 30 | I155: 0.1 | J155: 486 | K155: Laura Callahan
A156: 10305 | B156: 2016-02-20 | C156: Old World Delicatessen | D156: USA | E156: Thüringer Rostbratwurst | F156: Meat/Poultry | G156: 123.79 | H156: 25 | I156: 0.1 | J156: 2785.28 | K156: Laura Callahan
A157: 10305 | B157: 2016-02-20 | C157: Old World Delicatessen | D157: USA | E157: Carnarvon Tigers | F157: Seafood | G157: 62.5 | H157: 25 | I157: 0.1 | J157: 1406.25 | K157: Laura Callahan
A158: 10306 | B158: 2016-02-23 | C158: Romero y tomillo | D158: Spain | E158: Nord-Ost Matjeshering | F158: Seafood | G158: 25.89 | H158: 10 | I158: 0 | J158: 258.9 | K158: Nancy Davolio
A159: 10306 | B159: 2016-02-23 | C159: Romero y tomillo | D159: Spain | E159: Perth Pasties | F159: Meat/Poultry | G159: 32.8 | H159: 10 | I159: 0 | J159: 328 | K159: Nancy Davolio
A160: 10306 | B160: 2016-02-23 | C160: Romero y tomillo | D160: Spain | E160: Tourtière | F160: Meat/Poultry | G160: 7.45 | H160: 5 | I160: 0 | J160: 37.25 | K160: Nancy Davolio
A161: 10307 | B161: 2016-02-24 | C161: Lonesome Pine Restaurant | D161: USA | E161: Tarte au sucre | F161: Confections | G161: 49.3 | H161: 10 | I161: 0 | J161: 493 | K161: Andrew Fuller
A162: 10307 | B162: 2016-02-24 | C162: Lonesome Pine Restaurant | D162: USA | E162: Scottish Longbreads | F162: Confections | G162: 12.5 | H162: 3 | I162: 0 | J162: 37.5 | K162: Andrew Fuller
A163: 10308 | B163: 2016-02-25 | C163: Ana Trujillo Emparedados y helados | D163: Mexico | E163: Outback Lager | F163: Beverages | G163: 15 | H163: 5 | I163: 0 | J163: 75 | K163: Robert King
A164: 10308 | B164: 2016-02-25 | C164: Ana Trujillo Emparedados y helados | D164: Mexico | E164: Gudbrandsdalsost | F164: Dairy Products | G164: 36 | H164: 1 | I164: 0 | J164: 36 | K164: Robert King
A165: 10309 | B165: 2016-02-26 | C165: Hungry Owl All-Night Grocers | D165: Ireland | E165: Singaporean Hokkien Fried Mee | F165: Grains/Cereals | G165: 14 | H165: 2 | I165: 0 | J165: 28 | K165: Janet Leverling
A166: 10309 | B166: 2016-02-26 | C166: Hungry Owl All-Night Grocers | D166: Ireland | E166: Ipoh Coffee | F166: Beverages | G166: 46 | H166: 20 | I166: 0 | J166: 920 | K166: Janet Leverling
A167: 10309 | B167: 2016-02-26 | C167: Hungry Owl All-Night Grocers | D167: Ireland | E167: Grandma's Boysenberry Spread | F167: Condiments | G167: 25 | H167: 30 | I167: 0 | J167: 750 | K167: Janet Leverling
A168: 10309 | B168: 2016-02-26 | C168: Hungry Owl All-Night Grocers | D168: Ireland | E168: Chef Anton's Cajun Seasoning | F168: Condiments | G168: 22 | H168: 20 | I168: 0 | J168: 440 | K168: Janet Leverling
A169: 10309 | B169: 2016-02-26 | C169: Hungry Owl All-Night Grocers | D169: Ireland | E169: Fløtemysost | F169: Dairy Products | G169: 21.5 | H169: 3 | I169: 0 | J169: 64.5 | K169: Janet Leverling
A170: 10310 | B170: 2016-02-27 | C170: The Big Cheese | D170: USA | E170: Pavlova | F170: Confections | G170: 17.45 | H170: 10 | I170: 0 | J170: 174.5 | K170: Laura Callahan
A171: 10310 | B171: 2016-02-27 | C171: The Big Cheese | D171: USA | E171: Tarte au sucre | F171: Confections | G171: 49.3 | H171: 5 | I171: 0 | J171: 246.5 | K171: Laura Callahan
A172: 10311 | B172: 2016-02-27 | C172: Du monde entier | D172: France | E172: Gudbrandsdalsost | F172: Dairy Products | G172: 36 | H172: 7 | I172: 0 | J172: 252 | K172: Nancy Davolio
A173: 10311 | B173: 2016-02-27 | C173: Du monde entier | D173: France | E173: Singaporean Hokkien Fried Mee | F173: Grains/Cereals | G173: 14 | H173: 6 | I173: 0 | J173: 84 | K173: Nancy Davolio
A174: 10312 | B174: 2016-03-01 | C174: Die Wandernde Kuh | D174: Germany | E174: Rhönbräu Klosterbier | F174: Beverages | G174: 7.75 | H174: 10 | I174: 0 | J174: 77.5 | K174: Andrew Fuller
A175: 10312 | B175: 2016-03-01 | C175: Die Wandernde Kuh | D175: Germany | E175: Rössle Sauerkraut | F175: Produce | G175: 45.6 | H175: 4 | I175: 0 | J175: 182.4 | K175: Andrew Fuller
A176: 10312 | B176: 2016-03-01 | C176: Die Wandernde Kuh | D176: Germany | E176: Ipoh Coffee | F176: Beverages | G176: 46 | H176: 24 | I176: 0 | J176: 1104 | K176: Andrew Fuller
A177: 10312 | B177: 2016-03-01 | C177: Die Wandernde Kuh | D177: Germany | E177: Perth Pasties | F177: Meat/Poultry | G177: 32.8 | H177: 20 | I177: 0 | J177: 656 | K177: Andrew Fuller
A178: 10313 | B178: 2016-03-02 | C178: QUICK-Stop | D178: Germany | E178: Inlagd Sill | F178: Seafood | G178: 19 | H178: 12 | I178: 0 | J178: 228 | K178: Andrew Fuller
A179: 10314 | B179: 2016-03-03 | C179: Rattlesnake Canyon Grocery | D179: USA | E179: Tarte au sucre | F179: Confections | G179: 49.3 | H179: 25 | I179: 0.1 | J179: 1109.25 | K179: Nancy Davolio
A180: 10314 | B180: 2016-03-03 | C180: Rattlesnake Canyon Grocery | D180: USA | E180: Escargots de Bourgogne | F180: Seafood | G180: 13.25 | H180: 30 | I180: 0.1 | J180: 357.75 | K180: Nancy Davolio
A181: 10314 | B181: 2016-03-03 | C181: Rattlesnake Canyon Grocery | D181: USA | E181: Mascarpone Fabioli | F181: Dairy Products | G181: 32 | H181: 40 | I181: 0.1 | J181: 1152 | K181: Nancy Davolio
A182: 10315 | B182: 2016-03-04 | C182: Island Trading | D182: UK | E182: Outback Lager | F182: Beverages | G182: 15 | H182: 30 | I182: 0 | J182: 450 | K182: Margaret Peacock
A183: 10315 | B183: 2016-03-04 | C183: Island Trading | D183: UK | E183: Sasquatch Ale | F183: Beverages | G183: 14 | H183: 14 | I183: 0 | J183: 196 | K183: Margaret Peacock
A184: 10316 | B184: 2016-03-05 | C184: Rattlesnake Canyon Grocery | D184: USA | E184: Tarte au sucre | F184: Confections | G184: 49.3 | H184: 70 | I184: 0 | J184: 3451 | K184: Nancy Davolio
A185: 10316 | B185: 2016-03-05 | C185: Rattlesnake Canyon Grocery | D185: USA | E185: Jack's New England Clam Chowder | F185: Seafood | G185: 9.65 | H185: 10 | I185: 0 | J185: 96.5 | K185: Nancy Davolio
A186: 10317 | B186: 2016-03-08 | C186: Lonesome Pine Restaurant | D186: USA | E186: Chai | F186: Beverages | G186: 18 | H186: 20 | I186: 0 | J186: 360 | K186: Michael Suyama
A187: 10318 | B187: 2016-03-09 | C187: Island Trading | D187: UK | E187: Jack's New England Clam Chowder | F187: Seafood | G187: 9.65 | H187: 20 | I187: 0 | J187: 193 | K187: Laura Callahan
A188: 10318 | B188: 2016-03-09 | C188: Island Trading | D188: UK | E188: Lakkalikööri | F188: Beverages | G188: 18 | H188: 6 | I188: 0 | J188: 108 | K188: Laura Callahan
A189: 10319 | B189: 2016-03-10 | C189: Tortuga Restaurante | D189: Mexico | E189: Alice Mutton | F189: Meat/Poultry | G189: 39 | H189: 8 | I189: 0 | J189: 312 | K189: Robert King
A190: 10319 | B190: 2016-03-10 | C190: Tortuga Restaurante | D190: Mexico | E190: Rössle Sauerkraut | F190: Produce | G190: 45.6 | H190: 14 | I190: 0 | J190: 638.4 | K190: Robert King
A191: 10319 | B191: 2016-03-10 | C191: Tortuga Restaurante | D191: Mexico | E191: Lakkalikööri | F191: Beverages | G191: 18 | H191: 30 | I191: 0 | J191: 540 | K191: Robert King
A192: 10320 | B192: 2016-03-11 | C192: Wartian Herkku | D192: Finland | E192: Fløtemysost | F192: Dairy Products | G192: 21.5 | H192: 30 | I192: 0 | J192: 645 | K192: Steven Buchanan
A193: 10321 | B193: 2016-03-11 | C193: Island Trading | D193: UK | E193: Steeleye Stout | F193: Beverages | G193: 18 | H193: 10 | I193: 0 | J193: 180 | K193: Janet Leverling
A194: 10322 | B194: 2016-03-12 | C194: Pericles Comidas clásicas | D194: Mexico | E194: Filo Mix | F194: Grains/Cereals | G194: 7 | H194: 20 | I194: 0 | J194: 140 | K194: Robert King
A195: 10323 | B195: 2016-03-15 | C195: Königlich Essen | D195: Germany | E195: NuNuCa Nuß-Nougat-Creme | F195: Confections | G195: 14 | H195: 4 | I195: 0 | J195: =ROUND((G195*H195)*(1-I195),2) -> 56 | K195: Margaret Peacock
A196: 10323 | B196: 2016-03-15 | C196: Königlich Essen | D196: Germany | E196: Genen Shouyu | F196: Condiments | G196: 15.5 | H196: 5 | I196: 0 | J196: 77.5 | K196: Margaret Peacock
A197: 10323 | B197: 2016-03-15 | C197: Königlich Essen | D197: Germany | E197: Chartreuse verte | F197: Beverages | G197: 18 | H197: 4 | I197: 0 | J197: 72 | K197: Margaret Peacock
A198: 10324 | B198: 2016-03-16 | C198: Save-a-lot Markets | D198: USA | E198: Spegesild | F198: Seafood | G198: 12 | H198: 30 | I198: 0 | J198: 360 | K198: Anne Dodsworth
A199: 10324 | B199: 2016-03-16 | C199: Save-a-lot Markets | D199: USA | E199: Vegie-spread | F199: Condiments | G199: 43.9 | H199: 80 | I199: 0.15 | J199: 2985.2 | K199: Anne Dodsworth
A200: 10324 | B200: 2016-03-16 | C200: Save-a-lot Markets | D200: USA | E200: Raclette Courdavault | F200: Dairy Products | G200: 55 | H200: 40 | I200: 0.15 | J200: 1870 | K200: Anne Dodsworth
... 76 more rows

Sheet Portsmouth
A1: Order ID | B1: Order Date | C1: Customer Name | D1: Country | E1: Product Name | F1: Product Category | G1: Unit Price | H1: Units Sold | I1: Discount | J1: Total Sales Value | K1: Sales Rep
A2: 10248 | B2: 2015-12-11 | C2: Vins et alcools Chevalier | D2: France | E2: Mozzarella di Giovanni | F2: Dairy Products | G2: 34.8 | H2: 5 | I2: 0 | J2: =ROUND((G2*H2)*(1-I2),2) -> 174 | K2: Steven Buchanan
A3: 10248 | B3: 2015-12-11 | C3: Vins et alcools Chevalier | D3: France | E3: Singaporean Hokkien Fried Mee | F3: Grains/Cereals | G3: 14 | H3: 10 | I3: 0 | J3: =ROUND((G3*H3)*(1-I3),2) -> 140 | K3: Steven Buchanan
A4: 10248 | B4: 2015-12-11 | C4: Vins et alcools Chevalier | D4: France | E4: Queso Cabrales | F4: Dairy Products | G4: 21 | H4: 12 | I4: 0 | J4: 252 | K4: Steven Buchanan
A5: 10249 | B5: 2015-12-12 | C5: Toms Spezialitäten | D5: Germany | E5: Manjimup Dried Apples | F5: Produce | G5: 53 | H5: 40 | I5: 0 | J5: 2120 | K5: Michael Suyama
A6: 10249 | B6: 2015-12-12 | C6: Toms Spezialitäten | D6: Germany | E6: Tofu | F6: Produce | G6: 23.25 | H6: 9 | I6: 0 | J6: 209.25 | K6: Michael Suyama
A7: 10250 | B7: 2015-12-15 | C7: Hanari Carnes | D7: Brazil | E7: Manjimup Dried Apples | F7: Produce | G7: 53 | H7: 35 | I7: 0.15 | J7: 1576.75 | K7: Margaret Peacock
A8: 10250 | B8: 2015-12-15 | C8: Hanari Carnes | D8: Brazil | E8: Jack's New England Clam Chowder | F8: Seafood | G8: 9.65 | H8: 10 | I8: 0 | J8: 96.5 | K8: Margaret Peacock
A9: 10250 | B9: 2015-12-15 | C9: Hanari Carnes | D9: Brazil | E9: Louisiana Fiery Hot Pepper Sauce | F9: Condiments | G9: 21.05 | H9: 15 | I9: 0.15 | J9: 268.39 | K9: Margaret Peacock
A10: 10251 | B10: 2015-12-15 | C10: Victuailles en stock | D10: France | E10: Gustaf's Knäckebröd | F10: Grains/Cereals | G10: 21 | H10: 6 | I10: 0.05 | J10: 119.7 | K10: Janet Leverling
A11: 10251 | B11: 2015-12-15 | C11: Victuailles en stock | D11: France | E11: Louisiana Fiery Hot Pepper Sauce | F11: Condiments | G11: 21.05 | H11: 20 | I11: 0 | J11: 421 | K11: Janet Leverling
A12: 10251 | B12: 2015-12-15 | C12: Victuailles en stock | D12: France | E12: Ravioli Angelo | F12: Grains/Cereals | G12: 19.5 | H12: 15 | I12: 0.05 | J12: 277.88 | K12: Janet Leverling
A13: 10252 | B13: 2015-12-16 | C13: Suprêmes délices | D13: Belgium | E13: Geitost | F13: Dairy Products | G13: 2.5 | H13: 25 | I13: 0.05 | J13: 59.38 | K13: Margaret Peacock
A14: 10252 | B14: 2015-12-16 | C14: Suprêmes délices | D14: Belgium | E14: Camembert Pierrot | F14: Dairy Products | G14: 34 | H14: 40 | I14: 0 | J14: 1360 | K14: Margaret Peacock
A15: 10252 | B15: 2015-12-16 | C15: Suprêmes délices | D15: Belgium | E15: Sir Rodney's Marmalade | F15: Confections | G15: 81 | H15: 40 | I15: 0.05 | J15: 3078 | K15: Margaret Peacock
A16: 10253 | B16: 2015-12-17 | C16: Hanari Carnes | D16: Brazil | E16: Chartreuse verte | F16: Beverages | G16: 18 | H16: 42 | I16: 0 | J16: 756 | K16: Janet Leverling
A17: 10253 | B17: 2015-12-17 | C17: Hanari Carnes | D17: Brazil | E17: Gorgonzola Telino | F17: Dairy Products | G17: 12.5 | H17: 20 | I17: 0 | J17: 250 | K17: Janet Leverling
A18: 10253 | B18: 2015-12-17 | C18: Hanari Carnes | D18: Brazil | E18: Maxilaku | F18: Confections | G18: 20 | H18: 40 | I18: 0 | J18: 800 | K18: Janet Leverling
A19: 10254 | B19: 2015-12-18 | C19: Chop-suey Chinese | D19: Switzerland | E19: Longlife Tofu | F19: Produce | G19: 10 | H19: 21 | I19: 0 | J19: 210 | K19: Steven Buchanan
A20: 10254 | B20: 2015-12-18 | C20: Chop-suey Chinese | D20: Switzerland | E20: Pâté chinois | F20: Meat/Poultry | G20: 24 | H20: 21 | I20: 0.15 | J20: 428.4 | K20: Steven Buchanan
A21: 10254 | B21: 2015-12-18 | C21: Chop-suey Chinese | D21: Switzerland | E21: Guaraná Fantástica | F21: Beverages | G21: 4.5 | H21: 15 | I21: 0.15 | J21: 57.38 | K21: Steven Buchanan
A22: 10255 | B22: 2015-12-19 | C22: Richter Supermarkt | D22: Switzerland | E22: Chang | F22: Beverages | G22: 19 | H22: 20 | I22: 0 | J22: 380 | K22: Anne Dodsworth
A23: 10255 | B23: 2015-12-19 | C23: Richter Supermarkt | D23: Switzerland | E23: Raclette Courdavault | F23: Dairy Products | G23: 55 | H23: 30 | I23: 0 | J23: 1650 | K23: Anne Dodsworth
A24: 10255 | B24: 2015-12-19 | C24: Richter Supermarkt | D24: Switzerland | E24: Pavlova | F24: Confections | G24: 17.45 | H24: 35 | I24: 0 | J24: 610.75 | K24: Anne Dodsworth
A25: 10255 | B25: 2015-12-19 | C25: Richter Supermarkt | D25: Switzerland | E25: Inlagd Sill | F25: Seafood | G25: 19 | H25: 25 | I25: 0 | J25: 475 | K25: Anne Dodsworth
A26: 10256 | B26: 2015-12-22 | C26: Wellington Importadora | D26: Brazil | E26: Perth Pasties | F26: Meat/Poultry | G26: 32.8 | H26: 15 | I26: 0 | J26: 492 | K26: Janet Leverling
A27: 10256 | B27: 2015-12-22 | C27: Wellington Importadora | D27: Brazil | E27: Original Frankfurter grüne Soße | F27: Condiments | G27: 13 | H27: 12 | I27: 0 | J27: 156 | K27: Janet Leverling
A28: 10257 | B28: 2015-12-23 | C28: HILARIÓN-Abastos | D28: Venezuela | E28: Schoggi Schokolade | F28: Confections | G28: 43.9 | H28: 25 | I28: 0 | J28: 1097.5 | K28: Margaret Peacock
A29: 10257 | B29: 2015-12-23 | C29: HILARIÓN-Abastos | D29: Venezuela | E29: Chartreuse verte | F29: Beverages | G29: 18 | H29: 6 | I29: 0 | J29: 108 | K29: Margaret Peacock
A30: 10257 | B30: 2015-12-23 | C30: HILARIÓN-Abastos | D30: Venezuela | E30: Original Frankfurter grüne Soße | F30: Condiments | G30: 13 | H30: 15 | I30: 0 | J30: 195 | K30: Margaret Peacock
A31: 10258 | B31: 2015-12-24 | C31: Ernst Handel | D31: Austria | E31: Chef Anton's Gumbo Mix | F31: Condiments | G31: 21.35 | H31: 65 | I31: 0.2 | J31: 1110.2 | K31: Nancy Davolio
A32: 10258 | B32: 2015-12-24 | C32: Ernst Handel | D32: Austria | E32: Chang | F32: Beverages | G32: 19 | H32: 50 | I32: 0.2 | J32: 760 | K32: Nancy Davolio
A33: 10258 | B33: 2015-12-24 | C33: Ernst Handel | D33: Austria | E33: Mascarpone Fabioli | F33: Dairy Products | G33: 32 | H33: 6 | I33: 0.2 | J33: 153.6 | K33: Nancy Davolio
A34: 10259 | B34: 2015-12-25 | C34: Centro comercial Moctezuma | D34: Mexico | E34: Sir Rodney's Scones | F34: Confections | G34: 10 | H34: 10 | I34: 0 | J34: 100 | K34: Margaret Peacock
A35: 10259 | B35: 2015-12-25 | C35: Centro comercial Moctezuma | D35: Mexico | E35: Gravad lax | F35: Seafood | G35: 26 | H35: 1 | I35: 0 | J35: 26 | K35: Margaret Peacock
A36: 10260 | B36: 2015-12-26 | C36: Ottilies Käseladen | D36: Germany | E36: Outback Lager | F36: Beverages | G36: 15 | H36: 21 | I36: 0.25 | J36: 236.25 | K36: Margaret Peacock
A37: 10260 | B37: 2015-12-26 | C37: Ottilies Käseladen | D37: Germany | E37: Ravioli Angelo | F37: Grains/Cereals | G37: 19.5 | H37: 50 | I37: 0 | J37: 975 | K37: Margaret Peacock
A38: 10260 | B38: 2015-12-26 | C38: Ottilies Käseladen | D38: Germany | E38: Tarte au sucre | F38: Confections | G38: 49.3 | H38: 15 | I38: 0.25 | J38: 554.63 | K38: Margaret Peacock
A39: 10260 | B39: 2015-12-26 | C39: Ottilies Käseladen | D39: Germany | E39: Jack's New England Clam Chowder | F39: Seafood | G39: 9.65 | H39: 16 | I39: 0.25 | J39: 115.8 | K39: Margaret Peacock
A40: 10261 | B40: 2015-12-26 | C40: Que Delícia | D40: Brazil | E40: Steeleye Stout | F40: Beverages | G40: 18 | H40: 20 | I40: 0 | J40: 360 | K40: Margaret Peacock
A41: 10261 | B41: 2015-12-26 | C41: Que Delícia | D41: Brazil | E41: Sir Rodney's Scones | F41: Confections | G41: 10 | H41: 20 | I41: 0 | J41: 200 | K41: Margaret Peacock
A42: 10262 | B42: 2015-12-29 | C42: Rattlesnake Canyon Grocery | D42: USA | E42: Chef Anton's Gumbo Mix | F42: Condiments | G42: 21.35 | H42: 12 | I42: 0.2 | J42: 204.96 | K42: Laura Callahan
A43: 10262 | B43: 2015-12-29 | C43: Rattlesnake Canyon Grocery | D43: USA | E43: Uncle Bob's Organic Dried Pears | F43: Produce | G43: 30 | H43: 15 | I43: 0 | J43: 450 | K43: Laura Callahan
A44: 10262 | B44: 2015-12-29 | C44: Rattlesnake Canyon Grocery | D44: USA | E44: Gnocchi di nonna Alice | F44: Grains/Cereals | G44: 38 | H44: 2 | I44: 0 | J44: 76 | K44: Laura Callahan
A45: 10263 | B45: 2015-12-30 | C45: Ernst Handel | D45: Austria | E45: Pavlova | F45: Confections | G45: 17.45 | H45: 60 | I45: 0.25 | J45: 785.25 | K45: Anne Dodsworth
A46: 10263 | B46: 2015-12-30 | C46: Ernst Handel | D46: Austria | E46: Nord-Ost Matjeshering | F46: Seafood | G46: 25.89 | H46: 60 | I46: 0.25 | J46: 1165.05 | K46: Anne Dodsworth
A47: 10263 | B47: 2015-12-30 | C47: Ernst Handel | D47: Austria | E47: Guaraná Fantástica | F47: Beverages | G47: 4.5 | H47: 28 | I47: 0 | J47: 126 | K47: Anne Dodsworth
A48: 10263 | B48: 2015-12-30 | C48: Ernst Handel | D48: Austria | E48: Longlife Tofu | F48: Produce | G48: 10 | H48: 36 | I48: 0.25 | J48: 270 | K48: Anne Dodsworth
A49: 10264 | B49: 2015-12-31 | C49: Folk och fä HB | D49: Sweden | E49: Chang | F49: Beverages | G49: 19 | H49: 35 | I49: 0 | J49: 665 | K49: Michael Suyama
A50: 10264 | B50: 2015-12-31 | C50: Folk och fä HB | D50: Sweden | E50: Jack's New England Clam Chowder | F50: Seafood | G50: 9.65 | H50: 25 | I50: 0.15 | J50: 205.06 | K50: Michael Suyama
A51: 10265 | B51: 2016-01-01 | C51: Blondel père et fils | D51: France | E51: Alice Mutton | F51: Meat/Poultry | G51: 39 | H51: 30 | I51: 0 | J51: 1170 | K51: Andrew Fuller
A52: 10265 | B52: 2016-01-01 | C52: Blondel père et fils | D52: France | E52: Outback Lager | F52: Beverages | G52: 15 | H52: 20 | I52: 0 | J52: 300 | K52: Andrew Fuller
A53: 10266 | B53: 2016-01-02 | C53: Wartian Herkku | D53: Finland | E53: Queso Manchego La Pastora | F53: Dairy Products | G53: 38 | H53: 12 | I53: 0.05 | J53: 433.2 | K53: Janet Leverling
A54: 10267 | B54: 2016-01-05 | C54: Frankenversand | D54: Germany | E54: Lakkalikööri | F54: Beverages | G54: 18 | H54: 15 | I54: 0.15 | J54: 229.5 | K54: Margaret Peacock
A55: 10267 | B55: 2016-01-05 | C55: Frankenversand | D55: Germany | E55: Boston Crab Meat | F55: Seafood | G55: 18.4 | H55: 50 | I55: 0 | J55: 920 | K55: Margaret Peacock
A56: 10267 | B56: 2016-01-05 | C56: Frankenversand | D56: Germany | E56: Raclette Courdavault | F56: Dairy Products | G56: 55 | H56: 70 | I56: 0.15 | J56: 3272.5 | K56: Margaret Peacock
A57: 10268 | B57: 2016-01-06 | C57: GROSELLA-Restaurante | D57: Venezuela | E57: Mozzarella di Giovanni | F57: Dairy Products | G57: 34.8 | H57: 4 | I57: 0 | J57: 139.2 | K57: Laura Callahan
A58: 10268 | B58: 2016-01-06 | C58: GROSELLA-Restaurante | D58: Venezuela | E58: Thüringer Rostbratwurst | F58: Meat/Poultry | G58: 123.79 | H58: 10 | I58: 0 | J58: 1237.9 | K58: Laura Callahan
A59: 10269 | B59: 2016-01-07 | C59: White Clover Markets | D59: USA | E59: Mozzarella di Giovanni | F59: Dairy Products | G59: 34.8 | H59: 20 | I59: 0.05 | J59: 661.2 | K59: Steven Buchanan
A60: 10269 | B60: 2016-01-07 | C60: White Clover Markets | D60: USA | E60: Geitost | F60: Dairy Products | G60: 2.5 | H60: 60 | I60: 0.05 | J60: 142.5 | K60: Steven Buchanan
A61: 10270 | B61: 2016-01-08 | C61: Wartian Herkku | D61: Finland | E61: Inlagd Sill | F61: Seafood | G61: 19 | H61: 30 | I61: 0 | J61: 570 | K61: Nancy Davolio
A62: 10270 | B62: 2016-01-08 | C62: Wartian Herkku | D62: Finland | E62: Ipoh Coffee | F62: Beverages | G62: 46 | H62: 25 | I62: 0 | J62: 1150 | K62: Nancy Davolio
A63: 10271 | B63: 2016-01-08 | C63: Split Rail Beer & Ale | D63: USA | E63: Geitost | F63: Dairy Products | G63: 2.5 | H63: 24 | I63: 0 | J63: 60 | K63: Michael Suyama
A64: 10272 | B64: 2016-01-09 | C64: Rattlesnake Canyon Grocery | D64: USA | E64: Gorgonzola Telino | F64: Dairy Products | G64: 12.5 | H64: 40 | I64: 0 | J64: 500 | K64: Michael Suyama
A65: 10272 | B65: 2016-01-09 | C65: Rattlesnake Canyon Grocery | D65: USA | E65: Sir Rodney's Marmalade | F65: Confections | G65: 81 | H65: 6 | I65: 0 | J65: 486 | K65: Michael Suyama
A66: 10272 | B66: 2016-01-09 | C66: Rattlesnake Canyon Grocery | D66: USA | E66: Mozzarella di Giovanni | F66: Dairy Products | G66: 34.8 | H66: 24 | I66: 0 | J66: 835.2 | K66: Michael Suyama
A67: 10273 | B67: 2016-01-12 | C67: QUICK-Stop | D67: Germany | E67: Boston Crab Meat | F67: Seafood | G67: 18.4 | H67: 60 | I67: 0.05 | J67: =ROUND((G67*H67)*(1-I67),2) -> 1048.8 | K67: Janet Leverling
A68: 10273 | B68: 2016-01-12 | C68: QUICK-Stop | D68: Germany | E68: Geitost | F68: Dairy Products | G68: 2.5 | H68: 20 | I68: 0 | J68: 50 | K68: Janet Leverling
A69: 10273 | B69: 2016-01-12 | C69: QUICK-Stop | D69: Germany | E69: Gorgonzola Telino | F69: Dairy Products | G69: 12.5 | H69: 15 | I69: 0.05 | J69: 178.13 | K69: Janet Leverling
A70: 10273 | B70: 2016-01-12 | C70: QUICK-Stop | D70: Germany | E70: Ikura | F70: Seafood | G70: 31 | H70: 24 | I70: 0.05 | J70: 706.8 | K70: Janet Leverling
A71: 10273 | B71: 2016-01-12 | C71: QUICK-Stop | D71: Germany | E71: Lakkalikööri | F71: Beverages | G71: 18 | H71: 33 | I71: 0.05 | J71: 564.3 | K71: Janet Leverling
A72: 10274 | B72: 2016-01-13 | C72: Vins et alcools Chevalier | D72: France | E72: Fløtemysost | F72: Dairy Products | G72: 21.5 | H72: 20 | I72: 0 | J72: 430 | K72: Michael Suyama
A73: 10274 | B73: 2016-01-13 | C73: Vins et alcools Chevalier | D73: France | E73: Mozzarella di Giovanni | F73: Dairy Products | G73: 34.8 | H73: 7 | I73: 0 | J73: 243.6 | K73: Michael Suyama
A74: 10275 | B74: 2016-01-14 | C74: Magazzini Alimentari Riuniti | D74: Italy | E74: Guaraná Fantástica | F74: Beverages | G74: 4.5 | H74: 12 | I74: 0.05 | J74: 51.3 | K74: Nancy Davolio
A75: 10275 | B75: 2016-01-14 | C75: Magazzini Alimentari Riuniti | D75: Italy | E75: Raclette Courdavault | F75: Dairy Products | G75: 55 | H75: 6 | I75: 0.05 | J75: 313.5 | K75: Nancy Davolio
A76: 10276 | B76: 2016-01-15 | C76: Tortuga Restaurante | D76: Mexico | E76: Ikura | F76: Seafood | G76: 31 | H76: 15 | I76: 0 | J76: 465 | K76: Laura Callahan
A77: 10276 | B77: 2016-01-15 | C77: Tortuga Restaurante | D77: Mexico | E77: Konbu | F77: Seafood | G77: 6 | H77: 10 | I77: 0 | J77: 60 | K77: Laura Callahan
A78: 10277 | B78: 2016-01-16 | C78: Morgenstern Gesundkost | D78: Germany | E78: Rössle Sauerkraut | F78: Produce | G78: 45.6 | H78: 20 | I78: 0 | J78: 912 | K78: Andrew Fuller
A79: 10277 | B79: 2016-01-16 | C79: Morgenstern Gesundkost | D79: Germany | E79: Tarte au sucre | F79: Confections | G79: 49.3 | H79: 12 | I79: 0 | J79: 591.6 | K79: Andrew Fuller
A80: 10278 | B80: 2016-01-19 | C80: Berglunds snabbköp | D80: Sweden | E80: Raclette Courdavault | F80: Dairy Products | G80: 55 | H80: 15 | I80: 0 | J80: 825 | K80: Laura Callahan
A81: 10278 | B81: 2016-01-19 | C81: Berglunds snabbköp | D81: Sweden | E81: Röd Kaviar | F81: Seafood | G81: 15 | H81: 25 | I81: 0 | J81: 375 | K81: Laura Callahan
A82: 10278 | B82: 2016-01-19 | C82: Berglunds snabbköp | D82: Sweden | E82: Gula Malacca | F82: Condiments | G82: 19.45 | H82: 16 | I82: 0 | J82: 311.2 | K82: Laura Callahan
A83: 10278 | B83: 2016-01-19 | C83: Berglunds snabbköp | D83: Sweden | E83: Vegie-spread | F83: Condiments | G83: 43.9 | H83: 8 | I83: 0 | J83: 351.2 | K83: Laura Callahan
A84: 10279 | B84: 2016-01-20 | C84: Lehmanns Marktstand | D84: Germany | E84: Alice Mutton | F84: Meat/Poultry | G84: 39 | H84: 15 | I84: 0.25 | J84: 438.75 | K84: Laura Callahan
A85: 10280 | B85: 2016-01-21 | C85: Berglunds snabbköp | D85: Sweden | E85: Pâté chinois | F85: Meat/Poultry | G85: 24 | H85: 20 | I85: 0 | J85: 480 | K85: Andrew Fuller
A86: 10280 | B86: 2016-01-21 | C86: Berglunds snabbköp | D86: Sweden | E86: Rhönbräu Klosterbier | F86: Beverages | G86: 7.75 | H86: 30 | I86: 0 | J86: 232.5 | K86: Andrew Fuller
A87: 10280 | B87: 2016-01-21 | C87: Berglunds snabbköp | D87: Sweden | E87: Guaraná Fantástica | F87: Beverages | G87: 4.5 | H87: 12 | I87: 0 | J87: 54 | K87: Andrew Fuller
A88: 10281 | B88: 2016-01-21 | C88: Romero y tomillo | D88: Spain | E88: Guaraná Fantástica | F88: Beverages | G88: 4.5 | H88: 6 | I88: 0 | J88: 27 | K88: Margaret Peacock
A89: 10281 | B89: 2016-01-21 | C89: Romero y tomillo | D89: Spain | E89: Steeleye Stout | F89: Beverages | G89: 18 | H89: 4 | I89: 0 | J89: 72 | K89: Margaret Peacock
A90: 10281 | B90: 2016-01-21 | C90: Romero y tomillo | D90: Spain | E90: Teatime Chocolate Biscuits | F90: Confections | G90: 9.2 | H90: 1 | I90: 0 | J90: 9.2 | K90: Margaret Peacock
A91: 10282 | B91: 2016-01-22 | C91: Romero y tomillo | D91: Spain | E91: Ravioli Angelo | F91: Grains/Cereals | G91: 19.5 | H91: 2 | I91: 0 | J91: 39 | K91: Margaret Peacock
A92: 10282 | B92: 2016-01-22 | C92: Romero y tomillo | D92: Spain | E92: Nord-Ost Matjeshering | F92: Seafood | G92: 25.89 | H92: 6 | I92: 0 | J92: 155.34 | K92: Margaret Peacock
A93: 10283 | B93: 2016-01-23 | C93: LILA-Supermercado | D93: Venezuela | E93: Teatime Chocolate Biscuits | F93: Confections | G93: 9.2 | H93: 18 | I93: 0 | J93: 165.6 | K93: Janet Leverling
A94: 10283 | B94: 2016-01-23 | C94: LILA-Supermercado | D94: Venezuela | E94: Camembert Pierrot | F94: Dairy Products | G94: 34 | H94: 35 | I94: 0 | J94: 1190 | K94: Janet Leverling
A95: 10283 | B95: 2016-01-23 | C95: LILA-Supermercado | D95: Venezuela | E95: Genen Shouyu | F95: Condiments | G95: 15.5 | H95: 20 | I95: 0 | J95: 310 | K95: Janet Leverling
A96: 10283 | B96: 2016-01-23 | C96: LILA-Supermercado | D96: Venezuela | E96: Mozzarella di Giovanni | F96: Dairy Products | G96: 34.8 | H96: 3 | I96: 0 | J96: 104.4 | K96: Janet Leverling
A97: 10284 | B97: 2016-01-26 | C97: Lehmanns Marktstand | D97: Germany | E97: Laughing Lumberjack Lager | F97: Beverages | G97: 14 | H97: 5 | I97: 0.25 | J97: 52.5 | K97: Margaret Peacock
A98: 10284 | B98: 2016-01-26 | C98: Lehmanns Marktstand | D98: Germany | E98: Gula Malacca | F98: Condiments | G98: 19.45 | H98: 21 | I98: 0 | J98: 408.45 | K98: Margaret Peacock
A99: 10284 | B99: 2016-01-26 | C99: Lehmanns Marktstand | D99: Germany | E99: Camembert Pierrot | F99: Dairy Products | G99: 34 | H99: 20 | I99: 0.25 | J99: 510 | K99: Margaret Peacock
A100: 10284 | B100: 2016-01-26 | C100: Lehmanns Marktstand | D100: Germany | E100: Schoggi Schokolade | F100: Confections | G100: 43.9 | H100: 15 | I100: 0.25 | J100: 493.88 | K100: Margaret Peacock
A101: 10285 | B101: 2016-01-27 | C101: QUICK-Stop | D101: Germany | E101: Chai | F101: Beverages | G101: 18 | H101: 45 | I101: 0.2 | J101: 648 | K101: Nancy Davolio
A102: 10285 | B102: 2016-01-27 | C102: QUICK-Stop | D102: Germany | E102: Boston Crab Meat | F102: Seafood | G102: 18.4 | H102: 40 | I102: 0.2 | J102: 588.8 | K102: Nancy Davolio
A103: 10285 | B103: 2016-01-27 | C103: QUICK-Stop | D103: Germany | E103: Perth Pasties | F103: Meat/Poultry | G103: 32.8 | H103: 36 | I103: 0.2 | J103: 944.64 | K103: Nancy Davolio
A104: 10286 | B104: 2016-01-28 | C104: QUICK-Stop | D104: Germany | E104: Tarte au sucre | F104: Confections | G104: 49.3 | H104: 40 | I104: 0 | J104: 1972 | K104: Laura Callahan
A105: 10286 | B105: 2016-01-28 | C105: QUICK-Stop | D105: Germany | E105: Steeleye Stout | F105: Beverages | G105: 18 | H105: 100 | I105: 0 | J105: 1800 | K105: Laura Callahan
A106: 10287 | B106: 2016-01-29 | C106: Ricardo Adocicados | D106: Brazil | E106: Spegesild | F106: Seafood | G106: 12 | H106: 15 | I106: 0.15 | J106: 153 | K106: Laura Callahan
A107: 10287 | B107: 2016-01-29 | C107: Ricardo Adocicados | D107: Brazil | E107: Pavlova | F107: Confections | G107: 17.45 | H107: 40 | I107: 0.15 | J107: 593.3 | K107: Laura Callahan
A108: 10287 | B108: 2016-01-29 | C108: Ricardo Adocicados | D108: Brazil | E108: Sasquatch Ale | F108: Beverages | G108: 14 | H108: 20 | I108: 0 | J108: 280 | K108: Laura Callahan
A109: 10288 | B109: 2016-01-30 | C109: Reggiani Caseifici | D109: Italy | E109: Scottish Longbreads | F109: Confections | G109: 12.5 | H109: 3 | I109: 0.1 | J109: 33.75 | K109: Margaret Peacock
A110: 10288 | B110: 2016-01-30 | C110: Reggiani Caseifici | D110: Italy | E110: Tourtière | F110: Meat/Poultry | G110: 7.45 | H110: 10 | I110: 0.1 | J110: 67.05 | K110: Margaret Peacock
A111: 10289 | B111: 2016-02-02 | C111: B's Beverages | D111: UK | E111: Aniseed Syrup | F111: Condiments | G111: 10 | H111: 30 | I111: 0 | J111: 300 | K111: Robert King
A112: 10289 | B112: 2016-02-02 | C112: B's Beverages | D112: UK | E112: Wimmers gute Semmelknödel | F112: Grains/Cereals | G112: 33.25 | H112: 9 | I112: 0 | J112: 299.25 | K112: Robert King
A113: 10290 | B113: 2016-02-03 | C113: Comércio Mineiro | D113: Brazil | E113: Original Frankfurter grüne Soße | F113: Condiments | G113: 13 | H113: 10 | I113: 0 | J113: 130 | K113: Laura Callahan
A114: 10290 | B114: 2016-02-03 | C114: Comércio Mineiro | D114: Brazil | E114: Thüringer Rostbratwurst | F114: Meat/Poultry | G114: 123.79 | H114: 15 | I114: 0 | J114: 1856.85 | K114: Laura Callahan
A115: 10290 | B115: 2016-02-03 | C115: Comércio Mineiro | D115: Brazil | E115: Maxilaku | F115: Confections | G115: 20 | H115: 15 | I115: 0 | J115: 300 | K115: Laura Callahan
A116: 10290 | B116: 2016-02-03 | C116: Comércio Mineiro | D116: Brazil | E116: Chef Anton's Gumbo Mix | F116: Condiments | G116: 21.35 | H116: 20 | I116: 0 | J116: 427 | K116: Laura Callahan
A117: 10291 | B117: 2016-02-03 | C117: Que Delícia | D117: Brazil | E117: Gula Malacca | F117: Condiments | G117: 19.45 | H117: 24 | I117: 0.1 | J117: 420.12 | K117: Michael Suyama
A118: 10291 | B118: 2016-02-03 | C118: Que Delícia | D118: Brazil | E118: Konbu | F118: Seafood | G118: 6 | H118: 20 | I118: 0.1 | J118: 108 | K118: Michael Suyama
A119: 10291 | B119: 2016-02-03 | C119: Que Delícia | D119: Brazil | E119: Manjimup Dried Apples | F119: Produce | G119: 53 | H119: 2 | I119: 0.1 | J119: 95.4 | K119: Michael Suyama
A120: 10292 | B120: 2016-02-04 | C120: Tradição Hipermercados | D120: Brazil | E120: Sir Rodney's Marmalade | F120: Confections | G120: 81 | H120: 20 | I120: 0 | J120: 1620 | K120: Nancy Davolio
A121: 10293 | B121: 2016-02-05 | C121: Tortuga Restaurante | D121: Mexico | E121: Carnarvon Tigers | F121: Seafood | G121: 62.5 | H121: 12 | I121: 0 | J121: 750 | K121: Nancy Davolio
A122: 10293 | B122: 2016-02-05 | C122: Tortuga Restaurante | D122: Mexico | E122: Rhönbräu Klosterbier | F122: Beverages | G122: 7.75 | H122: 6 | I122: 0 | J122: 46.5 | K122: Nancy Davolio
A123: 10293 | B123: 2016-02-05 | C123: Tortuga Restaurante | D123: Mexico | E123: Guaraná Fantástica | F123: Beverages | G123: 4.5 | H123: 10 | I123: 0 | J123: 45 | K123: Nancy Davolio
A124: 10293 | B124: 2016-02-05 | C124: Tortuga Restaurante | D124: Mexico | E124: Vegie-spread | F124: Condiments | G124: 43.9 | H124: 5 | I124: 0 | J124: 219.5 | K124: Nancy Davolio
A125: 10294 | B125: 2016-02-06 | C125: Rattlesnake Canyon Grocery | D125: USA | E125: Camembert Pierrot | F125: Dairy Products | G125: 34 | H125: 21 | I125: 0 | J125: 714 | K125: Margaret Peacock
A126: 10294 | B126: 2016-02-06 | C126: Rattlesnake Canyon Grocery | D126: USA | E126: Rhönbräu Klosterbier | F126: Beverages | G126: 7.75 | H126: 6 | I126: 0 | J126: 46.5 | K126: Margaret Peacock
A127: 10294 | B127: 2016-02-06 | C127: Rattlesnake Canyon Grocery | D127: USA | E127: Chai | F127: Beverages | G127: 18 | H127: 18 | I127: 0 | J127: 324 | K127: Margaret Peacock
A128: 10294 | B128: 2016-02-06 | C128: Rattlesnake Canyon Grocery | D128: USA | E128: Ipoh Coffee | F128: Beverages | G128: 46 | H128: 15 | I128: 0 | J128: 690 | K128: Margaret Peacock
A129: 10294 | B129: 2016-02-06 | C129: Rattlesnake Canyon Grocery | D129: USA | E129: Alice Mutton | F129: Meat/Poultry | G129: 39 | H129: 15 | I129: 0 | J129: 585 | K129: Margaret Peacock
A130: 10295 | B130: 2016-02-09 | C130: Vins et alcools Chevalier | D130: France | E130: Gnocchi di nonna Alice | F130: Grains/Cereals | G130: 38 | H130: 4 | I130: 0 | J130: 152 | K130: Andrew Fuller
A131: 10296 | B131: 2016-02-10 | C131: LILA-Supermercado | D131: Venezuela | E131: Gudbrandsdalsost | F131: Dairy Products | G131: 36 | H131: 15 | I131: 0 | J131: =ROUND((G131*H131)*(1-I131),2) -> 540 | K131: Michael Suyama
A132: 10296 | B132: 2016-02-10 | C132: LILA-Supermercado | D132: Venezuela | E132: Queso Cabrales | F132: Dairy Products | G132: 21 | H132: 12 | I132: 0 | J132: 252 | K132: Michael Suyama
A133: 10296 | B133: 2016-02-10 | C133: LILA-Supermercado | D133: Venezuela | E133: Pavlova | F133: Confections | G133: 17.45 | H133: 30 | I133: 0 | J133: 523.5 | K133: Michael Suyama
A134: 10297 | B134: 2016-02-11 | C134: Blondel père et fils | D134: France | E134: Mozzarella di Giovanni | F134: Dairy Products | G134: 34.8 | H134: 20 | I134: 0 | J134: 696 | K134: Steven Buchanan
A135: 10297 | B135: 2016-02-11 | C135: Blondel père et fils | D135: France | E135: Chartreuse verte | F135: Beverages | G135: 18 | H135: 60 | I135: 0 | J135: 1080 | K135: Steven Buchanan
A136: 10298 | B136: 2016-02-12 | C136: Hungry Owl All-Night Grocers | D136: Ireland | E136: Chang | F136: Beverages | G136: 19 | H136: 40 | I136: 0 | J136: 760 | K136: Michael Suyama
A137: 10298 | B137: 2016-02-12 | C137: Hungry Owl All-Night Grocers | D137: Ireland | E137: Inlagd Sill | F137: Seafood | G137: 19 | H137: 40 | I137: 0.25 | J137: 570 | K137: Michael Suyama
A138: 10298 | B138: 2016-02-12 | C138: Hungry Owl All-Night Grocers | D138: Ireland | E138: Tarte au sucre | F138: Confections | G138: 49.3 | H138: 15 | I138: 0 | J138: 739.5 | K138: Michael Suyama
A139: 10298 | B139: 2016-02-12 | C139: Hungry Owl All-Night Grocers | D139: Ireland | E139: Raclette Courdavault | F139: Dairy Products | G139: 55 | H139: 30 | I139: 0.25 | J139: 1237.5 | K139: Michael Suyama
A140: 10299 | B140: 2016-02-13 | C140: Ricardo Adocicados | D140: Brazil | E140: Outback Lager | F140: Beverages | G140: 15 | H140: 20 | I140: 0 | J140: 300 | K140: Margaret Peacock
A141: 10299 | B141: 2016-02-13 | C141: Ricardo Adocicados | D141: Brazil | E141: Teatime Chocolate Biscuits | F141: Confections | G141: 9.2 | H141: 15 | I141: 0 | J141: 138 | K141: Margaret Peacock
A142: 10300 | B142: 2016-02-16 | C142: Magazzini Alimentari Riuniti | D142: Italy | E142: Scottish Longbreads | F142: Confections | G142: 12.5 | H142: 20 | I142: 0 | J142: 250 | K142: Andrew Fuller
A143: 10300 | B143: 2016-02-16 | C143: Magazzini Alimentari Riuniti | D143: Italy | E143: Louisiana Hot Spiced Okra | F143: Condiments | G143: 17 | H143: 30 | I143: 0 | J143: 510 | K143: Andrew Fuller
A144: 10301 | B144: 2016-02-16 | C144: Die Wandernde Kuh | D144: Germany | E144: Gnocchi di nonna Alice | F144: Grains/Cereals | G144: 38 | H144: 20 | I144: 0 | J144: 760 | K144: Laura Callahan
A145: 10301 | B145: 2016-02-16 | C145: Die Wandernde Kuh | D145: Germany | E145: Boston Crab Meat | F145: Seafood | G145: 18.4 | H145: 10 | I145: 0 | J145: 184 | K145: Laura Callahan
A146: 10302 | B146: 2016-02-17 | C146: Suprêmes délices | D146: Belgium | E146: Ipoh Coffee | F146: Beverages | G146: 46 | H146: 12 | I146: 0 | J146: 552 | K146: Margaret Peacock
A147: 10302 | B147: 2016-02-17 | C147: Suprêmes délices | D147: Belgium | E147: Rössle Sauerkraut | F147: Produce | G147: 45.6 | H147: 28 | I147: 0 | J147: 1276.8 | K147: Margaret Peacock
A148: 10302 | B148: 2016-02-17 | C148: Suprêmes délices | D148: Belgium | E148: Alice Mutton | F148: Meat/Poultry | G148: 39 | H148: 40 | I148: 0 | J148: 1560 | K148: Margaret Peacock
A149: 10303 | B149: 2016-02-18 | C149: Godos Cocina Típica | D149: Spain | E149: Louisiana Fiery Hot Pepper Sauce | F149: Condiments | G149: 21.05 | H149: 30 | I149: 0.1 | J149: 568.35 | K149: Robert King
A150: 10303 | B150: 2016-02-18 | C150: Godos Cocina Típica | D150: Spain | E150: Boston Crab Meat | F150: Seafood | G150: 18.4 | H150: 40 | I150: 0.1 | J150: 662.4 | K150: Robert King
A151: 10303 | B151: 2016-02-18 | C151: Godos Cocina Típica | D151: Spain | E151: Scottish Longbreads | F151: Confections | G151: 12.5 | H151: 15 | I151: 0.1 | J151: 168.75 | K151: Robert King
A152: 10304 | B152: 2016-02-19 | C152: Tortuga Restaurante | D152: Mexico | E152: Maxilaku | F152: Confections | G152: 20 | H152: 30 | I152: 0 | J152: 600 | K152: Nancy Davolio
A153: 10304 | B153: 2016-02-19 | C153: Tortuga Restaurante | D153: Mexico | E153: Raclette Courdavault | F153: Dairy Products | G153: 55 | H153: 10 | I153: 0 | J153: 550 | K153: Nancy Davolio
A154: 10304 | B154: 2016-02-19 | C154: Tortuga Restaurante | D154: Mexico | E154: Fløtemysost | F154: Dairy Products | G154: 21.5 | H154: 2 | I154: 0 | J154: 43 | K154: Nancy Davolio
A155: 10305 | B155: 2016-02-20 | C155: Old World Delicatessen | D155: USA | E155: Chartreuse verte | F155: Beverages | G155: 18 | H155: 30 | I155: 0.1 | J155: 486 | K155: Laura Callahan
A156: 10305 | B156: 2016-02-20 | C156: Old World Delicatessen | D156: USA | E156: Thüringer Rostbratwurst | F156: Meat/Poultry | G156: 123.79 | H156: 25 | I156: 0.1 | J156: 2785.28 | K156: Laura Callahan
A157: 10305 | B157: 2016-02-20 | C157: Old World Delicatessen | D157: USA | E157: Carnarvon Tigers | F157: Seafood | G157: 62.5 | H157: 25 | I157: 0.1 | J157: 1406.25 | K157: Laura Callahan
A158: 10306 | B158: 2016-02-23 | C158: Romero y tomillo | D158: Spain | E158: Nord-Ost Matjeshering | F158: Seafood | G158: 25.89 | H158: 10 | I158: 0 | J158: 258.9 | K158: Nancy Davolio
A159: 10306 | B159: 2016-02-23 | C159: Romero y tomillo | D159: Spain | E159: Perth Pasties | F159: Meat/Poultry | G159: 32.8 | H159: 10 | I159: 0 | J159: 328 | K159: Nancy Davolio
A160: 10306 | B160: 2016-02-23 | C160: Romero y tomillo | D160: Spain | E160: Tourtière | F160: Meat/Poultry | G160: 7.45 | H160: 5 | I160: 0 | J160: 37.25 | K160: Nancy Davolio
A161: 10307 | B161: 2016-02-24 | C161: Lonesome Pine Restaurant | D161: USA | E161: Tarte au sucre | F161: Confections | G161: 49.3 | H161: 10 | I161: 0 | J161: 493 | K161: Andrew Fuller
A162: 10307 | B162: 2016-02-24 | C162: Lonesome Pine Restaurant | D162: USA | E162: Scottish Longbreads | F162: Confections | G162: 12.5 | H162: 3 | I162: 0 | J162: 37.5 | K162: Andrew Fuller
A163: 10308 | B163: 2016-02-25 | C163: Ana Trujillo Emparedados y helados | D163: Mexico | E163: Outback Lager | F163: Beverages | G163: 15 | H163: 5 | I163: 0 | J163: 75 | K163: Robert King
A164: 10308 | B164: 2016-02-25 | C164: Ana Trujillo Emparedados y helados | D164: Mexico | E164: Gudbrandsdalsost | F164: Dairy Products | G164: 36 | H164: 1 | I164: 0 | J164: 36 | K164: Robert King
A165: 10309 | B165: 2016-02-26 | C165: Hungry Owl All-Night Grocers | D165: Ireland | E165: Singaporean Hokkien Fried Mee | F165: Grains/Cereals | G165: 14 | H165: 2 | I165: 0 | J165: 28 | K165: Janet Leverling
A166: 10309 | B166: 2016-02-26 | C166: Hungry Owl All-Night Grocers | D166: Ireland | E166: Ipoh Coffee | F166: Beverages | G166: 46 | H166: 20 | I166: 0 | J166: 920 | K166: Janet Leverling
A167: 10309 | B167: 2016-02-26 | C167: Hungry Owl All-Night Grocers | D167: Ireland | E167: Grandma's Boysenberry Spread | F167: Condiments | G167: 25 | H167: 30 | I167: 0 | J167: 750 | K167: Janet Leverling
A168: 10309 | B168: 2016-02-26 | C168: Hungry Owl All-Night Grocers | D168: Ireland | E168: Chef Anton's Cajun Seasoning | F168: Condiments | G168: 22 | H168: 20 | I168: 0 | J168: 440 | K168: Janet Leverling
A169: 10309 | B169: 2016-02-26 | C169: Hungry Owl All-Night Grocers | D169: Ireland | E169: Fløtemysost | F169: Dairy Products | G169: 21.5 | H169: 3 | I169: 0 | J169: 64.5 | K169: Janet Leverling
A170: 10310 | B170: 2016-02-27 | C170: The Big Cheese | D170: USA | E170: Pavlova | F170: Confections | G170: 17.45 | H170: 10 | I170: 0 | J170: 174.5 | K170: Laura Callahan
A171: 10310 | B171: 2016-02-27 | C171: The Big Cheese | D171: USA | E171: Tarte au sucre | F171: Confections | G171: 49.3 | H171: 5 | I171: 0 | J171: 246.5 | K171: Laura Callahan
A172: 10311 | B172: 2016-02-27 | C172: Du monde entier | D172: France | E172: Gudbrandsdalsost | F172: Dairy Products | G172: 36 | H172: 7 | I172: 0 | J172: 252 | K172: Nancy Davolio
A173: 10311 | B173: 2016-02-27 | C173: Du monde entier | D173: France | E173: Singaporean Hokkien Fried Mee | F173: Grains/Cereals | G173: 14 | H173: 6 | I173: 0 | J173: 84 | K173: Nancy Davolio
A174: 10312 | B174: 2016-03-01 | C174: Die Wandernde Kuh | D174: Germany | E174: Rhönbräu Klosterbier | F174: Beverages | G174: 7.75 | H174: 10 | I174: 0 | J174: 77.5 | K174: Andrew Fuller
A175: 10312 | B175: 2016-03-01 | C175: Die Wandernde Kuh | D175: Germany | E175: Rössle Sauerkraut | F175: Produce | G175: 45.6 | H175: 4 | I175: 0 | J175: 182.4 | K175: Andrew Fuller
A176: 10312 | B176: 2016-03-01 | C176: Die Wandernde Kuh | D176: Germany | E176: Ipoh Coffee | F176: Beverages | G176: 46 | H176: 24 | I176: 0 | J176: 1104 | K176: Andrew Fuller
A177: 10312 | B177: 2016-03-01 | C177: Die Wandernde Kuh | D177: Germany | E177: Perth Pasties | F177: Meat/Poultry | G177: 32.8 | H177: 20 | I177: 0 | J177: 656 | K177: Andrew Fuller
A178: 10313 | B178: 2016-03-02 | C178: QUICK-Stop | D178: Germany | E178: Inlagd Sill | F178: Seafood | G178: 19 | H178: 12 | I178: 0 | J178: 228 | K178: Andrew Fuller
A179: 10314 | B179: 2016-03-03 | C179: Rattlesnake Canyon Grocery | D179: USA | E179: Tarte au sucre | F179: Confections | G179: 49.3 | H179: 25 | I179: 0.1 | J179: 1109.25 | K179: Nancy Davolio
A180: 10314 | B180: 2016-03-03 | C180: Rattlesnake Canyon Grocery | D180: USA | E180: Escargots de Bourgogne | F180: Seafood | G180: 13.25 | H180: 30 | I180: 0.1 | J180: 357.75 | K180: Nancy Davolio
A181: 10314 | B181: 2016-03-03 | C181: Rattlesnake Canyon Grocery | D181: USA | E181: Mascarpone Fabioli | F181: Dairy Products | G181: 32 | H181: 40 | I181: 0.1 | J181: 1152 | K181: Nancy Davolio
A182: 10315 | B182: 2016-03-04 | C182: Island Trading | D182: UK | E182: Outback Lager | F182: Beverages | G182: 15 | H182: 30 | I182: 0 | J182: 450 | K182: Margaret Peacock
A183: 10315 | B183: 2016-03-04 | C183: Island Trading | D183: UK | E183: Sasquatch Ale | F183: Beverages | G183: 14 | H183: 14 | I183: 0 | J183: 196 | K183: Margaret Peacock
A184: 10316 | B184: 2016-03-05 | C184: Rattlesnake Canyon Grocery | D184: USA | E184: Tarte au sucre | F184: Confections | G184: 49.3 | H184: 70 | I184: 0 | J184: 3451 | K184: Nancy Davolio
A185: 10316 | B185: 2016-03-05 | C185: Rattlesnake Canyon Grocery | D185: USA | E185: Jack's New England Clam Chowder | F185: Seafood | G185: 9.65 | H185: 10 | I185: 0 | J185: 96.5 | K185: Nancy Davolio
A186: 10317 | B186: 2016-03-08 | C186: Lonesome Pine Restaurant | D186: USA | E186: Chai | F186: Beverages | G186: 18 | H186: 20 | I186: 0 | J186: 360 | K186: Michael Suyama
A187: 10318 | B187: 2016-03-09 | C187: Island Trading | D187: UK | E187: Jack's New England Clam Chowder | F187: Seafood | G187: 9.65 | H187: 20 | I187: 0 | J187: 193 | K187: Laura Callahan
A188: 10318 | B188: 2016-03-09 | C188: Island Trading | D188: UK | E188: Lakkalikööri | F188: Beverages | G188: 18 | H188: 6 | I188: 0 | J188: 108 | K188: Laura Callahan
A189: 10319 | B189: 2016-03-10 | C189: Tortuga Restaurante | D189: Mexico | E189: Alice Mutton | F189: Meat/Poultry | G189: 39 | H189: 8 | I189: 0 | J189: 312 | K189: Robert King
A190: 10319 | B190: 2016-03-10 | C190: Tortuga Restaurante | D190: Mexico | E190: Rössle Sauerkraut | F190: Produce | G190: 45.6 | H190: 14 | I190: 0 | J190: 638.4 | K190: Robert King
A191: 10319 | B191: 2016-03-10 | C191: Tortuga Restaurante | D191: Mexico | E191: Lakkalikööri | F191: Beverages | G191: 18 | H191: 30 | I191: 0 | J191: 540 | K191: Robert King
A192: 10320 | B192: 2016-03-11 | C192: Wartian Herkku | D192: Finland | E192: Fløtemysost | F192: Dairy Products | G192: 21.5 | H192: 30 | I192: 0 | J192: 645 | K192: Steven Buchanan
A193: 10321 | B193: 2016-03-11 | C193: Island Trading | D193: UK | E193: Steeleye Stout | F193: Beverages | G193: 18 | H193: 10 | I193: 0 | J193: 180 | K193: Janet Leverling
A194: 10322 | B194: 2016-03-12 | C194: Pericles Comidas clásicas | D194: Mexico | E194: Filo Mix | F194: Grains/Cereals | G194: 7 | H194: 20 | I194: 0 | J194: 140 | K194: Robert King
A195: 10323 | B195: 2016-03-15 | C195: Königlich Essen | D195: Germany | E195: NuNuCa Nuß-Nougat-Creme | F195: Confections | G195: 14 | H195: 4 | I195: 0 | J195: =ROUND((G195*H195)*(1-I195),2) -> 56 | K195: Margaret Peacock
A196: 10323 | B196: 2016-03-15 | C196: Königlich Essen | D196: Germany | E196: Genen Shouyu | F196: Condiments | G196: 15.5 | H196: 5 | I196: 0 | J196: 77.5 | K196: Margaret Peacock
A197: 10323 | B197: 2016-03-15 | C197: Königlich Essen | D197: Germany | E197: Chartreuse verte | F197: Beverages | G197: 18 | H197: 4 | I197: 0 | J197: 72 | K197: Margaret Peacock
A198: 10324 | B198: 2016-03-16 | C198: Save-a-lot Markets | D198: USA | E198: Spegesild | F198: Seafood | G198: 12 | H198: 30 | I198: 0 | J198: 360 | K198: Anne Dodsworth
A199: 10324 | B199: 2016-03-16 | C199: Save-a-lot Markets | D199: USA | E199: Vegie-spread | F199: Condiments | G199: 43.9 | H199: 80 | I199: 0.15 | J199: 2985.2 | K199: Anne Dodsworth
A200: 10324 | B200: 2016-03-16 | C200: Save-a-lot Markets | D200: USA | E200: Raclette Courdavault | F200: Dairy Products | G200: 55 | H200: 40 | I200: 0.15 | J200: 1870 | K200: Anne Dodsworth
... 484 more rows
